Workbook

Sheet DIRECTIONS
A1: DEKALB COUNTY SCHOOL DISTRICT 2017 CONTINUOUS SCHOOL IMPROVEMENT PLAN (CSIP) TEMPLATE DIRECTIONS
A3: These directions are provided as a quick guide and complement the Support Sessions offered and the DCSD CSIP Screen Cast.
A4: ALL SCHOOLS
A5: To allow full use of the template as it is designed, such as selecting multiple items in a drop down menu, it is important to know that when macro settings in the Trust Center are changed, they are only changed for the Microsoft Office program that you are currently using. The macro settings are not changed for all your Office programs. Therefore, please check your settings using the steps below to ensure proper functioning of the file. Change macro settings in the Trust Center. 1. Click the File tab. 2. Click Options. 3. Click Trust Center, and then click Trust Center Settings. 4. In the Trust Center, click Macro Settings. 5. Select the box that allows access to the VBA Project object mode. 6. Click OK. If you need further assistance email CSIP@dekalbschoolsga.org and a helpdesk ticket will be entered for you.
A6: All schools will complete the following worksheets/tabs: 1. Cover Sheet 2. Data Analysis/Comprehensive Needs Assessment 3. Priority Areas (up to four)
A7: To save your template always use File, "Save As" : DCSD_ CSIP_ 17-18.xlsm. You must save your template as a macro-enabled template to retain the functionality of all the macro enabled features. It is imperative for you these steps to be followed for the template to work. These steps will ensure you save a macro-enabled workbook: 1. Click the File tab and then choose Save As. The Save As dialog box appears. 2. Enter a filename "DCSD CSIP 2017-18" and select a location for your workbook. It is best to save in the p:drive to maintain functionality. 3. Click the "Save as Type" drop-down arrow. A list of file types appears. 4. Select Excel Macro-Enabled Workbook. Excel adds the .xlsm extension to the filename. 5. Click Save.
A8: Cover Sheet
A9: • From the dropdown menu, select your school's name. Your school name, school number and address will auto populate on this page and all other places throughout the document where needed.
A10: • Type - Principal's Name - School's Vision and Mission Statements (you can also paste into the formula bar). | E10: • List: - School Improvement Team Members’ positions and names
A11: • Enter the date when the school council approves the CSIP • Enter the dates(s) when modifications are made once your plan is approved. You can either keep a list of dates to demonstrate your school is following the continuous improvement process or each time you made a change and save the file, you can enter the dates of the revision.
A12: Data Analysis/ Comprehensive Needs Assessment
A13: • Complete questions #1 through #4 based on the discussions with School Improvement Teams, grade levels, stakeholders, etc. Reference your CSIP Participant Guide for samples and guidance.
A14: • From the review of the data, select up to 4 Priority Areas. These Priority Areas are the overarching areas the school is working to address. Examples include Literacy in all grade levels, Math, Attendance, Culture, etc.
A15: • For each Priority Area listed in the Data Analysis/ Comprehensive Needs Assessment worksheet, a Priority Area Worksheet must be completed within the template. Information included in the Priority Areas autofill in each Priority Area Worksheet.
A17: Priority Area Worksheets
A18: • On each Priority Area worksheet, enter a SMART Goal and Performance Measures.
A19: • Next you will select the DCSD Strategic Plan Alignment area that supports the Priority Area. - First, click on the cell. - Press the DEL (delete key). - Then select the appropriate goal from the dropdown menu.
A20: • For each Priority Area, up to three (3) Improvement Strategies can be included. Within the improvement strategy area, state what will be implemented to help achieve the SMART goal.
A21: • For each Improvement Strategy, list the Action Steps that support the Improvement Strategy. Use the Participant's Guide (page 25) to help identify Action Steps that address structures/process, monitoring for fidelity, resources, professional learning, family engagement, and personnel.
B22: A variety of sample Action Steps are offered below for the purpose of sharing action steps that are commonly used. A note of caution, these examples are not always related to one another, in that the samples are not all related to Guided Reading or Guided Math, but they can be used as samples for other actions steps. Structure/Processes: - Review and adjust, if needed, the master schedule to ensure appropriate time to implement Guided Math. - Develop and implement a process to identify students for flexible grouping that address how students will move between groups based on data. Monitoring for Fidelity: - Establish a process for the administrative team/coach/IIS to monitor teachers' implementation of the school improvement strategy and provide specific and timely feedback to teachers. Resources: - Select appropriate leveled readers for students to use in flexible groups. - Students and teachers will use various math manipulatives to support learning of math standards and objectives including, but not limited to graphing calculators and geometric models. - Students will utilize interactive notebooks in each core content class. Notebooks will include personalized vocabulary word walls so students have a resource meeting his/her needs to gain academic language.
B23: Professional Learning: - Teachers will participate in SIOP training for all 10 components by the end of the school year. The consultant will offer professional learning once a month to all teachers focusing on a SIOP component and will scaffold with each additional component. Teachers will use the strategies in each PL in lesson planning and delivery. Administrative team and coach/ISS will provide feedback to teachers ensuring the appropriate use of the strategies. Family Engagement: - The school will offer two events (one each semester) focusing on how families can support literacy. Sessions will be planned based on survey results for the best times for families to meet. Students will lead teaching sessions for families demonstrating their academic knowledge. Grade levels will create resources for families to use outside of school. Personnel: - The Academic Coach/ISS will attend SIOP training with teachers and establish an observation schedule so that all teachers receive feedback regarding the "component of the month." If additional support is needed, the coach will schedule time with teachers to focus on specific areas to enhance the implementation of the components and/or features. - Daytime tutors will provide supplemental learning opportunities for identified students based on multiple data points. Based on students' data the tutor may use a remediation model providing support to students after academic content already presented or to front load information as a preview of the content as opportunity to build background knowledge.
B24: For Title I Schools: • Positions: If Title I funds are used to support positions, complete the personnel tab and be sure you include what the position will do as an action step, but do not allocation funds. Positions included in the Position tab are automatically reflected in the budget. • Tutors: If Title I funds will be used to support Tutors, include an action steps describing what the tutors will do, how students are identified, the times of tutoring, etc. Do not allocate funds with the action step. Use the Tutor worksheet to budget for the positions. Information from the worksheet are automatically reflected in the budget.
A25: • For each Action Step, include the position or person responsible for the completion of the action steps. The "other" column is option and for school use. Some schools may elect to use this section to provide a timeframe to help with monitoring.
A26: • The remaining columns will auto fill, if applicable, with information entered in subsequent worksheets.
A28: • The process outlined above will be repeated for all Priority Areas that were named in the Data Analysis/Comprehensive Needs Assessment Worksheet.
A30: ALL TITLE I SCHOOLS
A32: Title I Worksheets
A33: Title I funds support the implementation of the CSIP. In the Title I Worksheets, schools will demonstrate how their Title I funds are supplementing the general and state funding allocated and show alignment of the action steps to Title I (required components). For each Action Step, identify a Title I component even if funding is not allocated.
A34: Priority Area, Improvement Strategies, and Action Steps
B35: • These areas auto-populate from information entered on the Priority Area worksheets.
B36: • No action is needed in these cells.
A37: Title I Components
B38: • Select the Title I program requirement - Click on the cell. - Press DEL (delete) key to clear the menu. - From the drop-down menu, choose one of the required Title I components that accurately supports each Action Step.
B39: • In order to have a federally compliant Title I section of the Continuous School Improvement Plan, all required components must be addressed in at least one of the Priority Area Worksheets. Review the Title I Program Checklist to ensure all components are addressed somewhere in the plan.
A40: Budget Category
B41: • If Title I funds are supporting the Action Step, select the appropriate budget category from the dropdown menu. Up to three budget categories may be selected to support each Action Step.
A42: Budget Code
B43: • This cell auto-fills based on information selected in the budget category column.
A44: Amount
B45: • Enter the amount of Title I funds budgeted to support the Action Step.
B46: • For tutors and positions, no budget category, code or amount is needed. Funds budgeted to support position(s) and/or tutors will be reflected on the Title I Tutor Salary Worksheet and Title I Position Salary Worksheet and summarized on the Title I Budget tab.
A47: Total Federal Funding for Action Step
B48: • No action needed. This cell auto-fills based on the information provided in the budget category cells and budgeted amounts.
A49: Professional Learning
B50: • Follow directions for columns as stated above and ensure the action step(s) provide details of the professional learning, such as (1) who is providing the PL, (2) who is participating in the PL, (3) when is the PL occurring, and (4) what are the plans for redelivery, when appropriate. Monitoring and fidelity must also be addressed within the action step to determine the effectiveness of the PL.
A51: Parent and Family Engagement
B52: • Demonstrate how the action step addresses the required Parent/Family Engagement components. To be able to select multiple items in the dropdown menu, - First, click on the cell - Next clear the contents by using the DEL (delete) key. - Then click on as many requirements that the action step addresses.
B53: • In order to have a federally compliant Title I Parent and Family Engagement CSIP, the required 13 components must be addressed at some point in the plan. Use the Title I checklist to help ensure all are included in the CSIP.
B54: • Follow directions for remaining columns as stated above for the budget information.
A56: Tutor Worksheet
A57: This worksheet allows schools to accurately budget for daytime and after school tutors.
A59: Person’s Name or Vacant
B60: • Enter the name of the tutor or vacant, if not yet known.
A61: Daytime or After school Tutoring
B62: • From the drop down menu select the appropriate choice for the tutor.
A63: Regular DCSD Employee
B64: • If the tutor is a current DCSD employee, select YES from the drop down menu.
B65: • Otherwise, select NO.
A66: Title I Paid Hours per Week
B67: • Enter the total number of hours per week; not to exceed 28.5.
B68: • NOTE: For tutors who may be employed in multiple schools, the MAXIMUM number of hours they are eligible to work is 28.5.
A69: Total Number of Weeks
B70: • Enter the total number of weeks the tutor will work throughout the school year.
A71: Remaining columns will auto-populate based on information provided in the previously described columns and be summarized in the Title I Budget Tab.
A73: Title I Position Salary Worksheet (1-8)
A74: This worksheet allows schools to accurately budget for Title I paid positions.
A76: Person’s Employee Number, if known
B77: • Enter the employee's EID, if known. If vacant position, leave blank.
A78: Last name of the Title I Paid Position
B79: • Enter the employee's last name as it appears in the all district systems. If the person is not hired yet, type VACANT.
A80: First name of the Title I Paid Position
B81: • Enter the employee's first name as it appears in the all district systems
A82: Position name
B83: • From the drop down menu, select the position.
A84: Position/Job number
B85: • Enter the position/job number, if known.
A86: Grade Level and/or Subject
B87: • List the grade level(s) the position will serve (if multiple grades served, include them i.e. K-2, 6-8, 9-12). If the position is not grade level specific but it is subject specific, provide that information such as HS ELA, HS Math, or Kindergarten.
A88: Subject(s) Licensed
B89: • To ensure the Title I paid position meets the state's determined professional qualifications.
A90: Certified or Non-Certified
B91: • From the drop down menu, select the category. - Certified includes teachers and academic coaches - Classified includes data clerks, parent liaisons, paraprofessionals
A92: Years of experience
B93: • From the drop down menu, select the number of years the employee has earned to the salary is calculated correctly. Be sure to add a year from this year's figure because you are budgeting for next school when the person gained another year of experience.
A94: Certificate Type/Pay Grade
B95: • From the drop down menu, select the appropriate category so that the salary calculates correctly. - Teachers and academic coaches will be selected from Bachelor, Master, Specialist, or Doctorate - Classified personnel are based on position and days employed. We sure you select the correct item.
A96: Months
B97: • Type the number of months the person is employed. Typically the person is employed for 10 months even if the person is paid for 12 months.
A98: Regular DCSD Employee
B99: • From the drop down menu, select YES if the person is not retired or was not previously retired. This impacts the retirement calculations.
A100: % Title I paid
B101: • Type in the amount that Title is paying. In most cases, Title I is paying 100% of the salary, so 100 should be typed.
A102: % Paid by other
B103: • Type in the amount that other funding source is paying towards the salary of the position. If Title I is paying 100%, then 0 is entered here. If an amount other than 100% was enter in % Title I paid, this section must be completed.
A104: The remaining rows for each position will be calculated and the salary and benefits will be summarized in the Budget Tab.
A106: Title I Schoolwide Budget Sheet
A107: • Summarizes how Title I funds are budgeted to support Action Steps and to supplement state and local resources.
A108: • Carefully review that the minimum set aside amount for Parent and Family Engagement is met.
A109: • At the bottom of the page, “Difference” should be zero.
A111: Signature Page
A112: • All meetings discussing the Continuous School Improvement Plan must be documented; therefore, a sign-in template is provided. This is a resources that you can use if you choose, it is not required.

Sheet Cover Sheet
A1: CONTINUOUS SCHOOL IMPROVEMENT PLAN (CSIP)
A2: School Name | B2: Tucker High School | G2: School Number | H2: =VLOOKUP(B2,SchoolTable,2,FALSE) -> 593
A3: School Address | B3: =VLOOKUP(B2,SchoolTable,6,FALSE) -> 5036 Lavista Road,Tucker,GA 30084
A4: Principal | B4: Tamra N. Watts
A5: District Name/State Local Education Agency (LEA) Number | B5: DeKalb County School District (644)
A6: Date of Initial Local School Council Vote of Approval | B6: 2017-06-01
A7: Date of Last Review/Update
A8: Principal Signature | B8: (Signature On File)
A9: Director of Title I Signature | B9: (Signature On File)
A11: School Vision and Mission Statement
A12: Vision Statement
A13: The vision of Tucker High School is to be a school in which the individual potential of each student is maximized through rigorous academic offerings and varied extracurricular activities. As a community school, Tucker envisions success through collaboration not only within the school but outside of it. Consistent standards and a consistent message echoed by parents, peers, and elementary, middle, and high schools create a culture of achievement that will encourage students to reach their maximum potential.
A16: Mission Statement
A17: The mission of Tucker High School is to provide all students with an educational foundation to reach their maximum potential.
A23: District Strategic Plan Goal Alignment
A24: DCSD Goal Area I: Student Success with Equity and Access
A25: DCSD Goal Area II: Stakeholder Engagement
A26: DCSD Goal Area III: Staff Efficacy and Excellence
A27: DCSD Goal Area IV: Internal and External Communications
A28: DCSD Goal Area V: Organizational Effectiveness and Efficiency
A30: School Improvement Team Membership | B30: Name
A31: Principal | B31: =B4 -> Tamra N. Watts
A32: Assistant Principal Instruction | B32: John Harwell
A33: Assistant Principal | B33: JoAlveta Allen
A34: Assistant Principal | B34: Melinda Foster
A35: Assistant Principal | B35: George Greene
A36: Assistant Principal | B36: Emanuel Lewis
A37: ELA Department Chair | B37: Jennifer Curl
A38: Math Department Chair | B38: Janine Bates
A39: Science Department Chairs | B39: Roger Burr/Candice Franklin/Ragin Willson
A40: Social Studies Department Chair | B40: Amanda Xiques
A41: Career Technology Department Chair | B41: Allysa McCarthy
A42: Fine Arts Department Chair | B42: Roscoe Jackson
A43: Counseling Department Chair | B43: Amanda Staples
A44: ESOL Department Chair | B44: Paulette Kessler-Westerman
A45: World Languages Department Chair | B45: Denise Fernandez
A46: Special Education Department Chair | B46: Lanota Fludd/Erika Billups
A47: Academic Coach | B47: Angela Brooks
A48: Academic Coach | B48: Danielle Armstrong
A49: Lead Teacher Special Education | B49: Amme Wilson
A50: Parent
A51: Parent
A52: Student
A53: Student

Sheet Data Analysis
A1: SUMMARY OF SCHOOL DATA ANALYSIS AND/OR COMPREHENSIVE NEEDS ASSESSMENT
A3: 1. List the data used to identify valid needs for improvement (demographics, student learning, process, perception).
A4: Data data over the last three years,used to identify valid needs for improvement: CCRPI overall scores: 62% (2014), 75% (2015), 78% (2016) Achievement as it relates to the Georgia Milestones End of Course (EOC) Ninth grade Literature 79% (2014), 58% (2015), 59% (2016) American Literature 88% (2014), 51% (2015), 60% (2016) Coordinate Algebra 25% (2014), 42% (2015), 49% (2016) Analytical Geometry 37% (2014), 50% ( 2015), 47% (2016) Physical Science 66% (2014), 21% (2015), 31% (2016) Biology 59% (2014), 34% ( 2015), 57% (2016) U.S. History 70% (2014), 63% (2015), 62% (2016) Economics 79% (2014), 52% (2015), 60% (2016) Achievement as it relates to CTAE Pathway Completers: 2014 (No data Available), 58% (2015), 48% (2016) Achievement as it relates to Measures of Academic Progress (MAP): Fall (2016) Ninth Grade Reading: Lo<21%: 39%, LoAvg 21-40%: 23%, Avg 41-60%: 15%, HiAvg61-81%: 13%, Hi>81%: 10% Tenth Grade Reading: Lo<21%: 27%, LoAvg 21-40%: 17%, Avg 41-60%: 18%, HiAvg61-81%: 23%, Hi>81%: 15% Ninth Grade Mathematics: Lo<21%: 42%, LoAvg 21-40%: 22%, Avg 41-60%: 15%, HiAvg 61-81%: 14%, Hi>81%: 8% Tenth Grade Mathematics: Lo<21%: 26%, LoAvg 21-40%: 24%, Avg 41-60%: 21%, HiAvg61-81%: 20%, Hi>81%: 9% Ninth Language Usage: Lo<21%: 32%, LoAvg 21-40%: 16%, Avg 41-60%: 23%, HiAvg61-81%: 18%, Hi>81%: 11% Tenth Grade Language Usage: Lo<21%: 21%, LoAvg 21-40%: 16%, Avg 41-60%: 19%, HiAvg61-81%: 29%, Hi>81%: 16% Achievement as it relates to Graduation Rate: 69% (2014), 87% (2015), 91% (2016) Attendance (6 Days or Less): 94% ( 2014), 34% (2015), 46% (2016) Discipline Incidences: 756 (2014), 857 (2015), 1174 (2016)
A17: 2. What does an analysis of your school data and/or a comprehensive needs assessment tell you about the school's strengths? Provide a narrative, identifying trends over the past three year, and tell your school's story (no charts and graphs).
A18: For the past two years our graduation rate has exceeded that of the state. In 2015, we achieved an 87% graduation rate, followed by an increase in 2016 to 90%. Additionally, for 2016 we achieved a CCRPI score of 78%, exceeding the state CCRPI score of 76%. For the last two years, we have shown a positive trend in performance in the following areas: CCRPI (from 2015-2016, 75%-78%) graduation rate (from 2015-2016, 87%-91%), Biology (from 2015-2016, 34%-58%), Coordinate Algebra (from 2015-2016, 42%-50%), Economics (from 2015-2016, 52%-60%), 9th Grade Literature (from 2015-2016, 58%-59%), and American Literature (from 2015-2016, 51%-60%). The overall highest areas of achievement on EOCs are in US History (62% Developing Learners or above) and American Literature (60% Developing Learners or above). Our graduation rate is 91%. Upon disaggregating our data, we discovered that the White subgroup has shown a steady trend toward increasing performance. Our English Language Learners are illustrating modest improvement. In 2015, they did not meet the expected level of performance in seven areas and met subgroup – but not state – performance targets in two areas. In 2016, they met the state performance target in one area (graduation rate), subgroup performance targets in three areas, and reduced the number of areas where they did not meet the expected level of performance from seven to five. MAP assessment data reports, SLDS data, the recently released College and Career Readiness Performance Index (CCRPI), EOC summary reports, and graduation rate reports are consistent with findings from other data sources.
A31: 3. What does the data analysis and/or comprehensive needs assessment tell you about the school's gaps or opportunities for improvement? Based on the analysis, provide a narrative that describes the trend data as the rationale for identification of the gaps or opportunities for improvement (no charts or graphs).
A32: Areas that need improvement include attendance; achievement in ELA, math, science, and social studies; and English language proficiency. There has been a 38% decrease in the number of students absent from school six or less days over the past three years (2014 - 94%; 2015 - 60%; 2016 - 57%). Because there was a change in assessments from Georgia End-of-Course Tests to Georgia Milestones EOC, three consecutive year data is not available for core achievement. However, opportunities for improvement are still needed in all core content areas, although little to no improvements were made. On the 2014 Literature Composition 9 End-of-Course Test (EOCT), 79% of the students met or exceeded the standards. In 2016, the overall goal of a 3% increase for students who met or exceeded the Literature Composition 9 EOC was not met; there was a 1% increase on the Literature Composition 9 EOC from 2015 to 2016, 58% and 58.583% respectively. There is a Lit/Comp 9 opportunity for improvement because approximately 42% of the students are beginning learners. On the 2014 American Literature EOCT, 88% of the students met or exceeded the standards. In 2016, the overall goal of a 3% increase for students who met or exceeded the American Literature EOC was met; there was a 9% increase on the American Literature EOC from 2015 to 2016, 51% and 60.090% respectively. On the 2014 Coordinate Algebra EOCT, 25% of the students met or exceeded the standards. In 2016, the overall goal of a 3% increase for students who met or exceeded the Coordinate Algebra EOC was met; there was a 7% increase from 2015 to 2016, 42% and 50% respectively. Although the goal was met, approximately 51% of the students are still beginning learners. On the 2014 Analytic Geometry EOCT, 37% of the students met or exceeded the standards. In 2016, the overall goal of a 3% increase for students who met or exceeded the Analytic Geometry EOC was not met; there was a 3% decrease on the Analytic Geometry EOC from 2015 to 2016, 51% and 47% respectively. Beginning learners in Analytic Geometry are approximately 53% of the students. On the 2014 Biology EOCT, 59% of the students met or exceeded the standards. In 2016, the overall goal of a 3% increase for students who met or exceeded the Biology EOC was met; there was a 27% increase from 2015 to 2016, 34% and 58% respectively. Although the goal was met, approximately 43% of the students are still beginning learners. On the 2014 Physical Science EOCT, 66% of the students met or exceeded the standards. In 2016, the overall goal of a 3% increase for students who met or exceeced the Physical Science EOCT was met; there was an 11% increase from 2015 to 2016, 21% and 31% respectively. Although the goal was met, approximately 69% of the students are still beginning learners. On the 2014 US History EOCT, 70% of the students met or exceeded the standards. In 2016, the overall goal of a 3% increase for students who met or exceeded the US History EOC was not met; there was a 1% decrease from 2015 to 2016, 63% and 62% respectively. Although the goal was met, approximately 38% of the students are beginning learners. On the 2014 Economics EOCT, 79% of the students met or exceeded the standards. In 2016, the overall goal of a 3% increase for students who met or exceeded the Economics EOC was met; there was a 7% increase from 2015 to 2016, 52% and 60% respectively. Although the goal was met, approximately 41% of the students are beginning learners. On the 2017 WIDA Access for ELLs assessment, 220 out of 269 ELL students tested (82%) performed at level 3 or below (developing, emerging, and entering). On the ACCESS test, 53 students (34%), 40 students (25%), and 25 students (16%) in 9th Grade were developing, emerging, and entering respectively. In 10th Grade, 34 students (50%), 16 students (24%), and 1 student (7%) were developing, emerging, and entering respectively. In 11th Grade, 20 students (61%) and 9 students (27%) were developing and emerging respectively. In 12th Grade, 8 students (33%), 9 students (38%), and 1 student (4%) were developing, emerging, and entering respectively. In 2016, 122 out of 232 ELL students tested (53%) peformed at level 3 or below (developing, emerging, and entering). In 9th Grade, 31 students (25%), 28 students (22%), and 9 students (7%) were developing, emerging, and entering respectively. In 10th Grade, 18 students (35%) and 5 students (10%) were developing and emerging respectively. In 11th Grade, 12 students (33%), 7 students (19%) and 2 students (6%) were developing, emerging, and entering respectively. In 12th Grade, 4 students (17%), 5 students (22%), and 1 student (4%) were developing, emerging, and entering respectively.
A45: 4. What data are missing, and how will you go about collecting this information for future use?
A46: 2017 Georgia Milestones Data 2017 CCRPI Data (Overall Scores, Achievement, School Climate, Graduation Rate, CTAE Pathway Completers) Perception Data (Parents, Teachers, Students)
A59: From the data analysis, what are the school's priority areas?
A61: Priority Area 1:
A62: Improve Student Lexile Scores
A65: Priority Area 2:
A66: Improve math proficiency
A69: Priority Area 3:
A70: Improve student attendance to six or less absences
A73: Priority Area 4:
A77: Priority Area 5:

Sheet Data Analysis B (hidden)
A1: SUMMARY OF SCHOOL DATA ANALYSIS B AND/OR COMPREHENSIVE NEEDS ASSESSMENT
A3: 1. What does an analysis of your school data and/or a comprehensive needs assessment tell you about the school's strengths?
A17: 2. What does the data analysis and/or comprehensive needs assessment tell you about the school's gaps or opportunities for improvement?
A31: 3. What data is missing, and how will you go about collecting this information for future use?
A47: Priority Area 1:
A51: Priority Area 2:
A55: Priority Area 3:
A59: Priority Area 4:
A63: Priority Area 5:

Sheet Data Lists (hidden)
R1: Pay_Table
A2: You may select more than one component from the following components - Components 1-13 are required | B2: Title I | C2: Select budget category from drop down menu | D2: FOR TITLE I FOCUS AND PRIORITY SCHOOLS ONLY - Select Georgia Performance Standard | E2: Select budget category from drop down menu | G2: Select budget category from drop down menu | I2: Select from drop down menu - you may select more than one | K2: Select from drop down menu | L2: Select a budget category | M2: Select a budget category | N2: Select a budget category | O2: Select from drop down menu - you may select more than one | P2: Select from Drop down menu | Q2: Activities for At-Risk Students | R2: 14.7 | AA2: Yes
A3: 1) Convene a Title I Annual public meeting | B3: Focus | C3: Computer Software & Supplies | D3: Curriculum 1: Systemic Collaborative Planning Process | E3: Computer Software & Supplies | G3: Computer Software & Supplies | I3: Schoolwide Reform Strategies (TA & SWP) | K3: Reading | L3: Parent - Food Purchases | M3: Advertising Fees | N3: Computer Equipment | O3: Provide strong leadership. | P3: Tutor | Q3: Scientifically-Based Reform Strategies | R3: 35
A4: 2) Offer a flexible number of meetings | C4: Contracted Services - Supplemental | D4: Curriculum 3: Intent and Rigor of Standards | E4: Contracted Services - Supplemental | G4: Contracted Services - Supplemental | I4: High-quality and ongoing PD for teachers, principals, and paras - (TA & SWP) | K4: Math | L4: Parent - Professional Development | M4: Computer Equipment | N4: Computer Hardware | O4: Ensure teachers are effective and able to improve instruction. | P4: Salary - other Assignment | Q4: Highly Qualified Staff
A5: 3) Involve parents in an organized, ongoing, and timely way in the planning, review, and improvement of Title I programs and Schoolwide program plans | C5: Contracted Repairs & Maintenance - Equipment | D5: Assessment 2: Balanced System of Assessments | E5: Contracted Repairs & Maintenance - Equipment | G5: Contracted Repairs & Maintenance - Equipment | I5: Strategies to attract teachers that meet state determined professional qualifications to high-need schools | K5: Reading & Math | L5: Parent - Supplies & Materials | M5: Computer Hardware | N5: Computer Repair | O5: Redesign the school day, week or year to include additional time for student learning and teacher collaboration. | Q5: Effective Instruction
A6: 4) Provide timely information to parents through various methods | C6: Supplies & Materials | D6: Assessment 3: Common Assessments | E6: Field Trips | G6: Library Books | I6: Transition Activities (PreK-K; 5th-6th; 8th-9th) | L6: Participant Stipends | M6: Computer Repair | N6: Computer Software & Supplies | O6: Strengthen the school's instructional program. | Q6: Student Assessments
A7: 5) Provide regular opportunities for parents to meet with school staff | C7: Printing & Binding | D7: Instruction 4: Research-based Instructional Practices | E7: Library Books | G7: Membership Dues & Fees | I7: Including teachers in decisions regarding the use of assessments | L7: Postage | M7: Computer Software & Supplies | N7: EEA - Additional Duty | O7: Use data to inform instruction. | Q7: Family Engagement
A8: 6) Provide for parent comments and feedback on the content of the Schoolwide program plan | C8: Field Trips | D8: Instruction 8: Students monitor own Learning | E8: Membership Dues & Fees | G8: Parent Contracted Services | I8: Activities for children experiencing difficulty | L8: Printing & Binding Fees | M8: Contracted Services | N8: Membership Dues/Fees | O8: Improve school safety and discipline and address other non-academic factors that impact student achievement. | Q8: Select from drop down menu, - you may select more than one
A9: 7) Develop School-Parent compacts | C9: Library Books | D9: Instruction 9: Data-driven Interventions | E9: Furniture and Equipment - Inventoried | G9: Parent - Instructor Stipend | I9: Coordination & Integration of Federal, State, and Local Services - (TA & SWP) | M9: Contracted Transportation | N9: Participant Stipends | O9: Provide ongoing mechanisms for family and community engagement.
A10: 8) Provide parent assistance on understanding state academic content standards and student academic achievement standards, monitoring, and progress | C10: Membership Dues & Fees | D10: Professional Learning 6: Monitors impact of PL | E10: Parent - Printing & Binding | G10: Parent - Other Food Purchases | I10: TA ONLY - Description of the method by which children with the greatest need are selected | M10: Curriculum Development EEA | N10: Staff Development | O10: Implement one of the four School Improvement Grant (SIG) models.
A11: 9) Provide materials and training to help parents work with their children to improve achievement. | C11: Parent - Contracted Services | D11: Leadership 6: Data-driven Leadership Team | E11: Pupil Transportation - Contracted | G11: Parent - Postage | I11: TA ONLY - Process for reviewing participating students' progress and evaluating and revising the program to support students' progress to meet the state content and performance standards.– (TA Only) | M11: EEA - Additional Duty | N11: Substitute Pay - Staff Development
A12: 10) Educate school personnel in the value and utility of contributions of parents | C12: Parent - Instructor Stipend | D12: Planning and Organization 1: Common Vision and Mission | E12: Salary - Additional Responsibilities | G12: Parent - Professional Development | I12: TA ONLY - Procedures for annual assessment of students for meeting state and local expectations – (TA Only) | M12: Field Trips
A13: 11) Coordinate and integrate parent involvement programs and activities | C13: Parent - Other Food Purchases | D13: Planning and Organization 2: Data-driven School Improvement Plan | E13: Salary - Pupil Transportation - Bus Driver | G13: Parent - Supplies & Materials | M13: Furniture Capitalized
A14: 12) Ensure that information is clear and understandable for parents, translate as needed | C14: Parent - Postage | D14: Planning and Organization 3: Monitors and Adjusts SIP | E14: Salary - Other Assignment Curriculum Development | G14: Furniture and Equipment - Inventoried | M14: Furniture Purchases
A15: 13) Provide opportunities for parents with limited English proficiency, parents with disabilities, and parents of migratory children | C15: Parent - Professional Development | E15: Salary - Substitute Pay (Not Professional Development) | G15: Furniture and Equipment - Capitalized | M15: Library Books
C16: Parent - Supplies & Materials | E16: Salary - Substitute Pay (Professional Development) | G16: Parent - Printing & Binding | M16: Membership Dues/Fees
C17: Parent - Printing & Binding | E17: Staff Dev Instructor (Stipend) | G17: Pupil Transportation - Contracted | M17: Mileage Reimbursement
C18: Furniture and Equipment - Inventoried | E18: Staff Dev Participant (Stipend) | G18: Salary - Pupil Transportation - Bus Driver | M18: Mobile Communication Costs
C19: Extended Year/Day Teacher | E19: Staff Dev/Workshop Expenses | G19: Extended Year/Day Supplies & Materials | M19: Parent - Food Purchases
C20: Pupil Transportation - Contracted | E20: Stipend - Planning Period | G20: Extended Day Snacks | M20: Parent - Professional Development
C21: Salary - Additional Responsibilities | E21: Extended Year/Day Supplies & Materials | M21: Parent - Supplies & Materials
C22: Salary - Pupil Transportation - Bus Driver | E22: Supplies & Materials | M22: Participant Stipends
C23: Salary - Other Assignment Curriculum Development | E23: Extended Day Snacks | M23: Postage
C24: Salary - Substitute Pay (Not Professional Development) | M24: Printing & Binding Fees
C25: Salary - Substitute Pay (Professional Development) | M25: Salary - After Hours Tutors
C26: Staff Dev Instructor (Stipend) | M26: Salary - Daytime Tutor
C27: Staff Dev Participant (Stipend) | M27: Staff Development
C28: Staff Dev/Workshop Expenses | M28: Substitute Pay - Not PD
C29: Stipend - Planning Period | M29: Substitute Pay - Staff Development
C30: Extended Year/Day Supplies & Materials | M30: Supplies & Materials
C31: Extended Day Snacks | M31: Telephones
M32: Rental and Lease
A40: Click here and select the area of the DCSD Strategic Plan from the dropdown menu
A41: DCSD Goal Area I: Student Success with Equity and Access
A42: DCSD Goal Area II: Stakeholder Engagement
A43: DCSD Goal Area III: Staff Efficacy and Excellence
A44: DCSD Goal Area IV: Internal and External Communications
A45: DCSD Goal Area V: Organizational Effectiveness and Efficiency
A60: Select from drop down menu
A61: Daytime
A62: After School
A65: Select from drop down menu
A66: Yes
A67: No

Sheet Schools (hidden)
A1: SchoolName | B1: School | C1: SchoolType | D1: SchoolNumber | E1: Region | F1: SchoolAddress | G1: Title1type
A2: Allgood Elementary School | B2: 108 | C2: E | D2: 2050 | E2: 3 | F2: 659 Allgood Road,Stone Mountain,GA 30083 | G2: SW
A3: Arabia Mountain High School | B3: 503 | C3: H | D3: 0610 | E3: 4 | F3: 6610 Browns Mill Road,Lithonia,GA 30038 | G3: TA
A4: Ashford Park Elementary School | B4: 113 | C4: E | D4: 3050 | E4: 1 | F4: 2968 Cravenridge Drive NE,Atlanta,GA 30319 | G4: N
A5: Austin Elementary School | B5: 118 | C5: E | D5: 0175 | E5: 1 | F5: 5435 Roberts Drive,Atlanta,GA 30338 | G5: N
A6: Avondale Elementary School | B6: 120 | C6: E | D6: 5050 | E6: 2 | F6: 8 Lakeshore Drive,Avondale Estates,GA 30002 | G6: SW
A7: Avondale High School | B7: 508 | C7: X | D7: 508 | E7: 99 | F7: 1192 Clarendon Avenue,Avondale Estates,GA 30002 | G7: N
A8: Avondale Middle School | B8: 507 | C8: X | D8: 507 | E8: 99 | F8: 3131 Old Rockbridge Road,Avondale Estates,GA 30002 | G8: N
A9: Barack H Obama Elem Magnet School of Technology | B9: 160 | C9: E | D9: 1103 | E9: 5 | F9: 797 Fayetteville Road, SE,Atlanta,GA 30316 | G9: TA
A10: Bethune Middle School | B10: 584 | C10: M | D10: 0401 | E10: 5 | F10: 5200 Covington Highway,Decatur,GA 30035 | G10: SW
A11: Bob Mathis Elementary School | B11: 259 | C11: E | D11: 0475 | E11: 4 | F11: 3505 Boring Road,Decatur,GA 30034 | G11: SW
A12: Briar Vista Elementary School | B12: 133 | C12: E | D12: 4051 | E12: 2 | F12: 1131 Briar Vista Terrace NE,Atlanta,GA 30324 | G12: SW
A13: Briarlake Elementary School | B13: 132 | C13: E | D13: 3051 | E13: 2 | F13: 3590 Lavista Road,Decatur,GA 30033 | G13: N
A14: Brockett Elementary School | B14: 136 | C14: E | D14: 1052 | E14: 2 | F14: 1855 Brockett Road,Tucker,GA 30084 | G14: SW
A15: Browns Mill Elementary School | B15: 138 | C15: E | D15: 0191 | E15: 4 | F15: 4863 Browns Mill Road,Lithonia,GA 30038 | G15: SW
A16: Canby Lane Elementary School | B16: 145 | C16: E | D16: 3052 | E16: 5 | F16: 4150 Green Hawk Trail,Decatur,GA 30035 | G16: SW
A17: Cary Reynolds Elementary Sch | B17: 325 | C17: E | D17: 2065 | E17: 1 | F17: 3497 Pine Street,Doraville,GA 30340 | G17: SW
A18: Cedar Grove Elementary School | B18: 148 | C18: E | D18: 0275 | E18: 5 | F18: 2330 River Road,Ellenwood,GA 30294 | G18: SW
A19: Cedar Grove High School | B19: 519 | C19: H | D19: 0172 | E19: 5 | F19: 2360 River Road,Ellenwood,GA 30294 | G19: SW
A20: Cedar Grove Middle School | B20: 518 | C20: M | D20: 0200 | E20: 5 | F20: 2300 Wildcat Road,Decatur,GA 30034 | G20: SW
A21: Chamblee Charter High School | B21: 522 | C21: H | D21: 5052 | E21: 1 | F21: 3688 Chamblee Dunwoody Road,Chamblee,GA 30341 | G21: TA
A22: Chamblee Middle School | B22: 521 | C22: M | D22: 0406 | E22: 1 | F22: 3601 Sexton Woods Drive,Atlanta,GA 30341 | G22: N
A23: Champion Theme Middle School | B23: 582 | C23: M | D23: 0507 | E23: 3 | F23: 5265 Mimosa Drive,Stone Mountain,GA 30083 | G23: SW
A24: Chapel Hill Elementary School | B24: 147 | C24: E | D24: 1053 | E24: 4 | F24: 3536 Radcliffe Blvd,Decatur,GA 30034 | G24: SW
A25: Chapel Hill Middle School | B25: 523 | C25: M | D25: 0193 | E25: 4 | F25: 3535 Dogwood Farm Road,Decatur,GA 30034 | G25: SW
A26: Chesnut Elementary School | B26: 152 | C26: E | D26: 3053 | E26: 1 | F26: 4576 N Peachtree Road,Atlanta,GA 30338 | G26: N
A27: Clarkston High School | B27: 525 | C27: H | D27: 4053 | E27: 3 | F27: 618 North Indian Creek Drive,Clarkston,GA 30021 | G27: SW
A28: Clifton Elementary School | B28: 154 | C28: E | D28: 5053 | E28: 5 | F28: 3132 Clifton Church Road SE,Atlanta,GA 30316 | G28: SW
A29: Columbia Elementary School | B29: 156 | C29: E | D29: 1054 | E29: 5 | F29: 3230 Columbia Woods Drive,Decatur,GA 30032 | G29: SW
A30: Columbia High School | B30: 527 | C30: H | D30: 2054 | E30: 5 | F30: 2106 Columbia Drive,Decatur,GA 30032 | G30: SW
A31: Columbia Middle School | B31: 526 | C31: M | D31: 0301 | E31: 5 | F31: 3001 Columbia Drive,Decatur,GA 30034 | G31: SW
A32: Coralwood Diagnostic Center | B32: 22 | C32: E | D32: 5016 | E32: 2 | F32: 2477 Coralwood Dr.,Decatur,GA 30033 | G32: N
A33: Cross Keys High School | B33: 529 | C33: H | D33: 4054 | E33: 1 | F33: 1626 N Druid Hills Road NE,Atlanta,GA 30319 | G33: SW
A34: DeKalb Academy of Tech/Envir | B34: 638 | C34: E | D34: 1010 | E34: 3 | F34: 1492 Kelton Drive,Stone Mountain,GA 30083 | G34: N
A35: DeKalb Alternative Night | B35: 548 | C35: X | D35: 548 | E35: 99 | F35: 5855 Memorial Drive,Stone Mountain,GA 30083 | G35: N
A36: DeKalb Alternative School | B36: 546 | C36: H | D36: 0500 | E36: 5 | F36: 5855 Memorial Drive,Stone Mountain,GA 30083 | G36: SW
A37: DeKalb Early College Academy | B37: 506 | C37: H | D37: 0407 | E37: 3 | F37: 1701 Mountain Industrial Blvd.,Stone Mountain,GA 30083 | G37: SW
A38: DeKalb HS of Technology North | B38: 609 | C38: X | D38: 609 | E38: 99 | F38: 1995 Womack Road,Atlanta,GA 30338 | G38: N
A39: DeKalb HS of Technology South | B39: 623 | C39: V | D39: 6004 | E39: 5 | F39: 3303 Panthersville Road,Decatur,GA 30034 | G39: N
A40: DeKalb PATH Academy | B40: 636 | C40: M | D40: 0705 | E40: 1 | F40: 3007 Hermance Drive,Atlanta,GA 30319 | G40: SW
A41: DeKalb Preparatory Academy | B41: 641 | C41: E | D41: 0113 | E41: 5 | F41: 1402 Austin Drive,Decatur,GA 30032 | G41: SW
A42: DeKalb School of the Arts | B42: 501 | C42: H | D42: 0410 | E42: 2 | F42: 1192 Clarendon Avenue,Avondale Estates,GA 30002 | G42: N
A43: DeKalb Transition Academy | B43: 630 | C43: X | D43: 630 | E43: 99 | F43: 2670 Old Wesley Chapel Road,Decatur,GA 30034 | G43: N
A44: Destiny Achievers Academy | B44: 596 | C44: H | D44: 0112 | E44: 4 | F44: 3595 Linecrest Road,Ellenwood,GA 30294 | G44: SW
A45: DOLA During the Day | B45: 597 | C45: H | D45: 8597 | E45: 1 | F45: 2383 N Druid Hills Rd NE,Atlanta,GA 30329 | G45: N
A46: DOLA-Credit Recovery | B46: 600 | C46: H | D46: 6001 | E46: 1 | F46: 2383 N. Druid Hills Rd.,Atlanta,GA 30329 | G46: N
A47: DOLA-Tuition | B47: 599 | C47: H | D47: 8599 | E47: 1 | F47: 2383 N Druild Hills Rd NE,Atlanta,GA 30329 | G47: N
A48: Dresden Elementary School | B48: 176 | C48: E | D48: 1055 | E48: 1 | F48: 2449 Dresden Drive,Atlanta,GA 30341 | G48: SW
A49: Druid Hills High School | B49: 533 | C49: H | D49: 2055 | E49: 2 | F49: 1798 Haygood Drive NE,Atlanta,GA 30307 | G49: SW
A50: Druid Hills Middle School | B50: 573 | C50: M | D50: 0897 | E50: 2 | F50: 3100 Mount Olive Drive,Decatur,GA 30033 | G50: SW
A51: Dunaire Elementary School | B51: 178 | C51: E | D51: 3055 | E51: 3 | F51: 651 S Indian Creek Drive,Stone Mountain,GA 30083 | G51: SW
A52: Dunwoody Elementary | B52: 180 | C52: E | D52: 0214 | E52: 1 | F52: 1923 Womack Rd,Dunwoody,GA 30338 | G52: N
A53: Dunwoody High School | B53: 535 | C53: H | D53: 5055 | E53: 1 | F53: 5035 Vermack Road,Dunwoody,GA 30338 | G53: N
A54: Eagle Woods Academy | B54: 24 | C54: H | D54: 0024 | E54: 3 | F54: 5931 Shadow Rock Drive,Lithonia,GA 30058 | G54: N
A55: East DeKalb Special Facilities | B55: 628 | C55: H | D55: 0503 | E55: 99 | F55: 5835 Memorial Dr.,Stone Mountain,GA 30083 | G55: N
A56: East DeKalb Special Services_Private | B56: 629 | C56: H | D56: 0629 | E56: 99 | F56: 5839 Memorial Dr.,Stone Mountain,GA 30083 | G56: N
A57: Edward L Bouie Sr Elementary | B57: 342 | C57: E | D57: 0297 | E57: 4 | F57: 5100 Rock Springs Road,Lithonia,GA 30038 | G57: SW
A58: Eldridge L Miller Elementary | B58: 257 | C58: E | D58: 0181 | E58: 3 | F58: 919 Martin Rd,Stone Mountain,GA 30088 | G58: SW
A59: Dekalb Elementary School of the Arts | B59: 102 | C59: E | D59: 1050 | E59: 2 | F59: 3131 Old Rockbridge Road,Avondale Estates,GA 30002 | G59: SW
A60: Elizabeth Andrews High School | B60: 625 | C60: H | D60: 0810 | E60: 5 | F60: 1701 Mountain Industrial Blvd,Stone Mountain,GA 30083 | G60: SW
A61: Evansdale Elementary School | B61: 185 | C61: E | D61: 1056 | E61: 2 | F61: 2914 Evans Woods Drive,Atlanta,GA 30340 | G61: SW
A62: Fairington Elementary School | B62: 187 | C62: E | D62: 0375 | E62: 4 | F62: 5505 Phillip Bradley Drive,Lithonia,GA 30038 | G62: SW
A63: Fernbank Elementary School | B63: 190 | C63: E | D63: 2056 | E63: 2 | F63: 157 Heaton Park Drive,Atlanta,GA 30307 | G63: TA
A64: Fernbank Science Center | B64: 660 | C64: H | D64: 6010 | E64: 1 | F64: 156 Heaton Park Drive, NE,Atlanta,GA 30307 | G64: N
A65: Flat Rock Elementary School | B65: 186 | C65: E | D65: 0107 | E65: 4 | F65: 4603 Evans Mill Road,Lithonia,GA 30038 | G65: SW
A66: Flat Shoals Elementary School | B66: 195 | C66: E | D66: 3056 | E66: 5 | F66: 3226 Flat Shoals Road,Decatur,GA 30034 | G66: SW
A67: Flex Academy | B67: 602 | C67: H | D67: 0602 | E67: 1 | F67: 2652 Lawrenceville Hwy,Decatur,GA 30033 | G67: N
A68: Flex Academy Credit Recovery | B68: 601 | C68: H | D68: 0601 | E68: 1 | F68: 2652 Lawrenceville Hwy,Decatur,GA 30033 | G68: N
A69: Flex Academy Tuition | B69: 603 | C69: H | D69: 0603 | E69: 1 | F69: 2652 Lawrenceville Hwy,Decatur,GA 30033 | G69: N
A70: Forrest Hills Elementary | B70: 200 | C70: E | D70: 200 | E70: 99 | F70: 923 Forrest Boulevard,Decatur,GA 30030 | G70: N
A71: Freedom Middle School | B71: 524 | C71: M | D71: 0201 | E71: 3 | F71: 505 South Hairston Road,Stone Mountain,GA 30088 | G71: SW
A72: Gateway to College Academy | B72: 637 | C72: H | D72: 0606 | E72: 4 | F72: 555 N Indian Creek Drive,Clarkston,GA 30021 | G72: N
A73: GLOBE Academy Charter School | B73: 645 | C73: E | D73: 0314 | E73: 2 | F73: 2225 Heritage Drive,Atlanta,GA 30345 | G73: N
A74: Hambrick Elementary School | B74: 212 | C74: E | D74: 3057 | E74: 3 | F74: 1101 Hambrick Road,Stone Mountain,GA 30083 | G74: SW
A75: Hawthorne Elementary School | B75: 213 | C75: E | D75: 5057 | E75: 2 | F75: 2535 Caladium Drive, NE,Atlanta,GA 30345 | G75: TA
A76: Henderson Middle School | B76: 549 | C76: M | D76: 0797 | E76: 2 | F76: 2830 Henderson Mill Road,Atlanta,GA 30341 | G76: SW
A77: Henderson Mill Elementary | B77: 215 | C77: E | D77: 2058 | E77: 2 | F77: 2408 Henderson Mill Road, NE,Atlanta,GA 30345 | G77: SW
A78: Hightower Elementary School | B78: 218 | C78: E | D78: 4058 | E78: 1 | F78: 4236 Tilly Mill Road,Atlanta,GA 30360 | G78: SW
A79: Huntley Hills Elementary | B79: 220 | C79: E | D79: 5058 | E79: 1 | F79: 2112 Seaman Circle,Atlanta,GA 30341 | G79: SW
A80: Idlewood Elementary School | B80: 225 | C80: E | D80: 1059 | E80: 2 | F80: 1484 Idlewood Road,Tucker,GA 30084 | G80: SW
A81: Indian Creek Elementary School | B81: 230 | C81: E | D81: 2059 | E81: 3 | F81: 727 N Indian Creek Drive,Clarkston,GA 30021 | G81: SW
A82: Intensive English Program | B82: 680 | C82: C | D82: 0680 | E82: 1 | F82: 3318 Midway Road,Decatur, 30032 | G82: N
A83: International Center | B83: 716 | C83: M | D83: 1100 | E83: 1 | F83: 3318 Midway Road,Decatur,GA 30032 | G83: SW
A84: International Community School | B84: 635 | C84: E | D84: 0805 | E84: 2 | F84: 2418 Wood Trail Lane,Decatur,GA 30033 | G84: SW
A85: John Lewis Elementary School | B85: 140 | C85: E | D85: 1102 | E85: 1 | F85: 2383 North Druid HIlls Rd NE,Atlanta,GA 30329 | G85: TA
A86: Jolly Elementary School | B86: 232 | C86: E | D86: 3059 | E86: 3 | F86: 1070 Otello Avenue,Clarkston,GA 30021 | G86: SW
A87: Kelley Lake Elementary School | B87: 235 | C87: E | D87: 4059 | E87: 5 | F87: 2590 Kelly Lake Road,Decatur,GA 30032 | G87: SW
A88: Kingsley Elementary School | B88: 236 | C88: E | D88: 5059 | E88: 1 | F88: 2051 Brendon Drive,Atlanta,GA 30338 | G88: TA
A89: Kittredge Magnet Elementary | B89: 237 | C89: E | D89: 0288 | E89: 1 | F89: 1663 E Nancy Creek Dr., NE,Atlanta,GA 30319 | G89: N
A90: Lakeside High School | B90: 555 | C90: H | D90: 3060 | E90: 2 | F90: 3801 Briarcliff Road, NE,Atlanta,GA 30345 | G90: TA
A91: Laurel Heights | B91: 626 | C91: H | D91: 0707 | E91: 6 | F91: 934 Briarcliff Road,Atlanta,GA 30306 | G91: SW
A92: Laurel Ridge Elementary | B92: 250 | C92: E | D92: 4060 | E92: 2 | F92: 1215 Balsam Drive,Decatur,GA 30033 | G92: TA
A93: Leadership Preparatory Academy | B93: 639 | C93: E | D93: 0311 | E93: 4 | F93: 6400 Woodrow Road,Lithonia,GA 30038 | G93: SW
A94: Lithonia High School | B94: 559 | C94: H | D94: 0202 | E94: 4 | F94: 2440 Phillips Road,Lithonia,GA 30058 | G94: SW
A95: Lithonia Middle School | B95: 558 | C95: M | D95: 0203 | E95: 4 | F95: 2451 Randall Avenue,Lithonia,GA 30058 | G95: SW
A96: Livsey Elementary School | B96: 256 | C96: E | D96: 1061 | E96: 2 | F96: 4137 Livsey Road,Tucker,GA 30084 | G96: TA
A97: Marbut Theme School | B97: 261 | C97: E | D97: 0197 | E97: 4 | F97: 5776 Marbut Road,Lithonia,GA 30058 | G97: SW
A98: Margaret Harris Comprehensive | B98: 15 | C98: C | D98: 0510 | E98: 1 | F98: 1634 Knob Hill Drive, NE,Atlanta,GA 30329 | G98: SW
A99: Martin Luther King Jr High Sch | B99: 574 | C99: H | D99: 0103 | E99: 4 | F99: 3991 Snapfinger Road,Lithonia,GA 30038 | G99: SW
A100: McLendon Elementary School | B100: 260 | C100: E | D100: 2061 | E100: 2 | F100: 3169 Hollywood Drive,Decatur,GA 30033 | G100: SW
A101: McNair Discovery Learning Acad | B101: 262 | C101: E | D101: 0409 | E101: 5 | F101: 2162 Second Ave.,Decatur,GA 30032 | G101: SW
A102: McNair High School | B102: 595 | C102: H | D102: 3070 | E102: 5 | F102: 1804 Bouldercrest Road, SE,Atlanta,GA 30316 | G102: SW
A103: McNair Middle School | B103: 544 | C103: M | D103: 1057 | E103: 5 | F103: 2190 Wallingford Road,Decatur,GA 30032 | G103: SW
A104: Meadowview Elementary School | B104: 266 | C104: E | D104: 3061 | E104: 5 | F104: 1879 Wee Kirk Road,Atlanta,GA 30316 | G104: SW
A105: Midvale Elementary School | B105: 270 | C105: E | D105: 2062 | E105: 2 | F105: 3836 Midvale Road,Tucker,GA 30084 | G105: SW
A106: Miller Grove High School | B106: 564 | C106: H | D106: 0105 | E106: 4 | F106: 2645 DeKalb Medical Parkway,Lithonia,GA 30058 | G106: SW
A107: Miller Grove Middle School | B107: 568 | C107: M | D107: 0597 | E107: 4 | F107: 2215 Miller Road,Decatur,GA 30035 | G107: SW
A108: Montclair Elementary School | B108: 278 | C108: E | D108: 4062 | E108: 1 | F108: 1680 Clairmont Place, NE,Atlanta,GA 30329 | G108: SW
A109: Montgomery Elementary School | B109: 284 | C109: E | D109: 5062 | E109: 1 | F109: 3995 Ashford Dunwoody Road,Atlanta,GA 30319 | G109: N
A110: Murphey Candler Elementary | B110: 146 | C110: E | D110: 4052 | E110: 4 | F110: 6775 S Goddard Road,Lithonia,GA 30038 | G110: SW
A111: Museum School_Avondale Estates | B111: 640 | C111: E | D111: 0215 | E111: 2 | F111: 923 Forrest Boulevard,Decatur,GA 30030 | G111: N
A112: Narvie J Harris Elementary | B112: 194 | C112: E | D112: 0100 | E112: 4 | F112: 3981 McGill Drive,Decatur,GA 30034 | G112: SW
A113: Oak Grove Elementary School | B113: 305 | C113: E | D113: 3063 | E113: 2 | F113: 1857 Oak Grove Road, NE,Atlanta,GA 30345 | G113: N
A114: Oak View Elementary School | B114: 306 | C114: E | D114: 0305 | E114: 5 | F114: 3574 Oakvale Road,Decatur,GA 30034 | G114: SW
A115: Oakcliff Elementary School | B115: 300 | C115: E | D115: 4063 | E115: 1 | F115: 3150 Willow Oak Way,Atlanta,GA 30340 | G115: SW
A116: Panola Way Elementary School | B116: 309 | C116: E | D116: 0188 | E116: 4 | F116: 2170 Panola Way Court,Lithonia,GA 30058 | G116: SW
A117: Peachcrest Elementary School | B117: 311 | C117: E | D117: 1101 | E117: 5 | F117: 1530 Joy Lane,Decatur,GA 30032 | G117: SW
A118: Peachtree Charter MS | B118: 565 | C118: M | D118: 0189 | E118: 1 | F118: 4664 N Peachtree Road,Atlanta,GA 30338 | G118: N
A119: Pine Ridge Elementary School | B119: 312 | C119: E | D119: 0190 | E119: 3 | F119: 750 Pine Ridge Dr,Stone Mountain,GA 30087 | G119: SW
A120: Pleasantdale Elementary School | B120: 315 | C120: E | D120: 3064 | E120: 2 | F120: 3695 N Lake Drive,Atlanta,GA 30340 | G120: SW
A121: Princeton Elementary School | B121: 345 | C121: E | D121: 0108 | E121: 3 | F121: 1321 South Deshon Road,Lithonia,GA 30058 | G121: SW
A122: Rainbow Elementary School | B122: 332 | C122: E | D122: 4064 | E122: 4 | F122: 2801 Kelley Chapel Road,Decatur,GA 30034 | G122: SW
A123: Redan Elementary School | B123: 320 | C123: E | D123: 5064 | E123: 3 | F123: 1914 Stone Mtn Lithonia Rd,Lithonia,GA 30058 | G123: SW
A124: Redan High School | B124: 567 | C124: H | D124: 0176 | E124: 3 | F124: 5247 Redan Road,Stone Mountain,GA 30088 | G124: SW
A125: Redan Middle School | B125: 566 | C125: M | D125: 0205 | E125: 3 | F125: 1775 Young Road,Lithonia,GA 30058 | G125: SW
A126: Robert Shaw Theme School | B126: 370 | C126: E | D126: 0399 | E126: 2 | F126: 385 Glendale Road,Scottdale,GA 30079 | G126: SW
A127: Rock Chapel Elementary School | B127: 340 | C127: E | D127: 3065 | E127: 3 | F127: 1130 Rock Chapel Road,Lithonia,GA 30058 | G127: SW
A128: Rockbridge Elementary | B128: 344 | C128: E | D128: 0272 | E128: 3 | F128: 445 Halwick Way,Stone Mountain,GA 30083 | G128: SW
A129: Rowland Elementary | B129: 348 | C129: E | D129: 4065 | E129: 5 | F129: 1317 S Indian Creek Drive,Stone Mountain,GA 30083 | G129: SW
A130: Sagamore Hills Elementary | B130: 350 | C130: E | D130: 5065 | E130: 2 | F130: 1865 Alderbrook Road,Atlanta,GA 30345 | G130: N
A131: Salem Middle School | B131: 569 | C131: M | D131: 0291 | E131: 4 | F131: 5333 Salem Road,Lithonia,GA 30058 | G131: SW
A132: Sequoyah Middle School | B132: 570 | C132: M | D132: 0290 | E132: 1 | F132: 3456 Aztec Road,Atlanta,GA 30340 | G132: SW
A133: Shadow Rock Center | B133: 11 | C133: E | D133: 0011 | E133: 3 | F133: 1040 Kingway Drive,Lithonia,GA 30058 | G133: SW
A134: Shadow Rock Elementary School | B134: 362 | C134: E | D134: 0293 | E134: 3 | F134: 1040 Kingway Drive,Lithonia,GA 30058 | G134: SW
A135: Smoke Rise Elementary School | B135: 398 | C135: E | D135: 3067 | E135: 2 | F135: 1991 Silver Hill Road,Stone Mountain,GA 30087 | G135: SW
A136: Snapfinger Elementary School | B136: 400 | C136: E | D136: 4067 | E136: 5 | F136: 1365 Snapfinger Road,Decatur,GA 30032 | G136: SW
A137: Southwest DeKalb High School | B137: 576 | C137: H | D137: 5067 | E137: 4 | F137: 2863 Kelley Chapel Road,Decatur,GA 30034 | G137: SW
A138: Stephenson High School | B138: 578 | C138: H | D138: 0497 | E138: 3 | F138: 701 Stephenson Road,Stone Mountain,GA 30087 | G138: SW
A139: Stephenson Middle School | B139: 579 | C139: M | D139: 0397 | E139: 3 | F139: 922 Stephenson Road,Stone Mountain,GA 30087 | G139: SW
A140: Stone Mill Elementary School | B140: 415 | C140: E | D140: 0575 | E140: 3 | F140: 4900 Sheila Lane,Stone Mountain,GA 30083 | G140: SW
A141: Stone Mountain Elementary | B141: 420 | C141: E | D141: 2068 | E141: 3 | F141: 6720 Memorial James B Rivers Dr,Stone Mountain,GA 30083 | G141: SW
A142: Stone Mountain High School | B142: 580 | C142: H | D142: 0276 | E142: 3 | F142: 4555 Central Drive,Stone Mountain,GA 30083 | G142: SW
A143: Stone Mountain Middle School | B143: 581 | C143: M | D143: 0506 | E143: 3 | F143: 4301 Sarr Parkway,Stone Mountain,GA 30083 | G143: SW
A144: Stoneview Elementary School | B144: 425 | C144: E | D144: 4068 | E144: 4 | F144: 2629 Huber Street,Lithonia,GA 30058 | G144: SW
A145: Tapestry Public Charter School | B145: 642 | C145: M | D145: 0315 | E145: 1 | F145: 3130 Raymond Drive,Atlanta,GA 30340 | G145: N
A146: Toney Elementary School | B146: 465 | C146: E | D146: 3069 | E146: 5 | F146: 2701 Oakland Terrace,Decatur,GA 30032 | G146: SW
A147: Towers High School | B147: 585 | C147: H | D147: 4069 | E147: 5 | F147: 3919 Brookcrest Circle,Decatur,GA 30032 | G147: SW
A148: Tucker High School | B148: 593 | C148: H | D148: 1070 | E148: 2 | F148: 5036 Lavista Road,Tucker,GA 30084 | G148: SW
A149: Tucker Middle School | B149: 592 | C149: M | D149: 0605 | E149: 2 | F149: 2160 Idlewood Road,Tucker,GA 30084 | G149: SW
A150: Vanderlyn Elementary School | B150: 484 | C150: E | D150: 0173 | E150: 1 | F150: 1877 Vanderlyn Drive,Atlanta,GA 30338 | G150: N
A151: Wadsworth Magnet School | B151: 139 | C151: E | D151: 0309 | E151: 5 | F151: 3039 Santa Monica Drive,Decatur,GA 30032 | G151: N
A152: Warren Technical School | B152: 624 | C152: V | D152: 624 | E152: 1 | F152: 3075 Alton Road,Atlanta,GA 30341 | G152: N
A153: Woodridge Elementary School | B153: 492 | C153: E | D153: 0675 | E153: 4 | F153: 4120 Cedar Ridge Trail,Stone Mountain,GA 30083 | G153: SW
A154: Woodward Elementary School | B154: 496 | C154: E | D154: 1071 | E154: 1 | F154: 3034 Curtis Drive, NE,Atlanta,GA 30319 | G154: SW
A155: Wynbrooke Elementary School | B155: 498 | C155: E | D155: 0102 | E155: 3 | F155: 440 Wicksbury Way,Stone Mountain,GA 30087 | G155: SW

Sheet BudgetPos (hidden)
A1: Position | B1: BudgetCode | C1: FND | D1: FN | E1: OBJ | F1: SO | G1: Project | H1: Loc | I1: Pgm
A3: Teacher, Title I | B3: =CONCATENATE(C3,"-",D3,"-",E3,"-",F3,"-",G3,"-",H3,"-",I3) -> 203-38-05-00-400203-593-1750 | C3: 203 | D3: 38 | E3: 05 | F3: 00 | G3: 400203 | H3: =CurrSchool -> 593 | I3: 1750
A4: Para, Title I | B4: 203-38-07-00-400203-593-1750 | C4: 203 | D4: 38 | E4: 07 | F4: 00 | G4: 400203 | H4: 593 | I4: 1750
A5: Parent Liasion, Title I | B5: 203-42-07-00-400203-593-1750 | C5: 203 | D5: 42 | E5: 07 | F5: 00 | G5: 400203 | H5: 593 | I5: 1750
A6: Data Clerk, Title I | B6: 203-46-03-00-400203-593-1750 | C6: 203 | D6: 46 | E6: 03 | F6: 00 | G6: 400203 | H6: 593 | I6: 1750
A7: Academic Coach | B7: 203-46-19-10-400203-593-1750 | C7: 203 | D7: 46 | E7: 19 | F7: 10 | G7: 400203 | H7: 593 | I7: 1750

Sheet BudgetCat (hidden)
A1: Code Description | B1: BudgetCode | C1: Fund | D1: Function | E1: Object | F1: Sub Object | G1: Project | H1: School Location | I1: Program | J1: Budget
A2: Teacher Salary | B2: =CONCATENATE(C2,"-",D2,"-",E2,"-",F2,"-",G2,"-",H2,"-",I2) -> 203-38-05-00-400203-593-1750 | C2: 203 | D2: 38 | E2: 05 | F2: 00 | G2: 400203 | H2: =CurrSchool -> 593 | I2: 1750
A3: Teacher and Paraprofessional Group Health | B3: 203-38-87-00-400203-593-1750 | C3: 203 | D3: 38 | E3: 87 | F3: 00 | G3: 400203 | H3: 593 | I3: 1750
A4: Teacher and Paraprofessional Retirement | B4: 203-38-74-00-400203-593-1750 | C4: 203 | D4: 38 | E4: 74 | F4: 00 | G4: 400203 | H4: 593 | I4: 1750
A5: Paraprofessional Salary | B5: 203-38-07-00-400203-593-1750 | C5: 203 | D5: 38 | E5: 07 | F5: 00 | G5: 400203 | H5: 593 | I5: 1750
A6: Substitutes for Certified Teacher Salaries | B6: 203-38-16-00-400203-593-1750 | C6: 203 | D6: 38 | E6: 16 | F6: 00 | G6: 400203 | H6: 593 | I6: 1750
A7: Afterschool/Daytime Tutorial | B7: 203-38-17-00-400203-593-1750 | C7: 203 | D7: 38 | E7: 17 | F7: 00 | G7: 400203 | H7: 593 | I7: 1750
A8: Instructional Alternative Benefits (Teacher,Para,Subs,Tutor) | B8: 203-38-89-00-400203-593-1750 | C8: 203 | D8: 38 | E8: 89 | F8: 00 | G8: 400203 | H8: 593 | I8: 1750
A9: Instructional Contracted Services | B9: 203-38-95-00-400203-593-1750 | C9: 203 | D9: 38 | E9: 95 | F9: 00 | G9: 400203 | H9: 593 | I9: 1750
A10: Instructional Contracted Services Teacher Salary (Charter Schools Only) | B10: 203-38-95-10-400203-593-1750 | C10: 203 | D10: 38 | E10: 95 | F10: 10 | G10: 400203 | H10: 593 | I10: 1750
A11: Instructional Supplies | B11: 203-38-53-00-400203-593-1750 | C11: 203 | D11: 38 | E11: 53 | F11: 00 | G11: 400203 | H11: 593 | I11: 1750
A12: Instructional Technology Supplies | B12: 203-38-53-10-400203-593-1750 | C12: 203 | D12: 38 | E12: 53 | F12: 10 | G12: 400203 | H12: 593 | I12: 1750
A13: Instructional Computer Software | B13: 203-38-53-05-400203-593-1750 | C13: 203 | D13: 38 | E13: 53 | F13: 05 | G13: 400203 | H13: 593 | I13: 1750
A14: Instructional Equipment | B14: 203-61-92-00-400203-593-1750 | C14: 203 | D14: 61 | E14: 92 | F14: 00 | G14: 400203 | H14: 593 | I14: 1750
A15: Instructional Computers | B15: 203-61-92-05-400203-593-1750 | C15: 203 | D15: 61 | E15: 92 | F15: 05 | G15: 400203 | H15: 593 | I15: 1750
A16: Instructional Books and Periodicals | B16: 203-38-62-00-400203-593-1750 | C16: 203 | D16: 38 | E16: 62 | F16: 00 | G16: 400203 | H16: 593 | I16: 1750
A17: PFE Facilitator Extra Activity | B17: 203-42-17-00-301203-593-1750 | C17: 203 | D17: 42 | E17: 17 | F17: 00 | G17: 301203 | H17: 593 | I17: 1750
A18: PFE Facilitator & Liasion Alternative Benefits | B18: 203-42-89-00-301203-593-1750 | C18: 203 | D18: 42 | E18: 89 | F18: 00 | G18: 301203 | H18: 593 | I18: 1750
A19: Parent Liaison Salary | B19: 203-42-07-00-301203-593-1750 | C19: 203 | D19: 42 | E19: 07 | F19: 00 | G19: 301203 | H19: 593 | I19: 1750
A20: Parent Liaisons Group Health | B20: 203-42-87-00-301203-593-1750 | C20: 203 | D20: 42 | E20: 87 | F20: 00 | G20: 301203 | H20: 593 | I20: 1750
A21: Parent Liaisons Teacher Retirement | B21: 203-42-74-00-301203-593-1750 | C21: 203 | D21: 42 | E21: 74 | F21: 00 | G21: 301203 | H21: 593 | I21: 1750
A22: Parent Liaisons Alternative Benefits | B22: 203-42-89-00-400203-593-1750 | C22: 203 | D22: 42 | E22: 89 | F22: 00 | G22: 400203 | H22: 593 | I22: 1750
A23: PFE Contracted Services (Charter Schools use for Parent Liasion) | B23: 203-42-95-00-301203-593-1750 | C23: 203 | D23: 42 | E23: 95 | F23: 00 | G23: 301203 | H23: 593 | I23: 1750
A24: PFE Communications | B24: 203-42-97-00-301203-593-1750 | C24: 203 | D24: 42 | E24: 97 | F24: 00 | G24: 301203 | H24: 593 | I24: 1750
A25: PFE Travel of Employees | B25: 203-42-33-00-301203-593-1750 | C25: 203 | D25: 42 | E25: 33 | F25: 00 | G25: 301203 | H25: 593 | I25: 1750
A26: PFE Registration Fees | B26: 203-42-36-00-301203-593-1750 | C26: 203 | D26: 42 | E26: 36 | F26: 00 | G26: 301203 | H26: 593 | I26: 1750
A27: PFE Other Purchased Services | B27: 203-42-95-05-301203-593-1750 | C27: 203 | D27: 42 | E27: 95 | F27: 05 | G27: 301203 | H27: 593 | I27: 1750
A28: PFE Supplies | B28: 203-42-53-00-301203-593-1750 | C28: 203 | D28: 42 | E28: 53 | F28: 00 | G28: 301203 | H28: 593 | I28: 1750
A29: PFE Computer Software | B29: =CONCATENATE(C29,"-",D29,"-",E29,"-",F29,"-",G29,"-",H29,"-",I29) -> 203-42-53-05-301203-593-1750 | C29: 203 | D29: 42 | E29: 53 | F29: 05 | G29: 301203 | H29: =CurrSchool -> 593 | I29: 1750
A30: PFE Technology Supplies | B30: 203-42-53-10-301203-593-1750 | C30: 203 | D30: 42 | E30: 53 | F30: 10 | G30: 301203 | H30: 593 | I30: 1750
A31: PFE Expendible Equipment | B31: 203-61-92-00-301203-593-1750 | C31: 203 | D31: 61 | E31: 92 | F31: 00 | G31: 301203 | H31: 593 | I31: 1750
A32: PFE Expendible Computer Equipment | B32: 203-61-92-05-301203-593-1750 | C32: 203 | D32: 61 | E32: 92 | F32: 05 | G32: 301203 | H32: 593 | I32: 1750
A33: PFE Books and Periodicals | B33: 203-42-62-00-301203-593-1750 | C33: 203 | D33: 42 | E33: 62 | F33: 00 | G33: 301203 | H33: 593 | I33: 1750
A34: PL Substitutes for Certified Teacher | B34: 203-46-16-00-400203-593-1750 | C34: 203 | D34: 46 | E34: 16 | F34: 00 | G34: 400203 | H34: 593 | I34: 1750
A35: PL Alternative Benefits (Subs, Stips, Academic Coach, Data Clerk) | B35: 203-46-89-00-400203-593-1750 | C35: 203 | D35: 46 | E35: 89 | F35: 00 | G35: 400203 | H35: 593 | I35: 1750
A36: PL Stipends | B36: 203-46-12-00-400203-593-1750 | C36: 203 | D36: 46 | E36: 12 | F36: 00 | G36: 400203 | H36: 593 | I36: 1750
A37: Academic Coach Salaries | B37: 203-46-19-10-400203-593-1750 | C37: 203 | D37: 46 | E37: 19 | F37: 10 | G37: 400203 | H37: 593 | I37: 1750
A38: Academic Coach & Data Clerk Group Health | B38: 203-46-87-00-400203-593-1750 | C38: 203 | D38: 46 | E38: 87 | F38: 00 | G38: 400203 | H38: 593 | I38: 1750
A39: Academic Coach & Data Clerk Teacher Retirement | B39: 203-46-74-00-400203-593-1750 | C39: 203 | D39: 46 | E39: 74 | F39: 00 | G39: 400203 | H39: 593 | I39: 1750
A40: Data Clerk Salary | B40: 203-46-03-00-400203-593-1750 | C40: 203 | D40: 46 | E40: 03 | F40: 00 | G40: 400203 | H40: 593 | I40: 1750
A41: PL Contracted Services (Charter Schools use for Academic Coach) | B41: 203-46-95-00-400203-593-1750 | C41: 203 | D41: 46 | E41: 95 | F41: 00 | G41: 400203 | H41: 593 | I41: 1750
A42: PL Travel of Employees | B42: 203-46-33-00-400203-593-1750 | C42: 203 | D42: 46 | E42: 33 | F42: 00 | G42: 400203 | H42: 593 | I42: 1750
A43: PL Registration Fees | B43: 203-46-36-00-400203-593-1750 | C43: 203 | D43: 46 | E43: 36 | F43: 00 | G43: 400203 | H43: 593 | I43: 1750
A44: PL Supplies | B44: 203-46-53-00-400203-593-1750 | C44: 203 | D44: 46 | E44: 53 | F44: 00 | G44: 400203 | H44: 593 | I44: 1750
A45: PL Computer Software | B45: 203-46-53-05-400203-593-1750 | C45: 203 | D45: 46 | E45: 53 | F45: 05 | G45: 400203 | H45: 593 | I45: 1750
A46: PL Books and Periodicals | B46: 203-46-62-00-400203-593-1750 | C46: 203 | D46: 46 | E46: 62 | F46: 00 | G46: 400203 | H46: 593 | I46: 1750
A47: Educational Media Books and Periodicals | B47: 203-46-62-05-400203-593-1750 | C47: 203 | D47: 46 | E47: 62 | F47: 05 | G47: 400203 | H47: 593 | I47: 1750
A48: Custodian Extra Activity | B48: 203-57-17-00-400203-593-1750 | C48: 203 | D48: 57 | E48: 17 | F48: 00 | G48: 400203 | H48: 593 | I48: 1750
A49: Custodian Alternative Benefits | B49: 203-57-89-00-400203-593-1750 | C49: 203 | D49: 57 | E49: 89 | F49: 00 | G49: 400203 | H49: 593 | I49: 1750
A50: Transportation Bus Driver Extra Activity | B50: 203-56-17-00-400203-593-1750 | C50: 203 | D50: 56 | E50: 17 | F50: 00 | G50: 400203 | H50: 593 | I50: 1750
A51: Transporation Bus Driver Alternative Benefits | B51: 203-56-89-00-400203-593-1750 | C51: 203 | D51: 56 | E51: 89 | F51: 00 | G51: 400203 | H51: 593 | I51: 1750
A52: Transportation Gas or Diesel Fuel | B52: 203-56-95-00-400203-593-1750 | C52: 203 | D52: 56 | E52: 95 | F52: 00 | G52: 400203 | H52: 593 | I52: 1750
A53: Transportation for Parents | B53: 203-56-95-10-400203-593-1750 | C53: 203 | D53: 56 | E53: 95 | F53: 10 | G53: 400203 | H53: 593 | I53: 1750
A54: Total | J54: =SUM(J2:J53) -> 0

Sheet BudgetDD (hidden)
A1: Code Description | B1: BudgetCode | C1: Fund | D1: Function | E1: Object | F1: Sub Object | G1: Project | H1: School Location | I1: Program
A2: Instructional Contracted Services | B2: =CONCATENATE(C2,"-",D2,"-",E2,"-",F2,"-",G2,"-",H2,"-",I2) -> 203-38-95-00-400203-593-1750 | C2: 203 | D2: 38 | E2: 95 | F2: 00 | G2: 400203 | H2: =CurrSchool -> 593 | I2: 1750
A3: Instructional Contracted Services Teacher Salary (Charter Schools Only) | B3: 203-38-95-10-400203-593-1750 | C3: 203 | D3: 38 | E3: 95 | F3: 10 | G3: 400203 | H3: 593 | I3: 1750
A4: Instructional Supplies | B4: 203-38-53-00-400203-593-1750 | C4: 203 | D4: 38 | E4: 53 | F4: 00 | G4: 400203 | H4: 593 | I4: 1750
A5: Instructional Technology Supplies | B5: 203-38-53-10-400203-593-1750 | C5: 203 | D5: 38 | E5: 53 | F5: 10 | G5: 400203 | H5: 593 | I5: 1750
A6: Instructional Computer Software | B6: 203-38-53-05-400203-593-1750 | C6: 203 | D6: 38 | E6: 53 | F6: 05 | G6: 400203 | H6: 593 | I6: 1750
A7: Instructional Equipment | B7: 203-61-92-00-400203-593-1750 | C7: 203 | D7: 61 | E7: 92 | F7: 00 | G7: 400203 | H7: 593 | I7: 1750
A8: Instructional Computers | B8: 203-61-92-05-400203-593-1750 | C8: 203 | D8: 61 | E8: 92 | F8: 05 | G8: 400203 | H8: 593 | I8: 1750
A9: Instructional Books and Periodicals | B9: 203-38-62-00-400203-593-1750 | C9: 203 | D9: 38 | E9: 62 | F9: 00 | G9: 400203 | H9: 593 | I9: 1750
A10: PFE Facilitator Extra Activity | B10: 203-42-17-00-301203-593-1750 | C10: 203 | D10: 42 | E10: 17 | F10: 00 | G10: 301203 | H10: 593 | I10: 1750
A11: PFE Contracted Services | B11: 203-42-95-00-301203-593-1750 | C11: 203 | D11: 42 | E11: 95 | F11: 00 | G11: 301203 | H11: =CurrSchool -> 593 | I11: 1750
A12: PFE Communications | B12: 203-42-97-00-301203-593-1750 | C12: 203 | D12: 42 | E12: 97 | F12: 00 | G12: 301203 | H12: 593 | I12: 1750
A13: PFE Travel of Employees | B13: 203-42-33-00-301203-593-1750 | C13: 203 | D13: 42 | E13: 33 | F13: 00 | G13: 301203 | H13: 593 | I13: 1750
A14: PFE Registration Fees | B14: 203-42-36-00-301203-593-1750 | C14: 203 | D14: 42 | E14: 36 | F14: 00 | G14: 301203 | H14: 593 | I14: 1750
A15: PFE Other Purchased Services | B15: 203-42-95-05-301203-593-1750 | C15: 203 | D15: 42 | E15: 95 | F15: 05 | G15: 301203 | H15: 593 | I15: 1750
A16: PFE Supplies | B16: 203-42-53-00-301203-593-1750 | C16: 203 | D16: 42 | E16: 53 | F16: 00 | G16: 301203 | H16: 593 | I16: 1750
A17: PFE Computer Software | B17: 203-42-53-05-301203-593-1750 | C17: 203 | D17: 42 | E17: 53 | F17: 05 | G17: 301203 | H17: =CurrSchool -> 593 | I17: 1750
A18: PFE Technology Supplies | B18: 203-42-53-10-301203-593-1750 | C18: 203 | D18: 42 | E18: 53 | F18: 10 | G18: 301203 | H18: 593 | I18: 1750
A19: PFE Expendible Equipment | B19: 203-61-92-00-301203-593-1750 | C19: 203 | D19: 61 | E19: 92 | F19: 00 | G19: 301203 | H19: 593 | I19: 1750
A20: PFE Expendible Computer Equipment | B20: 203-61-92-05-301203-593-1750 | C20: 203 | D20: 61 | E20: 92 | F20: 05 | G20: 301203 | H20: 593 | I20: 1750
A21: PFE Books and Periodicals | B21: 203-42-62-00-301203-593-1750 | C21: 203 | D21: 42 | E21: 62 | F21: 00 | G21: 301203 | H21: 593 | I21: 1750
A22: PL Substitutes for Certified Teacher | B22: 203-46-16-00-400203-593-1750 | C22: 203 | D22: 46 | E22: 16 | F22: 00 | G22: 400203 | H22: 593 | I22: 1750
A23: PL Stipends | B23: 203-46-12-00-400203-593-1750 | C23: 203 | D23: 46 | E23: 12 | F23: 00 | G23: 400203 | H23: =CurrSchool -> 593 | I23: 1750
A24: PL Contracted Services | B24: 203-46-95-00-400203-593-1750 | C24: 203 | D24: 46 | E24: 95 | F24: 00 | G24: 400203 | H24: =CurrSchool -> 593 | I24: 1750
A25: PL Travel of Employees | B25: 203-46-33-00-400203-593-1750 | C25: 203 | D25: 46 | E25: 33 | F25: 00 | G25: 400203 | H25: 593 | I25: 1750
A26: PL Registration Fees | B26: 203-46-36-00-400203-593-1750 | C26: 203 | D26: 46 | E26: 36 | F26: 00 | G26: 400203 | H26: 593 | I26: 1750
A27: PL Supplies | B27: 203-46-53-00-400203-593-1750 | C27: 203 | D27: 46 | E27: 53 | F27: 00 | G27: 400203 | H27: 593 | I27: 1750
A28: PL Computer Software | B28: 203-46-53-05-400203-593-1750 | C28: 203 | D28: 46 | E28: 53 | F28: 05 | G28: 400203 | H28: 593 | I28: 1750
A29: PL Books and Periodicals | B29: 203-46-62-00-400203-593-1750 | C29: 203 | D29: 46 | E29: 62 | F29: 00 | G29: 400203 | H29: 593 | I29: 1750
A30: Substitutes for Certified Teacher Salaries | B30: 203-38-16-00-400203-593-1750 | C30: 203 | D30: 38 | E30: 16 | F30: 00 | G30: 400203 | H30: 593 | I30: 1750
A31: Educational Media Books and Periodicals | B31: 203-46-62-05-400203-593-1750 | C31: 203 | D31: 46 | E31: 62 | F31: 05 | G31: 400203 | H31: 593 | I31: 1750
A32: Custodian Extra Activity | B32: 203-57-17-00-400203-593-1750 | C32: 203 | D32: 57 | E32: 17 | F32: 00 | G32: 400203 | H32: 593 | I32: 1750
A33: Transportation Bus Driver Extra Activity | B33: 203-56-17-00-400203-593-1750 | C33: 203 | D33: 56 | E33: 17 | F33: 00 | G33: 400203 | H33: 593 | I33: 1750
A34: Transportation Gas or Diesel Fuel | B34: 203-56-95-00-400203-593-1750 | C34: 203 | D34: 56 | E34: 95 | F34: 00 | G34: 400203 | H34: 593 | I34: 1750
A35: Transportation for Parents | B35: 203-56-95-10-400203-593-1750 | C35: 203 | D35: 56 | E35: 95 | F35: 10 | G35: 400203 | H35: 593 | I35: 1750

Sheet Priority Area 1
A1: PRIORITY AREA 1, IMPROVEMENT STRATEGIES, AND MONITORING CYCLE (Review - Reflect - Refine)
A2: PLAN: Continuous School Improvement Plans are developed based on data analyses and/or comprehensive needs assessments (PLAN), to implement solutions (DO), to understand the results or impact (CHECK) and to make adjustments based upon the outcomes of the strategy implementation (ACT).
A3: Priority Area 1 | C3: ='Data Analysis'!A62 -> Improve Student Lexile Scores
A5: *SMART Goal with Performance Measures | C5: By the end of the 2017-2018 school year, we will improve student mastery of academically rigorous learning standards in reading as measured by an increase of 3% from Developing Learner to Proficient Learner or an increase of 3% from Proficient Learner to Distinguished Learner on the Ninth Grade Literature and the American Literature Georgia Milestone End Of Course (EOC) assessment.
A6: * Student-Focused, Monitored, Aligned/Actionable, Results-Oriented, Time bound
A7: DCSD Strategic Plan Goal | C7: DCSD Goal Area I: Student Success with Equity and Access
A8: DO: School Improvement Plans are developed based on data analyses and/or comprehensive needs assessments (PLAN), to implement solutions (DO), to understand the results or impact (CHECK) and to make adjustments based upon the outcomes of the strategy implementation (ACT).
A9: IMPROVEMENT STRATEGY #1
A10: Use research based reading strategies to improve lexile scores. | G10: FOR TITLE I FOCUS AND PRIORITY SCHOOLS ONLY - Select Georgia Performance Standard
A11: Action Steps/Tasks to Implement Improvement Strategy | G11: Position Responsible for the Action Step, and alignment to district and state efforts/requirements, if needed. | I11: Supplemental Title I Funding Budgeted to Support Action Step
G12: Person/Position Responsible | H12: Other (Optional, for school use) | I12: Title I | J12: Title I State Focus | K12: THESE CELLS ARE LOCKED BECAUSE FUNDING AMOUNTS WILL AUTO POPULATE TO THIS SECTION FROM FUNDING WORKSHEETS.
A13: 1) Students will create and utilize graphic organizers/Thinking Maps with fiction and non-fiction texts during daily instruction. | G13: Teachers | I13: ='Title I Program Worksheet 1'!N13 -> 0 | J13: ='Title I Focus Worksheet 1'!Q13 -> 0
A14: 2) Students will develop and apply strategies while reading independently during daily instruction. | G14: Teachers | I14: ='Title I Program Worksheet 1'!N14 -> 0 | J14: ='Title I Focus Worksheet 1'!Q14 -> 0
A15: 3) Teachers will differentiate instruction and utilize small group instruction with paras for remediation, reinforcement and enrichment of reading strategies in core content. | G15: Teachers/Paras | I15: ='Title I Program Worksheet 1'!N15 -> 0 | J15: ='Title I Focus Worksheet 1'!Q15 -> 0
A16: 4) Teachers will develop a plan for student reading level growith, assess student reading levels biweekly, conference biweekly with individual students to discuss Lexile levels, and monitor student progress daily while ensuring each student is reading material appropriate for his/her instructional reading level. | G16: Teachers | I16: ='Title I Program Worksheet 1'!N16 -> 1154 | J16: ='Title I Focus Worksheet 1'!Q16 -> 0
A17: 5) Academic coaches will provide instructional strategies to new teachers to include coaching and modeling; professional learning facilitators and academic coaches will provide reading strategies professional learning to teachers based on a needs assessment and observations during collaborative planning time. | G17: Academic Coaches; Professional Learning Facilitators | I17: ='Title I Program Worksheet 1'!N17 -> 0 | J17: ='Title I Focus Worksheet 1'!Q17 -> 0
I18: ='Title I Program Worksheet 1'!N18 -> 0 | J18: ='Title I Focus Worksheet 1'!Q18 -> 0
A19: 6) Administrative team will review/analyze data with teachers, conduct classroom visits, and provide feedback with next steps three time a year (pre, mid, end) to teachers including conferences and emails. | G19: Principal; Assistant Principals, ISS, Academic Coaches | I19: ='Title I Program Worksheet 1'!N19 -> 0 | J19: ='Title I Focus Worksheet 1'!Q19 -> 0
A20: 7) A push-in reading teacher will co-teach with teachers who have students with Lexile scores below 1050 to supplement daily instruction with reading strategies in biology, US History, and economics. | G20: API, Reading Teacher and Co-Teachers | I20: ='Title I Program Worksheet 1'!N20 -> 0 | J20: ='Title I Focus Worksheet 1'!Q20 -> 0
A21: 8) Provide extended day learning opportunities for students 100 minutes per week (enrichment period) during the day and Credit recovery during the summer for remediation and reinforcement of ELA, science, and Social Studies standards. | G21: API/Teachers | I21: ='Title I Program Worksheet 1'!N21 -> 0 | J21: ='Title I Focus Worksheet 1'!Q21 -> 0
A22: Action Steps/Tasks to Implement Associated with Professional Development/Professional Learning High-quality and ongoing professional development for teachers, principals, and paraprofessionals (TA & SWP) | G22: Position Responsible for the Action Step, and alignment to district and state efforts/requirements, if needed. | I22: Supplemental Title I Funding Budgeted to Support Action Step
A23: Identify associated professional development courses/activities, participants, providers, and the dates activities will begin and end. | G23: Person/Position Responsible | H23: Other (Optional, for school use) | I23: Title I | J23: Title I State Focus
A24: 10) Reading strategies professional learning for teachers based on a needs assessment and observations during collaborative planning time | G24: Academic Coaches; Professional Learning Facilitators | I24: ='Title I Program Worksheet 1'!N23 -> 0 | J24: ='Title I Focus Worksheet 1'!Q23 -> 0 | K24: SEE NOTE ABOVE
A25: 11) Graphic organizers/Thinking Maps professional learning for new teachers during planning periods monthly | G25: Academic Coaches | I25: ='Title I Program Worksheet 1'!N24 -> 0 | J25: ='Title I Focus Worksheet 1'!Q24 -> 0
A26: 12) Lexile professional learning for teachers during planning periods twice per semester | G26: Academic Coaches; Professional Learning Facilitators | I26: ='Title I Program Worksheet 1'!N25 -> 0 | J26: ='Title I Focus Worksheet 1'!Q25 -> 0
A27: Action Steps/Tasks to Implement Associated with Parent/Family Engagement | G27: Position Responsible for the Action Step, and alignment to district and state efforts/requirements, if needed. | I27: Supplemental Title I Funding Budgeted to Support Action Step
A28: Identify parent/family engagement activities, providers, and the dates activities will begin and end. | G28: Person/Position Responsible | H28: Other (Optional, for school use) | I28: Title I | J28: Title I State Focus
A29: 13) Provide a parent workshop on Lexile scores (interpretation and reading strategies/resources for parents to help their children at home) held during flexible times. | G29: Parent Liaison, API, Teachers | I29: ='Title I Program Worksheet 1'!N27 -> 3528 | J29: ='Title I Focus Worksheet 1'!Q27 -> 0 | K29: SEE NOTE ABOVE
A30: 14) Provide parent workshop on core content (strategies and resources for parents to help their children at home with core content) held during flexible times. | G30: Parent Liaison, API, Teachers | I30: ='Title I Program Worksheet 1'!N28 -> 2219.14 | J30: ='Title I Focus Worksheet 1'!Q28 -> 0
A31: 15) Provide stakeholders information and opportunities to give input, feedback, and request resources to assist their children at home with reading with translations available upon request (pre-planning meetings, annual meeting, Curriculum Night, Core Content/Literacy Nights, CSIP, compact and policy development, parent/teacher conferences, email, website) | G31: Parent Liaison, API | I31: ='Title I Program Worksheet 1'!N29 -> 0 | J31: ='Title I Focus Worksheet 1'!Q29 -> 0
A32: IMPROVEMENT STRATEGY #2
A33: Use iLit to improve reading skills. | G33: FOR TITLE I FOCUS AND PRIORITY SCHOOLS ONLY - Select Georgia Performance Standard
A34: Action Steps/Tasks to Implement Improvement Strategy | G34: Position Responsible for the Action Step, and alignment to district and state efforts/requirements, if needed. | I34: Supplemental Title I Funding Budgeted to Support Action Step
G35: Person/Position Responsible | H35: Other (Optional, for school use) | I35: Title I | J35: Title I State Focus
A36: 1) Work with counselors to schedule students with Lexile scores below 1050 in double dose reading classes. | G36: API/Counselors | I36: ='Title I Program Worksheet 1'!N35 -> 0 | J36: ='Title I Focus Worksheet 1'!Q35 -> 0 | K36: THESE CELLS ARE LOCKED BECAUSE FUNDING AMOUNTS WILL AUTO POPULATE TO THIS SECTION FROM FUNDING WORKSHEETS.
A37: 2) Students will use iPads for personalized reading support based on Lexile scores to engage students as readers while improving literacy skills and language development during daily instruction. | G37: Teachers | I37: ='Title I Program Worksheet 1'!N36 -> 0 | J37: ='Title I Focus Worksheet 1'!Q36 -> 0
A38: 3) Teachers will utilize iLit reports to individualize instruction and monitor student progres daily as well as conference weekly with individual students to discuss progress. | G38: Teachers | I38: ='Title I Program Worksheet 1'!N37 -> 18000 | J38: ='Title I Focus Worksheet 1'!Q37 -> 0
A39: 4) Administrative team will review/analyze data with teachers, conduct classroom visits, and provide feedback with next steps in a timely manner to teachers including conferences and emails. | G39: Principal; Assistant Principals, ISS, Academic Coaches | I39: ='Title I Program Worksheet 1'!N38 -> 0 | J39: ='Title I Focus Worksheet 1'!Q38 -> 0
A40: 5) Purchase of TurnItIn as a literacey suppliment | I40: ='Title I Program Worksheet 1'!N39 -> 12000 | J40: ='Title I Focus Worksheet 1'!Q39 -> 0
A41: s | I41: ='Title I Program Worksheet 1'!N40 -> 0 | J41: ='Title I Focus Worksheet 1'!Q40 -> 0
A42: 7) | I42: ='Title I Program Worksheet 1'!N41 -> 0 | J42: ='Title I Focus Worksheet 1'!Q41 -> 0
A43: 8) | I43: ='Title I Program Worksheet 1'!N42 -> 0 | J43: ='Title I Focus Worksheet 1'!Q42 -> 0 | AL43: Area I: Personalized Learning | AM43: Area II: Character, Service and Safety | AN43: Area III: Parent, Family and Community | AO43: Area IV: Educator and Organizational Excellence | AP43: Select Area of the GCS Strategic Plan 2016 from drop down menu
A44: 9) | I44: ='Title I Program Worksheet 1'!N43 -> 0 | J44: ='Title I Focus Worksheet 1'!Q43 -> 0
A45: Action Steps/Tasks to Implement Associated with Professional Development/Professional Learning High-quality and ongoing professional development for teachers, principals, and paraprofessionals (TA & SWP) | G45: Position Responsible for the Action Step, and alignment to district and state efforts/requirements, if needed. | I45: Supplemental Title I Funding Budgeted to Support Action Step
A46: Identify associated professional development courses/activities, participants, providers, and the dates activities will begin and end. | G46: Person/Position Responsible | H46: Other (Optional, for school use) | I46: Title I | J46: Title I State Focus
A47: 10) iLit Professional Learning for all teachers who will use the reading intervention program | G47: API/Principal | I47: ='Title I Program Worksheet 1'!N45 -> 0 | J47: ='Title I Focus Worksheet 1'!Q45 -> 0 | K47: SEE NOTE ABOVE | AL47: Click here and select from drop down menu. | AM47: GCS Priority Plan | AN47: Title I | AO47: Magnet | AP47: GCS Priority School | AQ47: African-American Male Achievement | AR47: Not Applicable
A48: 11) | I48: ='Title I Program Worksheet 1'!N46 -> 0 | J48: ='Title I Focus Worksheet 1'!Q46 -> 0
A49: 12) | I49: ='Title I Program Worksheet 1'!N47 -> 0 | J49: ='Title I Focus Worksheet 1'!Q47 -> 0
A50: Action Steps/Tasks to Implement Associated with Parent/Family Engagement | G50: Position Responsible for the Action Step, and alignment to district and state efforts/requirements, if needed. | I50: Supplemental Title I Funding Allocated to Support Action Step
A51: Identify parent/family engagement activities, providers, and the dates activities will begin and end. | G51: Person/Position Responsible | H51: Other (Optional, for school use) | I51: Title I | J51: Title I State Focus
A52: 13) Provide stakeholders information and opportunities to give input, feedback, and request resources to assist their children at home with reading with translations available upon request (pre-planning meetings, annual meeting, Curriculum Night, Core Content/Literacy Nights, CSIP, compact and policy development, parent/teacher conferences, email, website) | G52: Parent Liaison/API | I52: ='Title I Program Worksheet 1'!N49 -> 0 | J52: ='Title I Focus Worksheet 1'!Q49 -> 0 | K52: SEE NOTE ABOVE
A53: 14) Have parent literacy night(s) once per semester at flexible times for strategies and resources for parents to help their children at home with literacy in core content. | G53: Parent Liaison/API | I53: ='Title I Program Worksheet 1'!N50 -> 500 | J53: ='Title I Focus Worksheet 1'!Q50 -> 0
A54: 15) During faculty meetings, discuss and provide reading strategies/resources to teachers to engage parents with reading at home with their children. | G54: Administrators, Teachers, Parent Liaison | I54: ='Title I Program Worksheet 1'!N51 -> 0 | J54: ='Title I Focus Worksheet 1'!Q51 -> 0
A55: IMPROVEMENT STRATEGY #3
A56: Use Edgenuity to improve literacy skills. | G56: FOR TITLE I FOCUS AND PRIORITY SCHOOLS ONLY - Select Georgia Performance Standard
A57: Action Steps/Tasks to Implement Improvement Strategy | G57: Position Responsible for the Action Step, and alignment to district and state efforts/requirements, if needed. | I57: Supplemental Title I Funding Allocated to Support Action Step
G58: Person/Position Responsible | H58: Other (Optional, for school use) | I58: Title I | J58: Title I State Focus
A59: 1) Identified students will use Edgenuity during the enrichment period 100 minutes/week for remediation, reinforcement, enrichment, and credit recovery in ELA, science, and Social Studies. | G59: Teachers | I59: ='Title I Program Worksheet 1'!N57 -> 0 | J59: ='Title I Focus Worksheet 1'!Q57 -> 0 | K59: THESE CELLS ARE LOCKED BECAUSE FUNDING AMOUNTS WILL AUTO POPULATE TO THIS SECTION FROM FUNDING WORKSHEETS.
A60: 2) Teachers will identify standards individual students have not mastered to differentiate instruction using Edgenuity . | G60: Teachers | I60: ='Title I Program Worksheet 1'!N58 -> 0 | J60: ='Title I Focus Worksheet 1'!Q58 -> 0
A61: 3) Students will work independently using Edgenuity on the computer taking notes, practicing skills/content/concepts, and taking pre/post assessments to master identified standards in ELA, science, and Social Studies. | G61: Teachers | I61: ='Title I Program Worksheet 1'!N59 -> 0 | J61: ='Title I Focus Worksheet 1'!Q59 -> 0
A62: 4) Administrative team will review/analyze data with teachers, conduct classroom visits, and provide feedback with next steps in a timely manner to teachers including conferences and emails. | G62: Principal; Assistant Principals, ISS, Academic Coaches | I62: ='Title I Program Worksheet 1'!N60 -> 0 | J62: ='Title I Focus Worksheet 1'!Q60 -> 0
A63: 5) For rising 9th grade students, we do a three day aSummer Bridige Program during the month of July. During the month of September, we do a college fai for our studens; and we have colleges come into our building to meet with students in two ways: Mondays, Wednesdays, and Friday that meet students in the cafeteria; and Tuesdays and Thursdays that meet more intemately in the media center. For new studentas entering during the school year, we have them tour with a counselor and JROTC students introduce them to club and athletic sposors of their interest. | I63: ='Title I Program Worksheet 1'!N61 -> 0 | J63: ='Title I Focus Worksheet 1'!Q61 -> 0
A64: 6) CSIP “The validity and reliability have already been determined for MAP and Georgia Milestones assessments.” Both of these should have been discussed on the data analysis tab and/or in the SMART goal for the priority areas. | I64: ='Title I Program Worksheet 1'!N62 -> 0 | J64: ='Title I Focus Worksheet 1'!Q62 -> 0
A65: 7) Our plan is avalable on the district P-Drive, to the parents in the parent center, and to the community on our website. When it is necessary, this plan will be translated through the international center for the language needed. | I65: ='Title I Program Worksheet 1'!N63 -> 0 | J65: ='Title I Focus Worksheet 1'!Q63 -> 0
A66: 8) | I66: ='Title I Program Worksheet 1'!N64 -> 0 | J66: ='Title I Focus Worksheet 1'!Q64 -> 0
A67: 9) | I67: ='Title I Program Worksheet 1'!N65 -> 0 | J67: ='Title I Focus Worksheet 1'!Q65 -> 0
A68: Action Steps/Tasks to Implement Associated with Professional Development/Professional Learning High-quality and ongoing professional development for teachers, principals, and paraprofessionals (TA & SWP) | G68: Position Responsible for the Action Step, and alignment to district and state efforts/requirements, if needed. | I68: Supplemental Title I Funding Allocated to Support Action Step
A69: Identify associated professional development courses/activities, participants, providers, and the dates activities will begin and end. | G69: Person/Position Responsible | H69: Other (Optional, for school use) | I69: Title I | J69: Title I State Focus
A70: 10) Provide Edgenuity professional learning to new teachers at beginning of school year and as needed throughout the year based on needs assessment. | G70: API | I70: ='Title I Program Worksheet 1'!N67 -> 0 | J70: ='Title I Focus Worksheet 1'!Q67 -> 0 | K70: SEE NOTE ABOVE
A71: 11) | I71: ='Title I Program Worksheet 1'!N68 -> 0 | J71: ='Title I Focus Worksheet 1'!Q68 -> 0
A72: 12) | I72: ='Title I Program Worksheet 1'!N69 -> 0 | J72: ='Title I Focus Worksheet 1'!Q69 -> 0
A73: Action Steps/Tasks to Implement Associated with Parent/Family Engagement | G73: Position Responsible for the Action Step, and alignment to district and state efforts/requirements, if needed. | I73: Supplemental Title I Funding Allocated to Support Action Step
A74: Identify parent/family engagement activities, providers, and the dates activities will begin and end. | G74: Person/Position Responsible | H74: Other (Optional, for school use) | I74: Title I | J74: Title I State Focus
A75: 13) Provide Edgenuity parent workshops at flexible times for strategies and resources for parents to help their children at home. | G75: API/Parent Liaison | I75: ='Title I Program Worksheet 1'!N71 -> 0 | J75: ='Title I Focus Worksheet 1'!Q71 -> 0 | K75: SEE NOTE ABOVE
A76: 14) During the 2017-2018 school year, provide stakeholders information and opportunities to give input, feedback, and request resources to assist their children at home with reading with translations available upon request (pre-planning meetings, annual meeting, Curriculum Night, Core Content/Literacy Nights, CSIP, compact and policy development, parent/teacher conferences, email, website) | G76: API/Parent Liaison | I76: ='Title I Program Worksheet 1'!N72 -> 0 | J76: ='Title I Focus Worksheet 1'!Q72 -> 0
A77: 15) During faculty meetings, discuss and demonstrate Edgenuity to teachers to engage parents with literacy in core content at home with their children. | G77: API/Parent Liaison | I77: ='Title I Program Worksheet 1'!N73 -> 0 | J77: ='Title I Focus Worksheet 1'!Q73 -> 0
A78: Review and Reflect: ContinuousSchool Improvement Plans are developed based on data analyses and/or comprehensive needs assessments (PLAN), to implement solutions (DO), to understand the results or impact (CHECK) and to make adjustments based upon the outcomes of the strategy implementation (ACT).
A79: How will you determine whether the strategies led to reaching the SMART Goal? (Include formative, benchmark, and summative data as appropriate.)
A81: What data will be used to determine whether the improvement strategies were deployed with fidelity?
A83: What does the data/evidence show regarding the results of the implemented strategies?
A84: Review, Reflect, and Refine 1 - Based on results evidenced August through November, should strategies be changed? If so, how?
A86: Review, Reflect, and Refine 2 - Based on results evidenced December through February, should strategies be changed? If so, how?
A88: Review, Reflect, and Refine 3 - Based on results evidenced through the end-of-year, should strategies be changed? If so, how?

Sheet Priority Area 1B (hidden)
A1: PRIORITY AREA 1B AND ASSOCIATED STRATEGIES
A2: PLAN: School Improvement Plans are developed based on data analyses and/or comprehensive needs assessments (PLAN), to implement solutions (DO), to understand the results or impact (CHECK) and to make adjustments based upon the outcomes of the strategy implementation (ACT).
A3: Priority Area 1B | C3: ='Data Analysis'!A62 -> Improve Student Lexile Scores
A5: *SMART Goal
A6: *Specific, Measurable, Attainable, Results-Oriented, Timebound
A7: Target Goal for 2016-17 (What goal must be reached to be on target to meet SMART goal?)
A8: DCSD Strategic Plan Goal | C8: Click here and select the area of the MCS Strategic Plan 2016 from the drop down menu. | AU8: Key Indicators of Success - Learning Pathway | AV8: Key Indicators of Success - Community | AW8: Key Indicators of Success - Culture Pathway | AX8: Key Indicators of Success - Leadership Pathway | AY8: Click here and select the area of the MCS Strategic Plan 2016 from the drop down menu.
A9: DO: School Improvement Plans are developed based on data analyses and/or comprehensive needs assessments (PLAN), to implement solutions (DO), to understand the results or impact (CHECK) and to make adjustments based upon the outcomes of the strategy implementation (ACT).
A10: IMPROVEMENT STRATEGY #1
A12: Action Steps to Implement Improvement Strategy | G12: Additional Improvement Plan(s) that this Action Step Supports (select all that apply from drop down or specify in "Other") | I12: Supplemental Title I Funding Budgeted to Support Action Step
G13: Improvement Plans (drop down menu) | H13: Other (Specify) | I13: Title I | J13: Title I State Focus | K13: THESE CELLS ARE LOCKED BECAUSE FUNDING AMOUNTS WILL AUTO POPULATE TO THIS SECTION FROM FUNDING WORKSHEETS.
A14: 1) | I14: ='Title I Schoolwide Worksheet 1B'!Q13 -> 0 | J14: ='Title I Focus Worksheet 1B'!O13 -> 0 | AU14: Click here and hold the CTRL tab down to select one or more options from the drop down menu. | AV14: Title I - Improving the Academic Achievement of the Disadvantaged | AW14: Title I - State Priority School | AX14: Title I - State Focus School | AY14: Magnet | AZ14: Not Applicable
A15: 2) | I15: ='Title I Schoolwide Worksheet 1B'!Q14 -> 0 | J15: ='Title I Focus Worksheet 1B'!O14 -> 0
A16: 3) | I16: ='Title I Schoolwide Worksheet 1B'!Q15 -> 0 | J16: ='Title I Focus Worksheet 1B'!O15 -> 0
A17: 4) | I17: ='Title I Schoolwide Worksheet 1B'!Q16 -> 0 | J17: ='Title I Focus Worksheet 1B'!O16 -> 0
A18: 5) | I18: ='Title I Schoolwide Worksheet 1B'!Q17 -> 0 | J18: ='Title I Focus Worksheet 1B'!O17 -> 0
A19: 6) | I19: ='Title I Schoolwide Worksheet 1B'!Q18 -> 0 | J19: ='Title I Focus Worksheet 1B'!O18 -> 0
A20: 7) | I20: ='Title I Schoolwide Worksheet 1B'!Q19 -> 0 | J20: ='Title I Focus Worksheet 1B'!O19 -> 0
A21: 8) | I21: ='Title I Schoolwide Worksheet 1B'!Q20 -> 0 | J21: ='Title I Focus Worksheet 1B'!O20 -> 0
A22: 9) | I22: ='Title I Schoolwide Worksheet 1B'!Q21 -> 0 | J22: ='Title I Focus Worksheet 1B'!O21 -> 0
A23: Action Steps to Implement Associated Professional Development | G23: Additional Improvement Plan(s) that this Action Step Supports (select all that apply from drop down or specify in "Other") | I23: Supplemental Title I Funding Budgeted to Support Action Step
A24: Identify associated professional development courses/activities, participants, providers, and the dates activities will begin and end. | G24: Improvement Plans (drop down menu) | H24: Other (Specify) | I24: Title I | J24: Title I State Focus
A25: 10) | I25: ='Title I Schoolwide Worksheet 1B'!Q23 -> 0 | J25: ='Title I Focus Worksheet 1B'!O23 -> 0 | K25: SEE NOTE ABOVE
A26: 11) | I26: ='Title I Schoolwide Worksheet 1B'!Q24 -> 0 | J26: ='Title I Focus Worksheet 1B'!O24 -> 0
A27: 12) | I27: ='Title I Schoolwide Worksheet 1B'!Q25 -> 0 | J27: ='Title I Focus Worksheet 1B'!O25 -> 0
A28: Action Steps to Implement Associated Parental Involvement | G28: Additional Improvement Plan(s) that this Action Step Supports (select all that apply from drop down or specify in "Other") | I28: Supplemental Title I Funding Budgeted to Support Action Step
A29: Identify parental involvement activities, providers, and the dates activities will begin and end. | G29: Improvement Plans (drop down menu) | H29: Other (Specify) | I29: Title I | J29: Title I State Focus
A30: 13) | I30: ='Title I Schoolwide Worksheet 1B'!Q27 -> 0 | J30: ='Title I Focus Worksheet 1B'!O27 -> 0 | K30: SEE NOTE ABOVE
A31: 14) | I31: ='Title I Schoolwide Worksheet 1B'!Q28 -> 0 | J31: ='Title I Focus Worksheet 1B'!O28 -> 0
A32: 15) | I32: ='Title I Schoolwide Worksheet 1B'!Q29 -> 0 | J32: ='Title I Focus Worksheet 1B'!O29 -> 0
A33: IMPROVEMENT STRATEGY #2
A35: Action Steps to Implement Improvement Strategy | G35: Additional Improvement Plan(s) that this Action Step Supports (select all that apply from drop down or specify in "Other") | I35: Supplemental Title I Funding Budgeted to Support Action Step
G36: Improvement Plans (drop down menu) | H36: Other (Specify) | I36: Title I | J36: Title I State Focus
A37: 1) | I37: ='Title I Schoolwide Worksheet 1B'!Q35 -> 0 | J37: ='Title I Focus Worksheet 1B'!O35 -> 0 | K37: THESE CELLS ARE LOCKED BECAUSE FUNDING AMOUNTS WILL AUTO POPULATE TO THIS SECTION FROM FUNDING WORKSHEETS.
A38: 2) | I38: ='Title I Schoolwide Worksheet 1B'!Q36 -> 0 | J38: ='Title I Focus Worksheet 1B'!O36 -> 0
A39: 3) | I39: ='Title I Schoolwide Worksheet 1B'!Q37 -> 0 | J39: ='Title I Focus Worksheet 1B'!O37 -> 0
A40: 4) | I40: ='Title I Schoolwide Worksheet 1B'!Q38 -> 0 | J40: ='Title I Focus Worksheet 1B'!O38 -> 0
A41: 5) | I41: ='Title I Schoolwide Worksheet 1B'!Q39 -> 0 | J41: ='Title I Focus Worksheet 1B'!O39 -> 0
A42: 6) | I42: ='Title I Schoolwide Worksheet 1B'!Q40 -> 0 | J42: ='Title I Focus Worksheet 1B'!O40 -> 0
A43: 7) | I43: ='Title I Schoolwide Worksheet 1B'!Q41 -> 0 | J43: ='Title I Focus Worksheet 1B'!O41 -> 0
A44: 8) | I44: ='Title I Schoolwide Worksheet 1B'!Q42 -> 0 | J44: ='Title I Focus Worksheet 1B'!O42 -> 0 | AL44: Area I: Personalized Learning | AM44: Area II: Character, Service and Safety | AN44: Area III: Parent, Family and Community | AO44: Area IV: Educator and Organizational Excellence | AP44: Select Area of the GCS Strategic Plan 2016 from drop down menu
A45: 9) | I45: ='Title I Schoolwide Worksheet 1B'!Q43 -> 0 | J45: ='Title I Focus Worksheet 1B'!O43 -> 0
A46: Action Steps to Implement Associated Professional Development | G46: Additional Improvement Plan(s) that this Action Step Supports (select all that apply from drop down or specify in "Other") | I46: Supplemental Title I Funding Budgeted to Support Action Step
A47: Identify associated professional development courses/activities, participants, providers, and the dates activities will begin and end. | G47: Improvement Plans (drop down menu) | H47: Other (Specify) | I47: Title I | J47: Title I State Focus
A48: 10) | I48: ='Title I Schoolwide Worksheet 1B'!Q45 -> 0 | J48: ='Title I Focus Worksheet 1B'!O45 -> 0 | K48: SEE NOTE ABOVE | AL48: Click here and select from drop down menu. | AM48: GCS Priority Plan | AN48: Title I | AO48: Magnet | AP48: GCS Prioriy School | AQ48: African-American Male Achievement | AR48: Not Applicable
A49: 11) | I49: ='Title I Schoolwide Worksheet 1B'!Q46 -> 0 | J49: ='Title I Focus Worksheet 1B'!O46 -> 0
A50: 12) | I50: ='Title I Schoolwide Worksheet 1B'!Q47 -> 0 | J50: ='Title I Focus Worksheet 1B'!O47 -> 0
A51: Action Steps to Implement Associated Parental Involvement | G51: Additional Improvement Plan(s) that this Action Step Supports (select all that apply from drop down or specify in "Other") | I51: Supplemental Title I Funding Allocated to Support Action Step
A52: Identify parental involvement activities, providers, and the dates activities will begin and end. | G52: Improvement Plans (drop down menu) | H52: Other (Specify) | I52: Title I | J52: Title I State Focus
A53: 13) | I53: ='Title I Schoolwide Worksheet 1B'!Q50 -> 0 | J53: ='Title I Focus Worksheet 1B'!O49 -> 0 | K53: SEE NOTE ABOVE
A54: 14) | I54: ='Title I Schoolwide Worksheet 1B'!Q51 -> 0 | J54: ='Title I Focus Worksheet 1B'!O50 -> 0
A55: 15) | I55: ='Title I Schoolwide Worksheet 1B'!Q52 -> 0 | J55: ='Title I Focus Worksheet 1B'!O51 -> 0
A56: IMPROVEMENT STRATEGY #3
A58: Action Steps to Implement Improvement Strategy | G58: Additional Improvement Plan(s) that this Action Step Supports (select all that apply from drop down or specify in "Other") | I58: Supplemental Title I Funding Allocated to Support Action Step
G59: Improvement Plans (drop down menu) | H59: Other (Specify) | I59: Title I | J59: Title I State Focus
A60: 1) | I60: ='Title I Schoolwide Worksheet 1B'!N57 -> Select budget category from drop down menu | J60: ='Title I Focus Worksheet 1B'!O57 -> 0 | K60: THESE CELLS ARE LOCKED BECAUSE FUNDING AMOUNTS WILL AUTO POPULATE TO THIS SECTION FROM FUNDING WORKSHEETS.
A61: 2) | I61: ='Title I Schoolwide Worksheet 1B'!N58 -> 0 | J61: ='Title I Focus Worksheet 1B'!O58 -> 0
A62: 3) | I62: ='Title I Schoolwide Worksheet 1B'!N59 -> 0 | J62: ='Title I Focus Worksheet 1B'!O59 -> 0
A63: 4) | I63: ='Title I Schoolwide Worksheet 1B'!N60 -> 0 | J63: ='Title I Focus Worksheet 1B'!O60 -> 0
A64: 5) | I64: ='Title I Schoolwide Worksheet 1B'!N61 -> 0 | J64: ='Title I Focus Worksheet 1B'!O61 -> 0
A65: 6) | I65: ='Title I Schoolwide Worksheet 1B'!N62 -> 0 | J65: ='Title I Focus Worksheet 1B'!O62 -> 0
A66: 7) | I66: ='Title I Schoolwide Worksheet 1B'!N63 -> 0 | J66: ='Title I Focus Worksheet 1B'!O63 -> 0
A67: 8) | I67: ='Title I Schoolwide Worksheet 1B'!N64 -> 0 | J67: ='Title I Focus Worksheet 1B'!O64 -> 0
A68: 9) | I68: ='Title I Schoolwide Worksheet 1B'!N65 -> 0 | J68: ='Title I Focus Worksheet 1B'!O65 -> 0
A69: Action Steps to Implement Associated Professional Development | G69: Additional Improvement Plan(s) that this Action Step Supports (select all that apply from drop down or specify in "Other") | I69: Supplemental Title I Funding Allocated to Support Action Step
A70: Identify associated professional development courses/activities, participants, providers, and the dates activities will begin and end. | G70: Improvement Plans (drop down menu) | H70: Other (Specify) | I70: Title I | J70: Title I State Focus
A71: 10) | I71: ='Title I Schoolwide Worksheet 1B'!N67 -> Select budget category from drop down menu | J71: ='Title I Focus Worksheet 1B'!O67 -> 0 | K71: SEE NOTE ABOVE
A72: 11) | I72: ='Title I Schoolwide Worksheet 1B'!N68 -> 0 | J72: ='Title I Focus Worksheet 1B'!O68 -> 0
A73: 12) | I73: ='Title I Schoolwide Worksheet 1B'!N69 -> 0 | J73: ='Title I Focus Worksheet 1B'!O69 -> 0
A74: Action Steps to Implement Associated Parental Involvement | G74: Additional Improvement Plan(s) that this Action Step Supports (select all that apply from drop down or specify in "Other") | I74: Supplemental Title I Funding Allocated to Support Action Step
A75: Identify parental involvement activities, providers, and the dates activities will begin and end. | G75: Improvement Plans (drop down menu) | H75: Other (Specify) | I75: Title I | J75: Title I State Focus
A76: 13) | I76: ='Title I Schoolwide Worksheet 1B'!N71 -> Select budget category from drop down menu | J76: ='Title I Focus Worksheet 1B'!O71 -> 0 | K76: SEE NOTE ABOVE
A77: 14) | I77: ='Title I Schoolwide Worksheet 1B'!N72 -> 0 | J77: ='Title I Focus Worksheet 1B'!O72 -> 0
A78: 15) | I78: ='Title I Schoolwide Worksheet 1B'!N73 -> 0 | J78: ='Title I Focus Worksheet 1B'!O73 -> 0
A79: CHECK: School Improvement Plans are developed based on data analyses and/or comprehensive needs assessments (PLAN), to implement solutions (DO), to understand the results or impact (CHECK) and to make adjustments based upon the outcomes of the strategy implementation (ACT).
A80: What data will be used to determine whether the improvement strategies were deployed with fidelity?
A82: How will you determine whether the strategies led to progress toward the SMART goal? (Include formative, benchmark and summative data as appropriate.)
A84: What does the data/evidence show regarding the results of the implemented strategies?
A85: Review 1 - 2016-17 (Based on results evidenced August through November, how/should strategies be changed?)
A87: Review 2 - 2016-17 (Based on results evidenced December through February, how/should strategies be changed?)
A89: Review 3 - 2016-17 (Based on results evidenced end-of-year results, how/should strategies be changed?)
A91: Review 1 - 2017-18 (Based on results evidenced August through November, how/should strategies be changed?)
A93: Review 2 - 2017-18 (Based on results evidenced December through February, how/should strategies be changed?)
A95: (New SIP will be developed based on end of year results to begin the next two year planning cycle.)
A96: ACT: School Improvement Plans are developed based on data analyses and/or comprehensive needs assessments (PLAN), to implement solutions (DO), to understand the results or impact (CHECK) and to make adjustments based upon the outcomes of the strategy implementation (ACT).
A97: Based upon identified results, should/how should strategies be changed?
A98: Review 1 - 2016-17 (Based on results evidenced August through November, should/how strategies be changed?)
A100: Review 2 - 2016-17 (Based on results evidenced December through February, should/how strategies be changed?)
A102: Review 3 - 2016-17 (Based on results evidenced March through June, should/how strategies be changed?)
A104: Review 1 - 2017-18 (Based on results evidenced August through November, should/how strategies be changed?)
A106: Review 2 - 2017-18 (Based on results evidenced December through February, should/how strategies be changed?)
A108: (New SIP will be developed based on end of year results to begin the next two year planning cycle.)

Sheet Title I Program Worksheet 1
A1: TITLE I PROGRAM WORKSHEET (SWP and TA)
A2: School Name: | C2: ='Cover Sheet'!B2 -> Tucker High School | H2: School Number: | I2: ='Cover Sheet'!H2 -> 593
A3: Principal: | C3: ='Cover Sheet'!B4 -> Tamra N. Watts
A4: LEA Name/Number: | C4: DeKalb County School District (644)
A6: Priority Area 1
A7: ='Data Analysis'!A62 -> Improve Student Lexile Scores
A9: Improvement Strategy #1
A10: ='Priority Area 1'!A10:I10 -> Use research based reading strategies to improve lexile scores.
A11: Action Steps to Implement Improvement Strategy | C11: Title I Program Component | E11: #1 | H11: #2 | K11: #3
E12: Budget Category 1 (May select up to three Budget Categories for each action step.) | F12: Budget Code | G12: Amount | H12: Budget Category 2 (May select up to three Budget Categories for each action step.) | I12: Budget Code | J12: Amount | K12: Budget Category 3 (May select up to three Budget Categories for each action step.) | L12: Budget Code | M12: Amount | N12: Total Federal Funding for Action Step
A13: ='Priority Area 1'!A13 -> 1) Students will create and utilize graphic organizers/Thinking Maps with fiction and non-fiction texts during daily instruction. | C13: Schoolwide Reform Strategies (TA & SWP) | F13: =IF(COUNTIF(BudgetDD!$A$2:$A$35,E13),VLOOKUP(E13,BudgetDD!$A$2:$B$35,2,FALSE),"") ->  | I13: =IF(COUNTIF(BudgetDD!$A$2:$A$35,H13),VLOOKUP(H13,BudgetDD!$A$2:$B$35,2,FALSE),"") ->  | L13: =IF(COUNTIF(BudgetDD!$A$1:$A$35,K13),VLOOKUP(K13,BudgetDD!$A$1:$B$35,2,FALSE),"") ->  | N13: =G13+J13+M13 -> 0
A14: ='Priority Area 1'!A14 -> 2) Students will develop and apply strategies while reading independently during daily instruction. | C14: Schoolwide Reform Strategies (TA & SWP) | F14: =IF(COUNTIF(BudgetDD!$A$2:$A$35,E14),VLOOKUP(E14,BudgetDD!$A$2:$B$35,2,FALSE),"") ->  | I14: =IF(COUNTIF(BudgetDD!$A$2:$A$35,H14),VLOOKUP(H14,BudgetDD!$A$2:$B$35,2,FALSE),"") ->  | L14: =IF(COUNTIF(BudgetDD!$A$1:$A$35,K14),VLOOKUP(K14,BudgetDD!$A$1:$B$35,2,FALSE),"") ->  | N14: 0
A15: ='Priority Area 1'!A15 -> 3) Teachers will differentiate instruction and utilize small group instruction with paras for remediation, reinforcement and enrichment of reading strategies in core content. | C15: Schoolwide Reform Strategies (TA & SWP) | F15: =IF(COUNTIF(BudgetDD!$A$2:$A$35,E15),VLOOKUP(E15,BudgetDD!$A$2:$B$35,2,FALSE),"") ->  | I15: =IF(COUNTIF(BudgetDD!$A$2:$A$35,H15),VLOOKUP(H15,BudgetDD!$A$2:$B$35,2,FALSE),"") ->  | L15: =IF(COUNTIF(BudgetDD!$A$1:$A$35,K15),VLOOKUP(K15,BudgetDD!$A$1:$B$35,2,FALSE),"") ->  | N15: 0
A16: ='Priority Area 1'!A16 -> 4) Teachers will develop a plan for student reading level growith, assess student reading levels biweekly, conference biweekly with individual students to discuss Lexile levels, and monitor student progress daily while ensuring each student is reading material appropriate for his/her instructional reading level. | C16: Schoolwide Reform Strategies (TA & SWP) Including teachers in decisions regarding the use of assessments Activities for children experiencing difficulty | E16: Instructional Books and Periodicals | F16: =IF(COUNTIF(BudgetDD!$A$2:$A$35,E16),VLOOKUP(E16,BudgetDD!$A$2:$B$35,2,FALSE),"") -> 203-38-62-00-400203-593-1750 | G16: 1154 | I16: =IF(COUNTIF(BudgetDD!$A$2:$A$35,H16),VLOOKUP(H16,BudgetDD!$A$2:$B$35,2,FALSE),"") ->  | L16: =IF(COUNTIF(BudgetDD!$A$1:$A$35,K16),VLOOKUP(K16,BudgetDD!$A$1:$B$35,2,FALSE),"") ->  | N16: 1154
A17: ='Priority Area 1'!A17 -> 5) Academic coaches will provide instructional strategies to new teachers to include coaching and modeling; professional learning facilitators and academic coaches will provide reading strategies professional learning to teachers based on a needs assessment and observations during collaborative planning time. | C17: Schoolwide Reform Strategies (TA & SWP) Strategies to attract teachers that meet state determined professional qualifications to high-need schools | F17: =IF(COUNTIF(BudgetDD!$A$2:$A$35,E17),VLOOKUP(E17,BudgetDD!$A$2:$B$35,2,FALSE),"") ->  | I17: =IF(COUNTIF(BudgetDD!$A$2:$A$35,H17),VLOOKUP(H17,BudgetDD!$A$2:$B$35,2,FALSE),"") ->  | L17: =IF(COUNTIF(BudgetDD!$A$1:$A$35,K17),VLOOKUP(K17,BudgetDD!$A$1:$B$35,2,FALSE),"") ->  | N17: 0
A18: ='Priority Area 1'!A18 -> 0 | F18: =IF(COUNTIF(BudgetDD!$A$2:$A$35,E18),VLOOKUP(E18,BudgetDD!$A$2:$B$35,2,FALSE),"") ->  | I18: =IF(COUNTIF(BudgetDD!$A$2:$A$35,H18),VLOOKUP(H18,BudgetDD!$A$2:$B$35,2,FALSE),"") ->  | L18: =IF(COUNTIF(BudgetDD!$A$1:$A$35,K18),VLOOKUP(K18,BudgetDD!$A$1:$B$35,2,FALSE),"") ->  | N18: 0
A19: ='Priority Area 1'!A19 -> 6) Administrative team will review/analyze data with teachers, conduct classroom visits, and provide feedback with next steps three time a year (pre, mid, end) to teachers including conferences and emails. | C19: Schoolwide Reform Strategies (TA & SWP) Including teachers in decisions regarding the use of assessments | F19: =IF(COUNTIF(BudgetDD!$A$2:$A$35,E19),VLOOKUP(E19,BudgetDD!$A$2:$B$35,2,FALSE),"") ->  | I19: =IF(COUNTIF(BudgetDD!$A$2:$A$35,H19),VLOOKUP(H19,BudgetDD!$A$2:$B$35,2,FALSE),"") ->  | L19: =IF(COUNTIF(BudgetDD!$A$1:$A$35,K19),VLOOKUP(K19,BudgetDD!$A$1:$B$35,2,FALSE),"") ->  | N19: 0
A20: ='Priority Area 1'!A20 -> 7) A push-in reading teacher will co-teach with teachers who have students with Lexile scores below 1050 to supplement daily instruction with reading strategies in biology, US History, and economics. | C20: Schoolwide Reform Strategies (TA & SWP) Activities for children experiencing difficulty Schoolwide Reform Strategies (TA & SWP) Activities for children experiencing difficulty | F20: =IF(COUNTIF(BudgetDD!$A$2:$A$35,E20),VLOOKUP(E20,BudgetDD!$A$2:$B$35,2,FALSE),"") ->  | I20: =IF(COUNTIF(BudgetDD!$A$2:$A$35,H20),VLOOKUP(H20,BudgetDD!$A$2:$B$35,2,FALSE),"") ->  | L20: =IF(COUNTIF(BudgetDD!$A$1:$A$35,K20),VLOOKUP(K20,BudgetDD!$A$1:$B$35,2,FALSE),"") ->  | N20: 0
A21: ='Priority Area 1'!A21 -> 8) Provide extended day learning opportunities for students 100 minutes per week (enrichment period) during the day and Credit recovery during the summer for remediation and reinforcement of ELA, science, and Social Studies standards. | C21: Schoolwide Reform Strategies (TA & SWP) Activities for children experiencing difficulty | F21: =IF(COUNTIF(BudgetDD!$A$2:$A$35,E21),VLOOKUP(E21,BudgetDD!$A$2:$B$35,2,FALSE),"") ->  | I21: =IF(COUNTIF(BudgetDD!$A$2:$A$35,H21),VLOOKUP(H21,BudgetDD!$A$2:$B$35,2,FALSE),"") ->  | L21: =IF(COUNTIF(BudgetDD!$A$1:$A$35,K21),VLOOKUP(K21,BudgetDD!$A$1:$B$35,2,FALSE),"") ->  | N21: 0
A22: Professional Development Action Steps (Beginning and Ending Dates of Activity, Consultants Providing Training, and Description of Services) | E22: Budget Category 1 (May select up to three Budget Categories for each action step.) | F22: Budget Code | G22: Amount | H22: Budget Category 2 (May select up to three Budget Categories for each action step.) | I22: Budget Code | J22: Amount | K22: Budget Category 3 (May select up to three Budget Categories for each action step.) | L22: Budget Code | M22: Amount | N22: Total Federal Funding for Action Step
A23: ='Priority Area 1'!A24:F24 -> 10) Reading strategies professional learning for teachers based on a needs assessment and observations during collaborative planning time | F23: =IF(COUNTIF(BudgetDD!$A$2:$A$35,E23),VLOOKUP(E23,BudgetDD!$A$2:$B$35,2,FALSE),"") ->  | I23: =IF(COUNTIF(BudgetDD!$A$2:$A$35,H23),VLOOKUP(H23,BudgetDD!$A$2:$B$35,2,FALSE),"") ->  | L23: =IF(COUNTIF(BudgetDD!$A$1:$A$35,K23),VLOOKUP(K23,BudgetDD!$A$1:$B$35,2,FALSE),"") ->  | N23: =G23+J23+M23 -> 0
A24: ='Priority Area 1'!A25:F25 -> 11) Graphic organizers/Thinking Maps professional learning for new teachers during planning periods monthly | F24: =IF(COUNTIF(BudgetDD!$A$2:$A$35,E24),VLOOKUP(E24,BudgetDD!$A$2:$B$35,2,FALSE),"") ->  | I24: =IF(COUNTIF(BudgetDD!$A$2:$A$35,H24),VLOOKUP(H24,BudgetDD!$A$2:$B$35,2,FALSE),"") ->  | L24: =IF(COUNTIF(BudgetDD!$A$1:$A$35,K24),VLOOKUP(K24,BudgetDD!$A$1:$B$35,2,FALSE),"") ->  | N24: =G24+J24+M24 -> 0
A25: ='Priority Area 1'!A26:F26 -> 12) Lexile professional learning for teachers during planning periods twice per semester | F25: =IF(COUNTIF(BudgetDD!$A$2:$A$35,E25),VLOOKUP(E25,BudgetDD!$A$2:$B$35,2,FALSE),"") ->  | I25: =IF(COUNTIF(BudgetDD!$A$2:$A$35,H25),VLOOKUP(H25,BudgetDD!$A$2:$B$35,2,FALSE),"") ->  | L25: =IF(COUNTIF(BudgetDD!$A$1:$A$35,K25),VLOOKUP(K25,BudgetDD!$A$1:$B$35,2,FALSE),"") ->  | N25: =G25+J25+M25 -> 0
A26: Parent/Family Engagement Action Steps | C26: Title I Parent/Family Engagement Component | E26: Budget Category 1 (May select up to three Budget Categories for each action step.) | F26: Budget Code | G26: Amount | H26: Budget Category 2 (May select up to three Budget Categories for each action step.) | I26: Budget Code | J26: Amount | K26: Budget Category 3 (May select up to three Budget Categories for each action step.) | L26: Budget Code | M26: Amount | N26: Total Federal Funding for Action Step
A27: ='Priority Area 1'!A29:F29 -> 13) Provide a parent workshop on Lexile scores (interpretation and reading strategies/resources for parents to help their children at home) held during flexible times. | C27: 2) Offer a flexible number of meetings 8) Provide parent assistance on understanding state academic content standards and student academic achievement standards, monitoring, and progress 9) Provide materials and training to help parents work with their children to improve achievement. 11) Coordinate and integrate parent involvement programs and activities | E27: PFE Communications | F27: =IF(COUNTIF(BudgetDD!$A$2:$A$35,E27),VLOOKUP(E27,BudgetDD!$A$2:$B$35,2,FALSE),"") -> 203-42-97-00-301203-593-1750 | G27: 3528 | I27: =IF(COUNTIF(BudgetDD!$A$2:$A$35,H27),VLOOKUP(H27,BudgetDD!$A$2:$B$35,2,FALSE),"") ->  | L27: =IF(COUNTIF(BudgetDD!$A$1:$A$35,K27),VLOOKUP(K27,BudgetDD!$A$1:$B$35,2,FALSE),"") ->  | N27: =G27+J27+M27 -> 3528
A28: ='Priority Area 1'!A30:F30 -> 14) Provide parent workshop on core content (strategies and resources for parents to help their children at home with core content) held during flexible times. | C28: 2) Offer a flexible number of meetings 8) Provide parent assistance on understanding state academic content standards and student academic achievement standards, monitoring, and progress 9) Provide materials and training to help parents work with their children to improve achievement. 11) Coordinate and integrate parent involvement programs and activities | E28: PFE Supplies | F28: =IF(COUNTIF(BudgetDD!$A$2:$A$35,E28),VLOOKUP(E28,BudgetDD!$A$2:$B$35,2,FALSE),"") -> 203-42-53-00-301203-593-1750 | G28: 2219.14 | I28: =IF(COUNTIF(BudgetDD!$A$2:$A$35,H28),VLOOKUP(H28,BudgetDD!$A$2:$B$35,2,FALSE),"") ->  | L28: =IF(COUNTIF(BudgetDD!$A$1:$A$35,K28),VLOOKUP(K28,BudgetDD!$A$1:$B$35,2,FALSE),"") ->  | N28: =G28+J28+M28 -> 2219.14
A29: ='Priority Area 1'!A31:F31 -> 15) Provide stakeholders information and opportunities to give input, feedback, and request resources to assist their children at home with reading with translations available upon request (pre-planning meetings, annual meeting, Curriculum Night, Core Content/Literacy Nights, CSIP, compact and policy development, parent/teacher conferences, email, website) | C29: You may select more than one component from the following components - Components 1-13 are required 1) Convene a Title I Annual public meeting 4) Provide timely information to parents through various methods 6) Provide for parent comments and feedback on the content of the Schoolwide program plan 6) Provide for parent comments and feedback on the content of the Schoolwide program plan 7) Develop School-Parent compacts 12) Ensure that information is clear and understandable for parents, translate as needed 13) Provide opportunities for parents with limited English proficiency, parents with disabilities, and parents of migratory children 11) Coordinate and integrate parent involvement programs and activities | F29: =IF(COUNTIF(BudgetDD!$A$2:$A$35,E29),VLOOKUP(E29,BudgetDD!$A$2:$B$35,2,FALSE),"") ->  | I29: =IF(COUNTIF(BudgetDD!$A$2:$A$35,H29),VLOOKUP(H29,BudgetDD!$A$2:$B$35,2,FALSE),"") ->  | L29: =IF(COUNTIF(BudgetDD!$A$1:$A$35,K29),VLOOKUP(K29,BudgetDD!$A$1:$B$35,2,FALSE),"") ->  | N29: =G29+J29+M29 -> 0
M30: Subtotal #1: | N30: =SUM(N13:N29) -> 6901.14
A31: Improvement Strategy #2
A32: ='Priority Area 1'!A33 -> Use iLit to improve reading skills.
A33: Action Steps to Implement Improvement Strategy | C33: Title I Program Component | E33: #1 | H33: #2 | K33: #3
E34: Budget Category 1 (May select up to three Budget Categories for each action step.) | F34: Budget Code | G34: Amount | H34: Budget Category 2 (May select up to three Budget Categories for each action step.) | I34: Budget Code | J34: Amount | K34: Budget Category 3 (May select up to three Budget Categories for each action step.) | L34: Budget Code | M34: Amount | N34: Total Federal Funding for Action Step
A35: ='Priority Area 1'!A36:F36 -> 1) Work with counselors to schedule students with Lexile scores below 1050 in double dose reading classes. | C35: Schoolwide Reform Strategies (TA & SWP) | F35: =IF(COUNTIF(BudgetDD!$A$2:$A$35,E35),VLOOKUP(E35,BudgetDD!$A$2:$B$35,2,FALSE),"") ->  | I35: =IF(COUNTIF(BudgetDD!$A$2:$A$35,H35),VLOOKUP(H35,BudgetDD!$A$2:$B$35,2,FALSE),"") ->  | L35: =IF(COUNTIF(BudgetDD!$A$1:$A$35,K35),VLOOKUP(K35,BudgetDD!$A$1:$B$35,2,FALSE),"") ->  | N35: =G35+J35+M35 -> 0
A36: ='Priority Area 1'!A37:F37 -> 2) Students will use iPads for personalized reading support based on Lexile scores to engage students as readers while improving literacy skills and language development during daily instruction. | C36: Schoolwide Reform Strategies (TA & SWP) Activities for children experiencing difficulty | F36: =IF(COUNTIF(BudgetDD!$A$2:$A$35,E36),VLOOKUP(E36,BudgetDD!$A$2:$B$35,2,FALSE),"") ->  | I36: =IF(COUNTIF(BudgetDD!$A$2:$A$35,H36),VLOOKUP(H36,BudgetDD!$A$2:$B$35,2,FALSE),"") ->  | L36: =IF(COUNTIF(BudgetDD!$A$1:$A$35,K36),VLOOKUP(K36,BudgetDD!$A$1:$B$35,2,FALSE),"") ->  | N36: 0
A37: ='Priority Area 1'!A38:F38 -> 3) Teachers will utilize iLit reports to individualize instruction and monitor student progres daily as well as conference weekly with individual students to discuss progress. | C37: Schoolwide Reform Strategies (TA & SWP) Activities for children experiencing difficulty | E37: Instructional Computer Software | F37: =IF(COUNTIF(BudgetDD!$A$2:$A$35,E37),VLOOKUP(E37,BudgetDD!$A$2:$B$35,2,FALSE),"") -> 203-38-53-05-400203-593-1750 | G37: 18000 | I37: =IF(COUNTIF(BudgetDD!$A$2:$A$35,H37),VLOOKUP(H37,BudgetDD!$A$2:$B$35,2,FALSE),"") ->  | L37: =IF(COUNTIF(BudgetDD!$A$1:$A$35,K37),VLOOKUP(K37,BudgetDD!$A$1:$B$35,2,FALSE),"") ->  | N37: 18000
A38: ='Priority Area 1'!A39:F39 -> 4) Administrative team will review/analyze data with teachers, conduct classroom visits, and provide feedback with next steps in a timely manner to teachers including conferences and emails. | C38: Schoolwide Reform Strategies (TA & SWP) Including teachers in decisions regarding the use of assessments | F38: =IF(COUNTIF(BudgetDD!$A$2:$A$35,E38),VLOOKUP(E38,BudgetDD!$A$2:$B$35,2,FALSE),"") ->  | I38: =IF(COUNTIF(BudgetDD!$A$2:$A$35,H38),VLOOKUP(H38,BudgetDD!$A$2:$B$35,2,FALSE),"") ->  | L38: =IF(COUNTIF(BudgetDD!$A$1:$A$35,K38),VLOOKUP(K38,BudgetDD!$A$1:$B$35,2,FALSE),"") ->  | N38: 0
A39: ='Priority Area 1'!A40:F40 -> 5) Purchase of TurnItIn as a literacey suppliment | C39: Schoolwide Reform Strategies (TA & SWP) Activities for children experiencing difficulty | E39: Instructional Computer Software | F39: =IF(COUNTIF(BudgetDD!$A$2:$A$35,E39),VLOOKUP(E39,BudgetDD!$A$2:$B$35,2,FALSE),"") -> 203-38-53-05-400203-593-1750 | G39: 12000 | I39: =IF(COUNTIF(BudgetDD!$A$2:$A$35,H39),VLOOKUP(H39,BudgetDD!$A$2:$B$35,2,FALSE),"") ->  | L39: =IF(COUNTIF(BudgetDD!$A$1:$A$35,K39),VLOOKUP(K39,BudgetDD!$A$1:$B$35,2,FALSE),"") ->  | N39: 12000
A40: ='Priority Area 1'!A41:F41 -> s | F40: =IF(COUNTIF(BudgetDD!$A$2:$A$35,E40),VLOOKUP(E40,BudgetDD!$A$2:$B$35,2,FALSE),"") ->  | I40: =IF(COUNTIF(BudgetDD!$A$2:$A$35,H40),VLOOKUP(H40,BudgetDD!$A$2:$B$35,2,FALSE),"") ->  | L40: =IF(COUNTIF(BudgetDD!$A$1:$A$35,K40),VLOOKUP(K40,BudgetDD!$A$1:$B$35,2,FALSE),"") ->  | N40: 0
A41: ='Priority Area 1'!A42:F42 -> 7) | F41: =IF(COUNTIF(BudgetDD!$A$2:$A$35,E41),VLOOKUP(E41,BudgetDD!$A$2:$B$35,2,FALSE),"") ->  | I41: =IF(COUNTIF(BudgetDD!$A$2:$A$35,H41),VLOOKUP(H41,BudgetDD!$A$2:$B$35,2,FALSE),"") ->  | L41: =IF(COUNTIF(BudgetDD!$A$1:$A$35,K41),VLOOKUP(K41,BudgetDD!$A$1:$B$35,2,FALSE),"") ->  | N41: 0
A42: ='Priority Area 1'!A43:F43 -> 8) | F42: =IF(COUNTIF(BudgetDD!$A$2:$A$35,E42),VLOOKUP(E42,BudgetDD!$A$2:$B$35,2,FALSE),"") ->  | I42: =IF(COUNTIF(BudgetDD!$A$2:$A$35,H42),VLOOKUP(H42,BudgetDD!$A$2:$B$35,2,FALSE),"") ->  | L42: =IF(COUNTIF(BudgetDD!$A$1:$A$35,K42),VLOOKUP(K42,BudgetDD!$A$1:$B$35,2,FALSE),"") ->  | N42: 0
A43: ='Priority Area 1'!A44:F44 -> 9) | F43: =IF(COUNTIF(BudgetDD!$A$2:$A$35,E43),VLOOKUP(E43,BudgetDD!$A$2:$B$35,2,FALSE),"") ->  | I43: =IF(COUNTIF(BudgetDD!$A$2:$A$35,H43),VLOOKUP(H43,BudgetDD!$A$2:$B$35,2,FALSE),"") ->  | L43: =IF(COUNTIF(BudgetDD!$A$1:$A$35,K43),VLOOKUP(K43,BudgetDD!$A$1:$B$35,2,FALSE),"") ->  | N43: 0
A44: Professional Development Action Steps (Beginning and Ending Dates of Activity, Consultants Providing Training, and Description of Services) | E44: Budget Category 1 (May select up to three Budget Categories for each action step.) | F44: Budget Code | G44: Amount | H44: Budget Category 2 (May select up to three Budget Categories for each action step.) | I44: Budget Code | J44: Amount | K44: Budget Category 3 (May select up to three Budget Categories for each action step.) | L44: Budget Code | M44: Amount | N44: Total Federal Funding for Action Step
A45: ='Priority Area 1'!A47:F47 -> 10) iLit Professional Learning for all teachers who will use the reading intervention program | F45: =IF(COUNTIF(BudgetDD!$A$2:$A$35,E45),VLOOKUP(E45,BudgetDD!$A$2:$B$35,2,FALSE),"") ->  | I45: =IF(COUNTIF(BudgetDD!$A$2:$A$35,H45),VLOOKUP(H45,BudgetDD!$A$2:$B$35,2,FALSE),"") ->  | L45: =IF(COUNTIF(BudgetDD!$A$1:$A$35,K45),VLOOKUP(K45,BudgetDD!$A$1:$B$35,2,FALSE),"") ->  | N45: =G45+J45+M45 -> 0
A46: ='Priority Area 1'!A48:F48 -> 11) | F46: =IF(COUNTIF(BudgetDD!$A$2:$A$35,E46),VLOOKUP(E46,BudgetDD!$A$2:$B$35,2,FALSE),"") ->  | I46: =IF(COUNTIF(BudgetDD!$A$2:$A$35,H46),VLOOKUP(H46,BudgetDD!$A$2:$B$35,2,FALSE),"") ->  | L46: =IF(COUNTIF(BudgetDD!$A$1:$A$35,K46),VLOOKUP(K46,BudgetDD!$A$1:$B$35,2,FALSE),"") ->  | N46: =G46+J46+M46 -> 0
A47: ='Priority Area 1'!A49:F49 -> 12) | F47: =IF(COUNTIF(BudgetDD!$A$2:$A$35,E47),VLOOKUP(E47,BudgetDD!$A$2:$B$35,2,FALSE),"") ->  | I47: =IF(COUNTIF(BudgetDD!$A$2:$A$35,H47),VLOOKUP(H47,BudgetDD!$A$2:$B$35,2,FALSE),"") ->  | L47: =IF(COUNTIF(BudgetDD!$A$1:$A$35,K47),VLOOKUP(K47,BudgetDD!$A$1:$B$35,2,FALSE),"") ->  | N47: =G47+J47+M47 -> 0
A48: Parent/Family Engagement Action Steps | C48: Title I Parent/Family Engagement Component | E48: Budget Category 1 (May select up to three Budget Categories for each action step.) | F48: Budget Code | G48: Amount | H48: Budget Category 2 (May select up to three Budget Categories for each action step.) | I48: Budget Code | J48: Amount | K48: Budget Category 3 (May select up to three Budget Categories for each action step.) | L48: Budget Code | M48: Amount | N48: Total Federal Funding for Action Step
A49: ='Priority Area 1'!A52:F52 -> 13) Provide stakeholders information and opportunities to give input, feedback, and request resources to assist their children at home with reading with translations available upon request (pre-planning meetings, annual meeting, Curriculum Night, Core Content/Literacy Nights, CSIP, compact and policy development, parent/teacher conferences, email, website) | C49: 1) Convene a Title I Annual public meeting 3) Involve parents in an organized, ongoing, and timely way in the planning, review, and improvement of Title I programs and Schoolwide program plans 4) Provide timely information to parents through various methods 5) Provide regular opportunities for parents to meet with school staff 6) Provide for parent comments and feedback on the content of the Schoolwide program plan 7) Develop School-Parent compacts 12) Ensure that information is clear and understandable for parents, translate as needed 13) Provide opportunities for parents with limited English proficiency, parents with disabilities, and parents of migratory children 11) Coordinate and integrate parent involvement programs and activities | F49: =IF(COUNTIF(BudgetDD!$A$2:$A$35,E49),VLOOKUP(E49,BudgetDD!$A$2:$B$35,2,FALSE),"") ->  | I49: =IF(COUNTIF(BudgetDD!$A$2:$A$35,H49),VLOOKUP(H49,BudgetDD!$A$2:$B$35,2,FALSE),"") ->  | L49: =IF(COUNTIF(BudgetDD!$A$1:$A$35,K49),VLOOKUP(K49,BudgetDD!$A$1:$B$35,2,FALSE),"") ->  | N49: =G49+J49+M49 -> 0
A50: ='Priority Area 1'!A53:F53 -> 14) Have parent literacy night(s) once per semester at flexible times for strategies and resources for parents to help their children at home with literacy in core content. | C50: 8) Provide parent assistance on understanding state academic content standards and student academic achievement standards, monitoring, and progress 9) Provide materials and training to help parents work with their children to improve achievement. 11) Coordinate and integrate parent involvement programs and activities | E50: PFE Books and Periodicals | F50: =IF(COUNTIF(BudgetDD!$A$2:$A$35,E50),VLOOKUP(E50,BudgetDD!$A$2:$B$35,2,FALSE),"") -> 203-42-62-00-301203-593-1750 | G50: 500 | I50: =IF(COUNTIF(BudgetDD!$A$2:$A$35,H50),VLOOKUP(H50,BudgetDD!$A$2:$B$35,2,FALSE),"") ->  | L50: =IF(COUNTIF(BudgetDD!$A$1:$A$35,K50),VLOOKUP(K50,BudgetDD!$A$1:$B$35,2,FALSE),"") ->  | N50: =G50+J50+M50 -> 500
A51: ='Priority Area 1'!A54:F54 -> 15) During faculty meetings, discuss and provide reading strategies/resources to teachers to engage parents with reading at home with their children. | C51: 10) Educate school personnel in the value and utility of contributions of parents | F51: =IF(COUNTIF(BudgetDD!$A$2:$A$35,E51),VLOOKUP(E51,BudgetDD!$A$2:$B$35,2,FALSE),"") ->  | I51: =IF(COUNTIF(BudgetDD!$A$2:$A$35,H51),VLOOKUP(H51,BudgetDD!$A$2:$B$35,2,FALSE),"") ->  | L51: =IF(COUNTIF(BudgetDD!$A$1:$A$35,K51),VLOOKUP(K51,BudgetDD!$A$1:$B$35,2,FALSE),"") ->  | N51: =G51+J51+M51 -> 0
M52: Subtotal #2: | N52: =SUM(N35:N51) -> 30500
A53: Improvement Strategy #3
A54: ='Priority Area 1'!A56 -> Use Edgenuity to improve literacy skills.
A55: Action Steps to Implement Improvement Strategy | C55: Title I Program Component | E55: #1 | H55: #2 | K55: #3
E56: Budget Category 1 (May select up to three Budget Categories for each action step.) | F56: Budget Code | G56: Amount | H56: Budget Category 2 (May select up to three Budget Categories for each action step.) | I56: Budget Code | J56: Amount | K56: Budget Category 3 (May select up to three Budget Categories for each action step.) | L56: Budget Code | M56: Amount | N56: Total Federal Funding for Action Step
A57: ='Priority Area 1'!A59:F59 -> 1) Identified students will use Edgenuity during the enrichment period 100 minutes/week for remediation, reinforcement, enrichment, and credit recovery in ELA, science, and Social Studies. | C57: Schoolwide Reform Strategies (TA & SWP) Activities for children experiencing difficulty | F57: =IF(COUNTIF(BudgetDD!$A$2:$A$35,E57),VLOOKUP(E57,BudgetDD!$A$2:$B$35,2,FALSE),"") ->  | G57: 0 | I57: =IF(COUNTIF(BudgetDD!$A$2:$A$35,H57),VLOOKUP(H57,BudgetDD!$A$2:$B$35,2,FALSE),"") ->  | L57: =IF(COUNTIF(BudgetDD!$A$1:$A$35,K57),VLOOKUP(K57,BudgetDD!$A$1:$B$35,2,FALSE),"") ->  | N57: =G57+J57+M57 -> 0
A58: ='Priority Area 1'!A60:F60 -> 2) Teachers will identify standards individual students have not mastered to differentiate instruction using Edgenuity . | C58: Schoolwide Reform Strategies (TA & SWP) Activities for children experiencing difficulty | F58: =IF(COUNTIF(BudgetDD!$A$2:$A$35,E58),VLOOKUP(E58,BudgetDD!$A$2:$B$35,2,FALSE),"") ->  | I58: =IF(COUNTIF(BudgetDD!$A$2:$A$35,H58),VLOOKUP(H58,BudgetDD!$A$2:$B$35,2,FALSE),"") ->  | L58: =IF(COUNTIF(BudgetDD!$A$1:$A$35,K58),VLOOKUP(K58,BudgetDD!$A$1:$B$35,2,FALSE),"") ->  | N58: 0
A59: ='Priority Area 1'!A61:F61 -> 3) Students will work independently using Edgenuity on the computer taking notes, practicing skills/content/concepts, and taking pre/post assessments to master identified standards in ELA, science, and Social Studies. | C59: Schoolwide Reform Strategies (TA & SWP) Activities for children experiencing difficulty | F59: =IF(COUNTIF(BudgetDD!$A$2:$A$35,E59),VLOOKUP(E59,BudgetDD!$A$2:$B$35,2,FALSE),"") ->  | I59: =IF(COUNTIF(BudgetDD!$A$2:$A$35,H59),VLOOKUP(H59,BudgetDD!$A$2:$B$35,2,FALSE),"") ->  | L59: =IF(COUNTIF(BudgetDD!$A$1:$A$35,K59),VLOOKUP(K59,BudgetDD!$A$1:$B$35,2,FALSE),"") ->  | N59: 0
A60: ='Priority Area 1'!A62:F62 -> 4) Administrative team will review/analyze data with teachers, conduct classroom visits, and provide feedback with next steps in a timely manner to teachers including conferences and emails. | C60: Schoolwide Reform Strategies (TA & SWP) Including teachers in decisions regarding the use of assessments | F60: =IF(COUNTIF(BudgetDD!$A$2:$A$35,E60),VLOOKUP(E60,BudgetDD!$A$2:$B$35,2,FALSE),"") ->  | I60: =IF(COUNTIF(BudgetDD!$A$2:$A$35,H60),VLOOKUP(H60,BudgetDD!$A$2:$B$35,2,FALSE),"") ->  | L60: =IF(COUNTIF(BudgetDD!$A$1:$A$35,K60),VLOOKUP(K60,BudgetDD!$A$1:$B$35,2,FALSE),"") ->  | N60: 0
A61: ='Priority Area 1'!A63:F63 -> 5) For rising 9th grade students, we do a three day aSummer Bridige Program during the month of July. During the month of September, we do a college fai for our studens; and we have colleges come into our building to meet with students in two ways: Mondays, Wednesdays, and Friday that meet students in the cafeteria; and Tuesdays and Thursdays that meet more intemately in the media center. For new studentas entering during the school year, we have them tour with a counselor and JROTC students introduce them to club and athletic sposors of their interest. | F61: =IF(COUNTIF(BudgetDD!$A$2:$A$35,E61),VLOOKUP(E61,BudgetDD!$A$2:$B$35,2,FALSE),"") ->  | I61: =IF(COUNTIF(BudgetDD!$A$2:$A$35,H61),VLOOKUP(H61,BudgetDD!$A$2:$B$35,2,FALSE),"") ->  | L61: =IF(COUNTIF(BudgetDD!$A$1:$A$35,K61),VLOOKUP(K61,BudgetDD!$A$1:$B$35,2,FALSE),"") ->  | N61: 0
A62: ='Priority Area 1'!A64:F64 -> 6) CSIP “The validity and reliability have already been determined for MAP and Georgia Milestones assessments.” Both of these should have been discussed on the data analysis tab and/or in the SMART goal for the priority areas. | F62: =IF(COUNTIF(BudgetDD!$A$2:$A$35,E62),VLOOKUP(E62,BudgetDD!$A$2:$B$35,2,FALSE),"") ->  | I62: =IF(COUNTIF(BudgetDD!$A$2:$A$35,H62),VLOOKUP(H62,BudgetDD!$A$2:$B$35,2,FALSE),"") ->  | L62: =IF(COUNTIF(BudgetDD!$A$1:$A$35,K62),VLOOKUP(K62,BudgetDD!$A$1:$B$35,2,FALSE),"") ->  | N62: 0
A63: ='Priority Area 1'!A65:F65 -> 7) Our plan is avalable on the district P-Drive, to the parents in the parent center, and to the community on our website. When it is necessary, this plan will be translated through the international center for the language needed. | F63: =IF(COUNTIF(BudgetDD!$A$2:$A$35,E63),VLOOKUP(E63,BudgetDD!$A$2:$B$35,2,FALSE),"") ->  | I63: =IF(COUNTIF(BudgetDD!$A$2:$A$35,H63),VLOOKUP(H63,BudgetDD!$A$2:$B$35,2,FALSE),"") ->  | L63: =IF(COUNTIF(BudgetDD!$A$1:$A$35,K63),VLOOKUP(K63,BudgetDD!$A$1:$B$35,2,FALSE),"") ->  | N63: 0
A64: ='Priority Area 1'!A66:F66 -> 8) | F64: =IF(COUNTIF(BudgetDD!$A$2:$A$35,E64),VLOOKUP(E64,BudgetDD!$A$2:$B$35,2,FALSE),"") ->  | I64: =IF(COUNTIF(BudgetDD!$A$2:$A$35,H64),VLOOKUP(H64,BudgetDD!$A$2:$B$35,2,FALSE),"") ->  | L64: =IF(COUNTIF(BudgetDD!$A$1:$A$35,K64),VLOOKUP(K64,BudgetDD!$A$1:$B$35,2,FALSE),"") ->  | N64: 0
A65: ='Priority Area 1'!A67:F67 -> 9) | F65: =IF(COUNTIF(BudgetDD!$A$2:$A$35,E65),VLOOKUP(E65,BudgetDD!$A$2:$B$35,2,FALSE),"") ->  | I65: =IF(COUNTIF(BudgetDD!$A$2:$A$35,H65),VLOOKUP(H65,BudgetDD!$A$2:$B$35,2,FALSE),"") ->  | L65: =IF(COUNTIF(BudgetDD!$A$1:$A$35,K65),VLOOKUP(K65,BudgetDD!$A$1:$B$35,2,FALSE),"") ->  | N65: 0
A66: Professional Development Action Steps (Beginning and Ending Dates of Activity, Consultants Providing Training, and Description of Services) | E66: Budget Category 1 (May select up to three Budget Categories for each action step.) | F66: Budget Code | G66: Amount | H66: Budget Category 2 (May select up to three Budget Categories for each action step.) | I66: Budget Code | J66: Amount | K66: Budget Category 3 (May select up to three Budget Categories for each action step.) | L66: Budget Code | M66: Amount | N66: Total Federal Funding for Action Step
A67: ='Priority Area 1'!A70:F70 -> 10) Provide Edgenuity professional learning to new teachers at beginning of school year and as needed throughout the year based on needs assessment. | F67: =IF(COUNTIF(BudgetDD!$A$2:$A$35,E67),VLOOKUP(E67,BudgetDD!$A$2:$B$35,2,FALSE),"") ->  | I67: =IF(COUNTIF(BudgetDD!$A$2:$A$35,H67),VLOOKUP(H67,BudgetDD!$A$2:$B$35,2,FALSE),"") ->  | L67: =IF(COUNTIF(BudgetDD!$A$1:$A$35,K67),VLOOKUP(K67,BudgetDD!$A$1:$B$35,2,FALSE),"") ->  | N67: =G67+J67+M67 -> 0
A68: ='Priority Area 1'!A71:F71 -> 11) | F68: =IF(COUNTIF(BudgetDD!$A$2:$A$35,E68),VLOOKUP(E68,BudgetDD!$A$2:$B$35,2,FALSE),"") ->  | I68: =IF(COUNTIF(BudgetDD!$A$2:$A$35,H68),VLOOKUP(H68,BudgetDD!$A$2:$B$35,2,FALSE),"") ->  | L68: =IF(COUNTIF(BudgetDD!$A$1:$A$35,K68),VLOOKUP(K68,BudgetDD!$A$1:$B$35,2,FALSE),"") ->  | N68: =G68+J68+M68 -> 0
A69: ='Priority Area 1'!A72:F72 -> 12) | F69: =IF(COUNTIF(BudgetDD!$A$2:$A$35,E69),VLOOKUP(E69,BudgetDD!$A$2:$B$35,2,FALSE),"") ->  | I69: =IF(COUNTIF(BudgetDD!$A$2:$A$35,H69),VLOOKUP(H69,BudgetDD!$A$2:$B$35,2,FALSE),"") ->  | L69: =IF(COUNTIF(BudgetDD!$A$1:$A$35,K69),VLOOKUP(K69,BudgetDD!$A$1:$B$35,2,FALSE),"") ->  | N69: =G69+J69+M69 -> 0
A70: Parent/Family Engagement Action Steps | C70: Title I Parent/Family Engagement Component | E70: Budget Category 1 (May select up to three Budget Categories for each action step.) | F70: Budget Code | G70: Amount | H70: Budget Category 2 (May select up to three Budget Categories for each action step.) | I70: Budget Code | J70: Amount | K70: Budget Category 3 (May select up to three Budget Categories for each action step.) | L70: Budget Code | M70: Amount | N70: Total Federal Funding for Action Step
A71: ='Priority Area 1'!A75:F75 -> 13) Provide Edgenuity parent workshops at flexible times for strategies and resources for parents to help their children at home. | C71: 2) Offer a flexible number of meetings 3) Involve parents in an organized, ongoing, and timely way in the planning, review, and improvement of Title I programs and Schoolwide program plans 4) Provide timely information to parents through various methods 8) Provide parent assistance on understanding state academic content standards and student academic achievement standards, monitoring, and progress 9) Provide materials and training to help parents work with their children to improve achievement. | F71: =IF(COUNTIF(BudgetDD!$A$2:$A$35,E71),VLOOKUP(E71,BudgetDD!$A$2:$B$35,2,FALSE),"") ->  | I71: =IF(COUNTIF(BudgetDD!$A$2:$A$35,H71),VLOOKUP(H71,BudgetDD!$A$2:$B$35,2,FALSE),"") ->  | L71: =IF(COUNTIF(BudgetDD!$A$1:$A$35,K71),VLOOKUP(K71,BudgetDD!$A$1:$B$35,2,FALSE),"") ->  | N71: =G71+J71+M71 -> 0
A72: ='Priority Area 1'!A76:F76 -> 14) During the 2017-2018 school year, provide stakeholders information and opportunities to give input, feedback, and request resources to assist their children at home with reading with translations available upon request (pre-planning meetings, annual meeting, Curriculum Night, Core Content/Literacy Nights, CSIP, compact and policy development, parent/teacher conferences, email, website) | C72: 1) Convene a Title I Annual public meeting 3) Involve parents in an organized, ongoing, and timely way in the planning, review, and improvement of Title I programs and Schoolwide program plans 4) Provide timely information to parents through various methods 5) Provide regular opportunities for parents to meet with school staff 6) Provide for parent comments and feedback on the content of the Schoolwide program plan 7) Develop School-Parent compacts 11) Coordinate and integrate parent involvement programs and activities 12) Ensure that information is clear and understandable for parents, translate as needed 13) Provide opportunities for parents with limited English proficiency, parents with disabilities, and parents of migratory children | F72: =IF(COUNTIF(BudgetDD!$A$2:$A$35,E72),VLOOKUP(E72,BudgetDD!$A$2:$B$35,2,FALSE),"") ->  | I72: =IF(COUNTIF(BudgetDD!$A$2:$A$35,H72),VLOOKUP(H72,BudgetDD!$A$2:$B$35,2,FALSE),"") ->  | L72: =IF(COUNTIF(BudgetDD!$A$1:$A$35,K72),VLOOKUP(K72,BudgetDD!$A$1:$B$35,2,FALSE),"") ->  | N72: =G72+J72+M72 -> 0
A73: ='Priority Area 1'!A77:F77 -> 15) During faculty meetings, discuss and demonstrate Edgenuity to teachers to engage parents with literacy in core content at home with their children. | C73: 10) Educate school personnel in the value and utility of contributions of parents | F73: =IF(COUNTIF(BudgetDD!$A$2:$A$35,E73),VLOOKUP(E73,BudgetDD!$A$2:$B$35,2,FALSE),"") ->  | I73: =IF(COUNTIF(BudgetDD!$A$2:$A$35,H73),VLOOKUP(H73,BudgetDD!$A$2:$B$35,2,FALSE),"") ->  | L73: =IF(COUNTIF(BudgetDD!$A$1:$A$35,K73),VLOOKUP(K73,BudgetDD!$A$1:$B$35,2,FALSE),"") ->  | N73: =G73+J73+M73 -> 0
M74: Subtotal #3: | N74: =SUM(N57:N73) -> 0

Sheet Title I Schoolwide Worksheet 1B (hidden)
A1: TITLE I SCHOOLWIDE WORKSHEET 1B
A2: School Name: | C2: ='Cover Sheet'!B2 -> Tucker High School | J2: School Number: | K2: ='Cover Sheet'!H2 -> 593
A3: Principal: | C3: ='Cover Sheet'!B4 -> Tamra N. Watts
A4: LEA Name/Number: | C4: Dekalb County Schools (644)
A6: Priority Area 1B
A7: ='Data Analysis'!A62 -> Improve Student Lexile Scores
A9: Improvement Strategy #1
A11: Action Steps to Implement Improvement Strategy | C11: Title I Schoolwide Component | E11: #1 | I11: #2 | N11: #3
E12: Addresses Reading, Math, or Reading & Math | F12: Budget Category 1 (May select up to two Budget Categories for each action step.) | G12: Budget Code | H12: Amount | I12: Addresses Reading, Math, or Reading & Math | J12: Budget Category 2 (May select up to two Budget Categories for each action step.) | K12: Budget Code | L12: Amount | M12: Addresses Reading, Math, or Reading & Math | N12: Budget Category 3 (May select up to three Budget Categories for each action step.) | O12: Budget Code | P12: Amount | Q12: Total Federal Funding for Action Step
A13: ='Priority Area 1'!A13 -> 1) Students will create and utilize graphic organizers/Thinking Maps with fiction and non-fiction texts during daily instruction. | C13: Select from drop down menu | E13: Select from drop down menu | F13: Select budget category from drop down menu | G13: =IF(COUNTIF($AF$72:$AG$100,F13),VLOOKUP(F13,$AF$72:$AG$100,2,FALSE),"") ->  | H13: 0 | I13: Select from drop down menu | J13: Select budget category from drop down menu | K13: =IF(COUNTIF($AF$72:$AG$100,J13),VLOOKUP(J13,$AF$72:$AG$100,2,FALSE),"") ->  | M13: Select from drop down menu | N13: Select budget category from drop down menu | O13: =IF(COUNTIF($AF$72:$AG$100,N13),VLOOKUP(N13,$AF$72:$AG$100,2,FALSE),"") ->  | P13: 0 | Q13: =H13+L13 -> 0
A14: ='Priority Area 1'!A14 -> 2) Students will develop and apply strategies while reading independently during daily instruction. | H14: 0 | P14: 0 | Q14: =H14+L14 -> 0
A15: ='Priority Area 1'!A15 -> 3) Teachers will differentiate instruction and utilize small group instruction with paras for remediation, reinforcement and enrichment of reading strategies in core content. | H15: 0 | P15: 0 | Q15: 0
A16: ='Priority Area 1'!A16 -> 4) Teachers will develop a plan for student reading level growith, assess student reading levels biweekly, conference biweekly with individual students to discuss Lexile levels, and monitor student progress daily while ensuring each student is reading material appropriate for his/her instructional reading level. | H16: 0 | P16: 0 | Q16: 0
A17: ='Priority Area 1'!A17 -> 5) Academic coaches will provide instructional strategies to new teachers to include coaching and modeling; professional learning facilitators and academic coaches will provide reading strategies professional learning to teachers based on a needs assessment and observations during collaborative planning time. | H17: 0 | P17: 0 | Q17: 0
A18: ='Priority Area 1'!A18 -> 0 | H18: 0 | P18: 0 | Q18: 0
A19: ='Priority Area 1'!A19 -> 6) Administrative team will review/analyze data with teachers, conduct classroom visits, and provide feedback with next steps three time a year (pre, mid, end) to teachers including conferences and emails. | H19: 0 | P19: 0 | Q19: 0
A20: ='Priority Area 1'!A20 -> 7) A push-in reading teacher will co-teach with teachers who have students with Lexile scores below 1050 to supplement daily instruction with reading strategies in biology, US History, and economics. | H20: 0 | P20: 0 | Q20: 0
A21: ='Priority Area 1'!A21 -> 8) Provide extended day learning opportunities for students 100 minutes per week (enrichment period) during the day and Credit recovery during the summer for remediation and reinforcement of ELA, science, and Social Studies standards. | H21: 0 | P21: 0 | Q21: 0
A22: Professional Development Action Steps (Beginning and Ending Dates of Activity, Consultants Providing Training, and Description of Services) | E22: Addresses Reading, Math, or Reading & Math | F22: Budget Category 1 (May select up to three Budget Categories for each action step.) | G22: Budget Code | H22: Amount | I22: Addresses Reading, Math, or Reading & Math | J22: Budget Category 2 (May select up to three Budget Categories for each action step.) | K22: Budget Code | L22: Amount | M22: Addresses Reading, Math, or Reading & Math | N22: Budget Category 3 (May select up to three Budget Categories for each action step.) | O22: Budget Code | P22: Amount | Q22: Total Federal Funding for Action Step
A23: ='Priority Area 1'!A24:F24 -> 10) Reading strategies professional learning for teachers based on a needs assessment and observations during collaborative planning time | E23: Select from drop down menu | G23: =IF(COUNTIF($AF$72:$AG$100,F23),VLOOKUP(F23,$AF$72:$AG$100,2,FALSE),"") ->  | H23: 0 | I23: Select from drop down menu | J23: Select budget category from drop down menu | K23: =IF(COUNTIF($AF$72:$AG$100,J23),VLOOKUP(J23,$AF$72:$AG$100,2,FALSE),"") ->  | M23: Select from drop down menu | N23: Select budget category from drop down menu | O23: =IF(COUNTIF($AF$72:$AG$100,N23),VLOOKUP(N23,$AF$72:$AG$100,2,FALSE),"") ->  | P23: 0 | Q23: =H23+L23+P23 -> 0
A24: ='Priority Area 1'!A25:F25 -> 11) Graphic organizers/Thinking Maps professional learning for new teachers during planning periods monthly | G24: =IF(COUNTIF($AF$72:$AG$100,F24),VLOOKUP(F24,$AF$72:$AG$100,2,FALSE),"") ->  | H24: 0 | K24: =IF(COUNTIF($AF$72:$AG$100,J24),VLOOKUP(J24,$AF$72:$AG$100,2,FALSE),"") ->  | O24: =IF(COUNTIF($AF$72:$AG$100,N24),VLOOKUP(N24,$AF$72:$AG$100,2,FALSE),"") ->  | P24: 0 | Q24: =H24+L24+P24 -> 0
A25: ='Priority Area 1'!A26:F26 -> 12) Lexile professional learning for teachers during planning periods twice per semester | G25: =IF(COUNTIF($AF$72:$AG$100,F25),VLOOKUP(F25,$AF$72:$AG$100,2,FALSE),"") ->  | H25: 0 | K25: =IF(COUNTIF($AF$72:$AG$100,J25),VLOOKUP(J25,$AF$72:$AG$100,2,FALSE),"") ->  | O25: =IF(COUNTIF($AF$72:$AG$100,N25),VLOOKUP(N25,$AF$72:$AG$100,2,FALSE),"") ->  | P25: 0 | Q25: =H25+L25+P25 -> 0
A26: Parent Involvement Action Steps | C26: Title I Parent Involvement Component | E26: Addresses Reading, Math, or Reading & Math | F26: Budget Category 1 (May select up to three Budget Categories for each action step.) | G26: Budget Code | H26: Amount | I26: Addresses Reading, Math, or Reading & Math | J26: Budget Category 2 (May select up to three Budget Categories for each action step.) | K26: Budget Code | L26: Amount | M26: Addresses Reading, Math, or Reading & Math | N26: Budget Category 3 (May select up to three Budget Categories for each action step.) | O26: Budget Code | P26: Amount | Q26: Total Federal Funding for Action Step
A27: ='Priority Area 1'!A29:F29 -> 13) Provide a parent workshop on Lexile scores (interpretation and reading strategies/resources for parents to help their children at home) held during flexible times. | C27: You may select more than one component from the following components - Components 1-13 are required, Components 14-21 are OPTIONAL | E27: Select from drop down menu | F27: Select budget category from drop down menu | G27: =IF(COUNTIF($AF$72:$AG$100,F27),VLOOKUP(F27,$AF$72:$AG$100,2,FALSE),"") ->  | H27: 0 | I27: Select from drop down menu | J27: Select budget category from drop down menu | K27: =IF(COUNTIF($AF$72:$AG$100,J27),VLOOKUP(J27,$AF$72:$AG$100,2,FALSE),"") ->  | M27: Select from drop down menu | N27: Select budget category from drop down menu | O27: =IF(COUNTIF($AF$72:$AG$100,N27),VLOOKUP(N27,$AF$72:$AG$100,2,FALSE),"") ->  | P27: 0 | Q27: =H27+L27+P27 -> 0
A28: ='Priority Area 1'!A30:F30 -> 14) Provide parent workshop on core content (strategies and resources for parents to help their children at home with core content) held during flexible times. | G28: =IF(COUNTIF($AF$72:$AG$100,F28),VLOOKUP(F28,$AF$72:$AG$100,2,FALSE),"") ->  | H28: 0 | K28: =IF(COUNTIF($AF$72:$AG$100,J28),VLOOKUP(J28,$AF$72:$AG$100,2,FALSE),"") ->  | O28: =IF(COUNTIF($AF$72:$AG$100,N28),VLOOKUP(N28,$AF$72:$AG$100,2,FALSE),"") ->  | P28: 0 | Q28: =H28+L28+P28 -> 0
A29: ='Priority Area 1'!A31:F31 -> 15) Provide stakeholders information and opportunities to give input, feedback, and request resources to assist their children at home with reading with translations available upon request (pre-planning meetings, annual meeting, Curriculum Night, Core Content/Literacy Nights, CSIP, compact and policy development, parent/teacher conferences, email, website) | G29: =IF(COUNTIF($AF$72:$AG$100,F29),VLOOKUP(F29,$AF$72:$AG$100,2,FALSE),"") ->  | H29: 0 | K29: =IF(COUNTIF($AF$72:$AG$100,J29),VLOOKUP(J29,$AF$72:$AG$100,2,FALSE),"") ->  | O29: =IF(COUNTIF($AF$72:$AG$100,N29),VLOOKUP(N29,$AF$72:$AG$100,2,FALSE),"") ->  | P29: 0 | Q29: =H29+L29+P29 -> 0
P30: Subtotal #1: | Q30: =SUM(Q13:Q29) -> 0 | T30: =Q30+Q52+#REF! -> 
A31: Improvement Strategy #2
A32: ='Priority Area 1'!A33 -> Use iLit to improve reading skills.
A33: Action Steps to Implement Improvement Strategy | C33: Title I Schoolwide Component | E33: #1 | I33: #2 | N33: #3
E34: Addresses Reading, Math, or Reading & Math | F34: Budget Category 1 (May select up to three Budget Categories for each action step.) | G34: Budget Code | H34: Amount | I34: Addresses Reading, Math, or Reading & Math | J34: Budget Category 2 (May select up to three Budget Categories for each action step.) | K34: Budget Code | L34: Amount | M34: Addresses Reading, Math, or Reading & Math | N34: Budget Category 3 (May select up to three Budget Categories for each action step.) | O34: Budget Code | P34: Amount | Q34: Total Federal Funding for Action Step
A35: ='Priority Area 1'!A36:F36 -> 1) Work with counselors to schedule students with Lexile scores below 1050 in double dose reading classes. | C35: Select from drop down menu | E35: Select from drop down menu | F35: Extended Year/Day Teacher | G35: =IF(COUNTIF($AF$72:$AG$100,F35),VLOOKUP(F35,$AF$72:$AG$100,2,FALSE),"") -> 3-5350-050-121 | H35: 0 | I35: Select from drop down menu | J35: Select budget category from drop down menu | K35: =IF(COUNTIF($AF$72:$AG$100,J35),VLOOKUP(J35,$AF$72:$AG$100,2,FALSE),"") ->  | L35: 0 | M35: Select from drop down menu | N35: Select budget category from drop down menu | O35: =IF(COUNTIF($AF$72:$AG$100,N35),VLOOKUP(N35,$AF$72:$AG$100,2,FALSE),"") ->  | P35: 0 | Q35: =H35+L35+P35 -> 0
A36: ='Priority Area 1'!A37:F37 -> 2) Students will use iPads for personalized reading support based on Lexile scores to engage students as readers while improving literacy skills and language development during daily instruction. | H36: 0 | L36: 0 | P36: 0 | Q36: =H36+L36+P36 -> 0
A37: ='Priority Area 1'!A38:F38 -> 3) Teachers will utilize iLit reports to individualize instruction and monitor student progres daily as well as conference weekly with individual students to discuss progress. | H37: 0 | L37: 0 | P37: 0 | Q37: 0
A38: ='Priority Area 1'!A39:F39 -> 4) Administrative team will review/analyze data with teachers, conduct classroom visits, and provide feedback with next steps in a timely manner to teachers including conferences and emails. | H38: 0 | L38: 0 | P38: 0 | Q38: 0
A39: ='Priority Area 1'!A40:F40 -> 5) Purchase of TurnItIn as a literacey suppliment | H39: 0 | L39: 0 | P39: 0 | Q39: 0
A40: ='Priority Area 1'!A41:F41 -> s | H40: 0 | L40: 0 | P40: 0 | Q40: 0
A41: ='Priority Area 1'!A42:F42 -> 7) | H41: 0 | L41: 0 | P41: 0 | Q41: 0
A42: ='Priority Area 1'!A43:F43 -> 8) | H42: 0 | L42: 0 | P42: 0 | Q42: 0
A43: ='Priority Area 1'!A44:F44 -> 9) | H43: 0 | L43: 0 | P43: 0 | Q43: 0
A44: Professional Development Action Steps (Beginning and Ending Dates of Activity, Consultants Providing Training, and Description of Services) | E44: Addresses Reading, Math, or Reading & Math | F44: Budget Category 1 (May select up to three Budget Categories for each action step.) | G44: Budget Code | H44: Amount | I44: Addresses Reading, Math, or Reading & Math | J44: Budget Category 2 (May select up to three Budget Categories for each action step.) | K44: Budget Code | L44: Amount | M44: Addresses Reading, Math, or Reading & Math | N44: Budget Category 3 (May select up to three Budget Categories for each action step.) | O44: Budget Code | P44: Amount | Q44: Total Federal Funding for Action Step
A45: ='Priority Area 1'!A47:F47 -> 10) iLit Professional Learning for all teachers who will use the reading intervention program | E45: Select from drop down menu | F45: Select budget category from drop down menu | G45: =IF(COUNTIF($AF$72:$AG$100,F45),VLOOKUP(F45,$AF$72:$AG$100,2,FALSE),"") ->  | H45: 0 | J45: Select budget category from drop down menu | K45: =IF(COUNTIF($AF$72:$AG$100,J45),VLOOKUP(J45,$AF$72:$AG$100,2,FALSE),"") ->  | L45: 0 | M45: Select from drop down menu | N45: Select budget category from drop down menu | O45: =IF(COUNTIF($AF$72:$AG$100,N45),VLOOKUP(N45,$AF$72:$AG$100,2,FALSE),"") ->  | P45: 0 | Q45: =H45+L45+P45 -> 0
A46: ='Priority Area 1'!A48:F48 -> 11) | G46: =IF(COUNTIF($AF$72:$AG$100,F46),VLOOKUP(F46,$AF$72:$AG$100,2,FALSE),"") ->  | H46: 0 | K46: =IF(COUNTIF($AF$72:$AG$100,J46),VLOOKUP(J46,$AF$72:$AG$100,2,FALSE),"") ->  | L46: 0 | O46: =IF(COUNTIF($AF$72:$AG$100,N46),VLOOKUP(N46,$AF$72:$AG$100,2,FALSE),"") ->  | P46: 0 | Q46: =H46+L46+P46 -> 0
A47: ='Priority Area 1'!A49:F49 -> 12) | G47: =IF(COUNTIF($AF$72:$AG$100,F47),VLOOKUP(F47,$AF$72:$AG$100,2,FALSE),"") ->  | H47: 0 | K47: =IF(COUNTIF($AF$72:$AG$100,J47),VLOOKUP(J47,$AF$72:$AG$100,2,FALSE),"") ->  | L47: 0 | O47: =IF(COUNTIF($AF$72:$AG$100,N47),VLOOKUP(N47,$AF$72:$AG$100,2,FALSE),"") ->  | P47: 0 | Q47: =H47+L47+P47 -> 0
A48: Parent Involvement Action Steps | C48: Title I Parent Involvement Component | E48: Addresses Reading, Math, or Reading & Math | F48: Budget Category 1 (May select up to three Budget Categories for each action step.) | G48: Budget Code | H48: Amount | I48: Addresses Reading, Math, or Reading & Math | J48: Budget Category 2 (May select up to three Budget Categories for each action step.) | K48: Budget Code | L48: Amount | M48: Addresses Reading, Math, or Reading & Math | N48: Budget Category 3 (May select up to three Budget Categories for each action step.) | O48: Budget Code | P48: Amount | Q48: Total Federal Funding for Action Step
A49: ='Priority Area 1'!A52:F52 -> 13) Provide stakeholders information and opportunities to give input, feedback, and request resources to assist their children at home with reading with translations available upon request (pre-planning meetings, annual meeting, Curriculum Night, Core Content/Literacy Nights, CSIP, compact and policy development, parent/teacher conferences, email, website) | C49: You may select more than one component from the following components - Components 1-13 are required, Components 14-21 are OPTIONAL | E49: Select from drop down menu | F49: Select budget category from drop down menu | G49: =IF(COUNTIF($AF$72:$AG$100,F49),VLOOKUP(F49,$AF$72:$AG$100,2,FALSE),"") ->  | H49: 0 | I49: Select from drop down menu | J49: Select budget category from drop down menu | K49: =IF(COUNTIF($AF$72:$AG$100,J49),VLOOKUP(J49,$AF$72:$AG$100,2,FALSE),"") ->  | L49: 0 | M49: Select from drop down menu | N49: Select budget category from drop down menu | O49: =IF(COUNTIF($AF$72:$AG$100,N49),VLOOKUP(N49,$AF$72:$AG$100,2,FALSE),"") ->  | P49: 0 | Q49: =H49+L49+P49 -> 0
A50: ='Priority Area 1'!A53:F53 -> 14) Have parent literacy night(s) once per semester at flexible times for strategies and resources for parents to help their children at home with literacy in core content. | G50: =IF(COUNTIF($AF$72:$AG$100,F50),VLOOKUP(F50,$AF$72:$AG$100,2,FALSE),"") ->  | H50: 0 | K50: =IF(COUNTIF($AF$72:$AG$100,J50),VLOOKUP(J50,$AF$72:$AG$100,2,FALSE),"") ->  | L50: 0 | O50: =IF(COUNTIF($AF$72:$AG$100,N50),VLOOKUP(N50,$AF$72:$AG$100,2,FALSE),"") ->  | P50: 0 | Q50: =H50+L50+P50 -> 0
A51: ='Priority Area 1'!A54:F54 -> 15) During faculty meetings, discuss and provide reading strategies/resources to teachers to engage parents with reading at home with their children. | G51: =IF(COUNTIF($AF$72:$AG$100,F51),VLOOKUP(F51,$AF$72:$AG$100,2,FALSE),"") ->  | H51: 0 | K51: =IF(COUNTIF($AF$72:$AG$100,J51),VLOOKUP(J51,$AF$72:$AG$100,2,FALSE),"") ->  | L51: 0 | O51: =IF(COUNTIF($AF$72:$AG$100,N51),VLOOKUP(N51,$AF$72:$AG$100,2,FALSE),"") ->  | P51: 0 | Q51: =H51+L51+P51 -> 0
P52: Subtotal #2: | Q52: =SUM(Q35:Q51) -> 0
A53: Improvement Strategy #3
A54: ='Priority Area 1'!A56 -> Use Edgenuity to improve literacy skills.
A55: Action Steps to Implement Improvement Strategy | C55: Title I Schoolwide Component | E55: #1 | I55: #2 | N55: #3
E56: Addresses Reading, Math, or Reading & Math | F56: Budget Category 1 (May select up to three Budget Categories for each action step.) | G56: Budget Code | H56: Amount | I56: Addresses Reading, Math, or Reading & Math | J56: Budget Category 2 (May select up to three Budget Categories for each action step.) | K56: Budget Code | L56: Amount | M56: Addresses Reading, Math, or Reading & Math | N56: Budget Category 3 (May select up to three Budget Categories for each action step.) | O56: Budget Code | P56: Amount | Q56: Total Federal Funding for Action Step
A57: ='Priority Area 1'!A59:F59 -> 1) Identified students will use Edgenuity during the enrichment period 100 minutes/week for remediation, reinforcement, enrichment, and credit recovery in ELA, science, and Social Studies. | C57: Select from drop down menu | E57: Select from drop down menu | F57: Select budget category from drop down menu | G57: =IF(COUNTIF($AF$72:$AG$100,F57),VLOOKUP(F57,$AF$72:$AG$100,2,FALSE),"") ->  | H57: 0 | I57: Select from drop down menu | J57: Select budget category from drop down menu | K57: =IF(COUNTIF($AF$72:$AG$100,J57),VLOOKUP(J57,$AF$72:$AG$100,2,FALSE),"") ->  | L57: 0 | M57: Select from drop down menu | N57: Select budget category from drop down menu | O57: =IF(COUNTIF($AF$72:$AG$100,N57),VLOOKUP(N57,$AF$72:$AG$100,2,FALSE),"") ->  | P57: 0 | Q57: =H57+L57+P57 -> 0
A58: ='Priority Area 1'!A60:F60 -> 2) Teachers will identify standards individual students have not mastered to differentiate instruction using Edgenuity . | H58: 0 | L58: 0 | P58: 0 | Q58: =H58+L58+P58 -> 0
A59: ='Priority Area 1'!A61:F61 -> 3) Students will work independently using Edgenuity on the computer taking notes, practicing skills/content/concepts, and taking pre/post assessments to master identified standards in ELA, science, and Social Studies. | H59: 0 | L59: 0 | P59: 0 | Q59: 0
A60: ='Priority Area 1'!A62:F62 -> 4) Administrative team will review/analyze data with teachers, conduct classroom visits, and provide feedback with next steps in a timely manner to teachers including conferences and emails. | H60: 0 | L60: 0 | P60: 0 | Q60: 0
A61: ='Priority Area 1'!A63:F63 -> 5) For rising 9th grade students, we do a three day aSummer Bridige Program during the month of July. During the month of September, we do a college fai for our studens; and we have colleges come into our building to meet with students in two ways: Mondays, Wednesdays, and Friday that meet students in the cafeteria; and Tuesdays and Thursdays that meet more intemately in the media center. For new studentas entering during the school year, we have them tour with a counselor and JROTC students introduce them to club and athletic sposors of their interest. | H61: 0 | L61: 0 | P61: 0 | Q61: 0
A62: ='Priority Area 1'!A64:F64 -> 6) CSIP “The validity and reliability have already been determined for MAP and Georgia Milestones assessments.” Both of these should have been discussed on the data analysis tab and/or in the SMART goal for the priority areas. | H62: 0 | L62: 0 | P62: 0 | Q62: 0
A63: ='Priority Area 1'!A65:F65 -> 7) Our plan is avalable on the district P-Drive, to the parents in the parent center, and to the community on our website. When it is necessary, this plan will be translated through the international center for the language needed. | H63: 0 | L63: 0 | P63: 0 | Q63: 0
A64: ='Priority Area 1'!A66:F66 -> 8) | H64: 0 | L64: 0 | P64: 0 | Q64: 0
A65: ='Priority Area 1'!A67:F67 -> 9) | H65: 0 | L65: 0 | P65: 0 | Q65: 0 | R65: =SUM(Q57:Q65) -> 0 | AK65: =SUM(AJ57:AJ65) -> 0
A66: Professional Development Action Steps (Beginning and Ending Dates of Activity, Consultants Providing Training, and Description of Services) | E66: Addresses Reading, Math, or Reading & Math | F66: Budget Category 1 (May select up to three Budget Categories for each action step.) | G66: Budget Code | H66: Amount | I66: Addresses Reading, Math, or Reading & Math | J66: Budget Category 2 (May select up to three Budget Categories for each action step.) | K66: Budget Code | L66: Amount | M66: Addresses Reading, Math, or Reading & Math | N66: Budget Category 3 (May select up to three Budget Categories for each action step.) | O66: Budget Code | P66: Amount | Q66: Total Federal Funding for Action Step
A67: ='Priority Area 1'!A70:F70 -> 10) Provide Edgenuity professional learning to new teachers at beginning of school year and as needed throughout the year based on needs assessment. | E67: Select from drop down menu | F67: Select budget category from drop down menu | G67: =IF(COUNTIF($AF$72:$AG$100,F67),VLOOKUP(F67,$AF$72:$AG$100,2,FALSE),"") ->  | H67: 0 | I67: Select from drop down menu | J67: Select budget category from drop down menu | K67: =IF(COUNTIF($AF$72:$AG$100,J67),VLOOKUP(J67,$AF$72:$AG$100,2,FALSE),"") ->  | L67: 0 | M67: Select from drop down menu | N67: Select budget category from drop down menu | O67: =IF(COUNTIF($AF$72:$AG$100,N67),VLOOKUP(N67,$AF$72:$AG$100,2,FALSE),"") ->  | P67: 0 | Q67: =H67+L67+P67 -> 0
A68: ='Priority Area 1'!A71:F71 -> 11) | G68: =IF(COUNTIF($AF$72:$AG$100,F68),VLOOKUP(F68,$AF$72:$AG$100,2,FALSE),"") ->  | H68: 0 | K68: =IF(COUNTIF($AF$72:$AG$100,J68),VLOOKUP(J68,$AF$72:$AG$100,2,FALSE),"") ->  | L68: 0 | O68: =IF(COUNTIF($AF$72:$AG$100,N68),VLOOKUP(N68,$AF$72:$AG$100,2,FALSE),"") ->  | P68: 0 | Q68: =H68+L68+P68 -> 0
A69: ='Priority Area 1'!A72:F72 -> 12) | G69: =IF(COUNTIF($AF$72:$AG$100,F69),VLOOKUP(F69,$AF$72:$AG$100,2,FALSE),"") ->  | H69: 0 | K69: =IF(COUNTIF($AF$72:$AG$100,J69),VLOOKUP(J69,$AF$72:$AG$100,2,FALSE),"") ->  | L69: 0 | O69: =IF(COUNTIF($AF$72:$AG$100,N69),VLOOKUP(N69,$AF$72:$AG$100,2,FALSE),"") ->  | P69: 0 | Q69: =H69+L69+P69 -> 0 | R69: =SUM(Q67:Q69) -> 0 | AK69: =SUM(AJ67:AJ69) -> 0
A70: Parent Involvement Action Steps | C70: Title I Parent Involvement Component | E70: Addresses Reading, Math, or Reading & Math | F70: Budget Category 1 (May select up to three Budget Categories for each action step.) | G70: Budget Code | H70: Amount | I70: Addresses Reading, Math, or Reading & Math | J70: Budget Category 2 (May select up to three Budget Categories for each action step.) | K70: Budget Code | L70: Amount | M70: Addresses Reading, Math, or Reading & Math | N70: Budget Category 3 (May select up to three Budget Categories for each action step.) | O70: Budget Code | P70: Amount | Q70: Total Federal Funding for Action Step
A71: ='Priority Area 1'!A75:F75 -> 13) Provide Edgenuity parent workshops at flexible times for strategies and resources for parents to help their children at home. | C71: You may select more than one component from the following components - Components 1-13 are required, Components 14-21 are OPTIONAL | E71: Select from drop down menu | F71: Select budget category from drop down menu | G71: =IF(COUNTIF($AF$72:$AG$100,F71),VLOOKUP(F71,$AF$72:$AG$100,2,FALSE),"") ->  | H71: 0 | I71: Select from drop down menu | J71: Select budget category from drop down menu | K71: =IF(COUNTIF($AF$72:$AG$100,J71),VLOOKUP(J71,$AF$72:$AG$100,2,FALSE),"") ->  | L71: 0 | M71: Select from drop down menu | N71: Select budget category from drop down menu | O71: =IF(COUNTIF($AF$72:$AG$100,N71),VLOOKUP(N71,$AF$72:$AG$100,2,FALSE),"") ->  | P71: 0 | Q71: =H71+L71+P71 -> 0 | AH71: TOTAL SPENT BY BY BUDGET CODE
A72: ='Priority Area 1'!A76:F76 -> 14) During the 2017-2018 school year, provide stakeholders information and opportunities to give input, feedback, and request resources to assist their children at home with reading with translations available upon request (pre-planning meetings, annual meeting, Curriculum Night, Core Content/Literacy Nights, CSIP, compact and policy development, parent/teacher conferences, email, website) | G72: =IF(COUNTIF($AF$72:$AG$100,F72),VLOOKUP(F72,$AF$72:$AG$100,2,FALSE),"") ->  | H72: 0 | K72: =IF(COUNTIF($AF$72:$AG$100,J72),VLOOKUP(J72,$AF$72:$AG$100,2,FALSE),"") ->  | L72: 0 | O72: =IF(COUNTIF($AF$72:$AG$100,N72),VLOOKUP(N72,$AF$72:$AG$100,2,FALSE),"") ->  | P72: 0 | Q72: =H72+L72+P72 -> 0 | AF72: COMPUTER EQUIPMENT | AG72: 3-5330-050-462 | AH72: =SUMIF($F$13:$F$73,AF72,$H$13:$H$73)+SUMIF($J$13:$J$73,AF72,$L$13:$L$73)+SUMIF($N$13:$N$73,AF72,$P$13:$P$73) -> 0
A73: ='Priority Area 1'!A77:F77 -> 15) During faculty meetings, discuss and demonstrate Edgenuity to teachers to engage parents with literacy in core content at home with their children. | G73: =IF(COUNTIF($AF$72:$AG$100,F73),VLOOKUP(F73,$AF$72:$AG$100,2,FALSE),"") ->  | H73: 0 | K73: =IF(COUNTIF($AF$72:$AG$100,J73),VLOOKUP(J73,$AF$72:$AG$100,2,FALSE),"") ->  | L73: 0 | O73: =IF(COUNTIF($AF$72:$AG$100,N73),VLOOKUP(N73,$AF$72:$AG$100,2,FALSE),"") ->  | P73: 0 | Q73: =H73+L73+P73 -> 0 | AF73: COMPUTER SOFTWARE & SUPPLIES | AG73: 3-5330-050-418 | AH73: 0
P74: Subtotal #3: | Q74: =SUM(Q57:Q73) -> 0 | AF74: COMPUTER HARDWARE - CAPITALIZED | AG74: 3-5330-050-542 | AH74: 0
AF75: CONTRACTED REPAIRS & MAINTENANCE - EQUIPMENT | AG75: 3-5330-050-326 | AH75: 0
AF76: CONTRACTED SERVICES - SUPPLEMENTAL | AG76: 3-5330-050-311 | AH76: 0
AF77: PRINTING & BINDING | AG77: 3-5330-050-314 | AH77: 0
AF78: FIELD TRIPS | AG78: 3-5330-050-333 | AH78: 0
AF79: SUPPLIES & MATERIALS | AG79: 3-5330-050-411 | AH79: 0
AF80: LIBRARY BOOKS | AG80: 3-5330-050-414 | AH80: 0
AF81: MEMBERSHIP DUES & FEES | AG81: 3-5330-050-361 | AH81: 0
AF82: PARENT - CONTRACTED SERVICES | AG82: 3-5880-050-311 | AH82: 0
AF83: PARENT - PRINTING & BINDING | AG83: 3-5880-050-314 | AH83: 0
AF84: PARENT - INSTRUCTOR STIPEND | AG84: 3-5880-050-197 | AH84: 0
AF85: PARENT - OTHER FOOD PURCHASES | AG85: 3-5880-050-459 | AH85: 0
AF86: PARENT - POSTAGE | AG86: 3-5880-050-342 | AH86: 0
AF87: PARENT - PROFESSIONAL DEVELOPMENT | AG87: 3-5880-050-312 | AH87: 0
AF88: PARENT - SUPPLIES & MATERIALS | AG88: 3-5880-050-411 | AH88: 0
AF89: FURNITURE AND EQUIPMENT - INVENTORIED | AG89: 3-5330-050-461 | AH89: 0
AF90: PUPIL TRANSPORTATION - CONTRACTED | AG90: 3-6550-050-331 | AH90: 0
AF91: SALARY - ADDITIONAL RESPONSIBILITIES | AG91: 3-5350-050-192 | AH91: 0
AF92: SALARY - OTHER ASSIGNMENT CURRICULUM DEVELOPMENT | AG92: 3-5330-050-191 | AH92: 0
AF93: SALARY - SUBSTITUTE PAY (NOT PROFESSIONAL DEVELOPMENT) | AG93: 3-5330-050-162 | AH93: 0
AF94: SALARY - SUBSTITUTE PAY (PROFESSIONAL DEVELOPMENT) | AG94: 3-5330-050-163 | AH94: 0
AF95: STAFF DEV INSTRUCTOR (STIPEND) | AG95: 3-5330-050-197 | AH95: 0
AF96: STAFF DEV PARTICIPANT (STIPEND) | AG96: 3-5330-050-196 | AH96: 0
AF97: STAFF DEV/WORKSHOP EXPENSES | AG97: 3-5330-050-312 | AH97: 0
AF98: STIPEND - PLANNING PERIOD | AG98: 3-5330-050-195 | AH98: 0
AF99: EXTENDED YEAR/DAY TEACHER | AG99: 3-5350-050-121 | AH99: 0
AF100: EXTENDED YEAR/DAY SUPPLIES & MATERIALS | AG100: 3-5350-050-411 | AH100: 0
AF101: EXTENDED DAY SNACKS | AG101: 3-5350-050-451 | AH101: 0
AF102: SALARY - PUPIL TRANSPORTATION - BUS DRIVER | AG102: 3-6650-050-171 | AH102: 0
AH103: =SUM(AH72:AH101) -> 0
AI105: =AH104-T30 -> 

Sheet Title I Focus Worksheet 1 (hidden)
A1: TITLE I FOCUS WORKSHEET
A2: School Name: | C2: ='Cover Sheet'!B2 -> Tucker High School | J2: School Number: | K2: ='Cover Sheet'!H2 -> 593
A3: Principal: | C3: ='Cover Sheet'!B4 -> Tamra N. Watts
A4: LEA Name/Number: | C4: Dekalb County Schools (644)
A6: Priority Area 1
A7: ='Data Analysis'!A62 -> Improve Student Lexile Scores
A9: Improvement Strategy #1
A10: ='Priority Area 1'!A10 -> Use research based reading strategies to improve lexile scores.
A11: Action Steps to Implement Improvement Strategy | C11: Title I Focus School Component | E11: #1 | I11: #2 | N11: #3
E12: Addresses Reading, Math, or Reading & Math | F12: Budget Category 1 (May select up to two Budget Categories for each action step.) | G12: Budget Code | H12: Amount | I12: Addresses Reading, Math, or Reading & Math | J12: Budget Category 2 (May select up to two Budget Categories for each action step.) | K12: Budget Code | L12: Amount | M12: Addresses Reading, Math, or Reading & Math | N12: Budget Category 3 (May select up to two Budget Categories for each action step.) | O12: Budget Code | P12: Amount | Q12: Total Federal Funding for Action Step
A13: ='Priority Area 1'!A13:F13 -> 1) Students will create and utilize graphic organizers/Thinking Maps with fiction and non-fiction texts during daily instruction. | C13: Select from drop down menu. | E13: Select from drop down menu | F13: Select from drop down menu | G13: =IF(COUNTIF($AF$64:$AG$100,F13),VLOOKUP(F13,$AF$64:$AG$100,2,FALSE),"") ->  | H13: 0 | I13: Select from drop down menu | J13: Select from drop down menu | K13: =IF(COUNTIF($AF$64:$AG$100,J13),VLOOKUP(J13,$AF$64:$AG$100,2,FALSE),"") ->  | L13: 0 | M13: Select from drop down menu | N13: Select from drop down menu | O13: =IF(COUNTIF($AF$64:$AG$100,N13),VLOOKUP(N13,$AF$64:$AG$100,2,FALSE),"") ->  | P13: 0 | Q13: =H13+L13+P13 -> 0
A14: ='Priority Area 1'!A14:F14 -> 2) Students will develop and apply strategies while reading independently during daily instruction. | H14: 0 | L14: 0 | P14: 0 | Q14: =H14+L14+P14 -> 0
A15: ='Priority Area 1'!A15:F15 -> 3) Teachers will differentiate instruction and utilize small group instruction with paras for remediation, reinforcement and enrichment of reading strategies in core content. | H15: 0 | L15: 0 | P15: 0 | Q15: 0
A16: ='Priority Area 1'!A16:F16 -> 4) Teachers will develop a plan for student reading level growith, assess student reading levels biweekly, conference biweekly with individual students to discuss Lexile levels, and monitor student progress daily while ensuring each student is reading material appropriate for his/her instructional reading level. | H16: 0 | L16: 0 | P16: 0 | Q16: 0
A17: ='Priority Area 1'!A17:F17 -> 5) Academic coaches will provide instructional strategies to new teachers to include coaching and modeling; professional learning facilitators and academic coaches will provide reading strategies professional learning to teachers based on a needs assessment and observations during collaborative planning time. | H17: =5000-1332.8-3667.2 -> 0 | L17: 0 | P17: 0 | Q17: 0
A18: ='Priority Area 1'!A18:F18 -> 0 | H18: 0 | L18: 0 | P18: 0 | Q18: 0
A19: ='Priority Area 1'!A19:F19 -> 6) Administrative team will review/analyze data with teachers, conduct classroom visits, and provide feedback with next steps three time a year (pre, mid, end) to teachers including conferences and emails. | H19: 0 | L19: 0 | P19: 0 | Q19: 0
A20: ='Priority Area 1'!A20:F20 -> 7) A push-in reading teacher will co-teach with teachers who have students with Lexile scores below 1050 to supplement daily instruction with reading strategies in biology, US History, and economics. | H20: 0 | L20: 0 | P20: 0 | Q20: 0
A21: ='Priority Area 1'!A21:F21 -> 8) Provide extended day learning opportunities for students 100 minutes per week (enrichment period) during the day and Credit recovery during the summer for remediation and reinforcement of ELA, science, and Social Studies standards. | H21: 0 | L21: 0 | P21: 0 | Q21: 0 | T21: =Q30+Q52+Q74 -> 0
A22: Professional Development Action Steps (Beginning and Ending Dates of Activity, Consultants Providing Training, and Description of Services) | E22: Addresses Reading, Math, or Reading & Math | F22: Budget Category 1 (May select up to two Budget Categories for each action step.) | G22: Budget Code | H22: Amount | I22: Addresses Reading, Math, or Reading & Math | J22: Budget Category 2 (May select up to two Budget Categories for each action step.) | K22: Budget Code | L22: Amount | M22: Addresses Reading, Math, or Reading & Math | N22: Budget Category 3 (May select up to two Budget Categories for each action step.) | O22: Budget Code | P22: Amount | Q22: Total Federal Funding for Action Step
A23: ='Priority Area 1'!A24:F24 -> 10) Reading strategies professional learning for teachers based on a needs assessment and observations during collaborative planning time | E23: Select from drop down menu | F23: Select from drop down menu | G23: =IF(COUNTIF($AF$64:$AG$100,F23),VLOOKUP(F23,$AF$64:$AG$100,2,FALSE),"") ->  | H23: 0 | I23: Select from drop down menu | J23: Select from drop down menu | K23: =IF(COUNTIF($AF$64:$AG$100,J23),VLOOKUP(J23,$AF$64:$AG$100,2,FALSE),"") ->  | L23: 0 | M23: Select from drop down menu | N23: Select from drop down menu | O23: =IF(COUNTIF($AF$64:$AG$100,N23),VLOOKUP(N23,$AF$64:$AG$100,2,FALSE),"") ->  | P23: 0 | Q23: =H23+L23+P23 -> 0
A24: ='Priority Area 1'!A25:F25 -> 11) Graphic organizers/Thinking Maps professional learning for new teachers during planning periods monthly | G24: =IF(COUNTIF($AF$64:$AG$100,F24),VLOOKUP(F24,$AF$64:$AG$100,2,FALSE),"") ->  | H24: 0 | K24: =IF(COUNTIF($AF$64:$AG$100,J24),VLOOKUP(J24,$AF$64:$AG$100,2,FALSE),"") ->  | L24: 0 | O24: =IF(COUNTIF($AF$64:$AG$100,N24),VLOOKUP(N24,$AF$64:$AG$100,2,FALSE),"") ->  | P24: 0 | Q24: =H24+L24+P24 -> 0
A25: ='Priority Area 1'!A26:F26 -> 12) Lexile professional learning for teachers during planning periods twice per semester | G25: =IF(COUNTIF($AF$64:$AG$100,F25),VLOOKUP(F25,$AF$64:$AG$100,2,FALSE),"") ->  | H25: 0 | K25: =IF(COUNTIF($AF$64:$AG$100,J25),VLOOKUP(J25,$AF$64:$AG$100,2,FALSE),"") ->  | L25: 0 | O25: =IF(COUNTIF($AF$64:$AG$100,N25),VLOOKUP(N25,$AF$64:$AG$100,2,FALSE),"") ->  | P25: 0 | Q25: =H25+L25+P25 -> 0
A26: Parent Involvement Action Steps | C26: Title I Focus School Component | E26: Addresses Reading, Math, or Reading & Math | F26: Budget Category 1 (May select up to two Budget Categories for each action step.) | G26: Budget Code | H26: Amount | I26: Addresses Reading, Math, or Reading & Math | J26: Budget Category 2 (May select up to two Budget Categories for each action step.) | K26: Budget Code | L26: Amount | M26: Addresses Reading, Math, or Reading & Math | N26: Budget Category 3 (May select up to two Budget Categories for each action step.) | O26: Budget Code | P26: Amount | Q26: Total Federal Funding for Action Step
A27: ='Priority Area 1'!A29:F29 -> 13) Provide a parent workshop on Lexile scores (interpretation and reading strategies/resources for parents to help their children at home) held during flexible times. | C27: Select from drop down menu. | E27: Select from drop down menu | G27: =IF(COUNTIF($AF$64:$AG$100,F27),VLOOKUP(F27,$AF$64:$AG$100,2,FALSE),"") ->  | H27: 0 | I27: Select from drop down menu | J27: Select from drop down menu | K27: =IF(COUNTIF($AF$64:$AG$100,J27),VLOOKUP(J27,$AF$64:$AG$100,2,FALSE),"") ->  | L27: 0 | M27: Select from drop down menu | N27: Select from drop down menu | O27: =IF(COUNTIF($AF$64:$AG$100,N27),VLOOKUP(N27,$AF$64:$AG$100,2,FALSE),"") ->  | P27: 0 | Q27: =H27+L27+P27 -> 0
A28: ='Priority Area 1'!A30:F30 -> 14) Provide parent workshop on core content (strategies and resources for parents to help their children at home with core content) held during flexible times. | G28: =IF(COUNTIF($AF$64:$AG$100,F28),VLOOKUP(F28,$AF$64:$AG$100,2,FALSE),"") ->  | H28: 0 | K28: =IF(COUNTIF($AF$64:$AG$100,J28),VLOOKUP(J28,$AF$64:$AG$100,2,FALSE),"") ->  | L28: 0 | O28: =IF(COUNTIF($AF$64:$AG$100,N28),VLOOKUP(N28,$AF$64:$AG$100,2,FALSE),"") ->  | P28: 0 | Q28: =H28+L28+P28 -> 0
A29: ='Priority Area 1'!A31:F31 -> 15) Provide stakeholders information and opportunities to give input, feedback, and request resources to assist their children at home with reading with translations available upon request (pre-planning meetings, annual meeting, Curriculum Night, Core Content/Literacy Nights, CSIP, compact and policy development, parent/teacher conferences, email, website) | G29: =IF(COUNTIF($AF$64:$AG$100,F29),VLOOKUP(F29,$AF$64:$AG$100,2,FALSE),"") ->  | H29: 0 | K29: =IF(COUNTIF($AF$64:$AG$100,J29),VLOOKUP(J29,$AF$64:$AG$100,2,FALSE),"") ->  | L29: 0 | O29: =IF(COUNTIF($AF$64:$AG$100,N29),VLOOKUP(N29,$AF$64:$AG$100,2,FALSE),"") ->  | P29: 0 | Q29: =H29+L29+P29 -> 0
P30: Subtotal #1: | Q30: =SUM(Q13:Q29) -> 0
A31: Improvement Strategy #2
A32: ='Priority Area 1'!A33:J33 -> Use iLit to improve reading skills.
A33: Action Steps to Implement Improvement Strategy | C33: Title I Focus School Component | E33: #1 | I33: #2 | N33: #3
E34: Addresses Reading, Math, or Reading & Math | F34: Budget Category 1 (May select up to two Budget Categories for each action step.) | G34: Budget Code | H34: Amount | I34: Addresses Reading, Math, or Reading & Math | J34: Budget Category 2 (May select up to two Budget Categories for each action step.) | K34: Budget Code | L34: Amount | M34: Addresses Reading, Math, or Reading & Math | N34: Budget Category 3 (May select up to two Budget Categories for each action step.) | O34: Budget Code | P34: Amount | Q34: Total Federal Funding for Action Step
A35: ='Priority Area 1'!A36:F36 -> 1) Work with counselors to schedule students with Lexile scores below 1050 in double dose reading classes. | C35: Select from drop down menu. | E35: Select from drop down menu | F35: Select from drop down menu | G35: =IF(COUNTIF($AF$64:$AG$100,F35),VLOOKUP(F35,$AF$64:$AG$100,2,FALSE),"") ->  | H35: 0 | I35: Select from drop down menu | J35: Select from drop down menu | K35: =IF(COUNTIF($AF$64:$AG$100,J35),VLOOKUP(J35,$AF$64:$AG$100,2,FALSE),"") ->  | L35: 0 | M35: Select from drop down menu | N35: Select from drop down menu | O35: =IF(COUNTIF($AF$64:$AG$100,N35),VLOOKUP(N35,$AF$64:$AG$100,2,FALSE),"") ->  | P35: 0 | Q35: =H35+L35+P35 -> 0
A36: ='Priority Area 1'!A37:F37 -> 2) Students will use iPads for personalized reading support based on Lexile scores to engage students as readers while improving literacy skills and language development during daily instruction. | H36: 0 | L36: 0 | P36: 0 | Q36: =H36+L36+P36 -> 0
A37: ='Priority Area 1'!A38:F38 -> 3) Teachers will utilize iLit reports to individualize instruction and monitor student progres daily as well as conference weekly with individual students to discuss progress. | H37: 0 | L37: 0 | P37: 0 | Q37: 0
A38: ='Priority Area 1'!A39:F39 -> 4) Administrative team will review/analyze data with teachers, conduct classroom visits, and provide feedback with next steps in a timely manner to teachers including conferences and emails. | H38: 0 | L38: 0 | P38: 0 | Q38: 0
A39: ='Priority Area 1'!A40:F40 -> 5) Purchase of TurnItIn as a literacey suppliment | H39: 0 | L39: 0 | P39: 0 | Q39: 0
A40: ='Priority Area 1'!A41:F41 -> s | H40: 0 | L40: 0 | P40: 0 | Q40: 0
A41: ='Priority Area 1'!A42:F42 -> 7) | H41: 0 | L41: 0 | P41: 0 | Q41: 0
A42: ='Priority Area 1'!A43:F43 -> 8) | H42: 0 | L42: 0 | P42: 0 | Q42: 0
A43: ='Priority Area 1'!A44:F44 -> 9) | H43: 0 | L43: 0 | P43: 0 | Q43: 0
A44: Professional Development Action Steps (Beginning and Ending Dates of Activity, Consultants Providing Training, and Description of Services) | E44: Addresses Reading, Math, or Reading & Math | F44: Budget Category 1 (May select up to two Budget Categories for each action step.) | G44: Budget Code | H44: Amount | I44: Addresses Reading, Math, or Reading & Math | J44: Budget Category 2 (May select up to two Budget Categories for each action step.) | K44: Budget Code | L44: Amount | M44: Addresses Reading, Math, or Reading & Math | N44: Budget Category 3 (May select up to two Budget Categories for each action step.) | O44: Budget Code | P44: Amount | Q44: Total Federal Funding for Action Step
A45: ='Priority Area 1'!A47:F47 -> 10) iLit Professional Learning for all teachers who will use the reading intervention program | E45: Select from drop down menu | F45: Select from drop down menu | G45: =IF(COUNTIF($AF$64:$AG$100,F45),VLOOKUP(F45,$AF$64:$AG$100,2,FALSE),"") ->  | H45: 0 | I45: Select from drop down menu | J45: Select from drop down menu | K45: =IF(COUNTIF($AF$64:$AG$100,J45),VLOOKUP(J45,$AF$64:$AG$100,2,FALSE),"") ->  | L45: 0 | M45: Select from drop down menu | N45: Select from drop down menu | O45: =IF(COUNTIF($AF$64:$AG$100,N45),VLOOKUP(N45,$AF$64:$AG$100,2,FALSE),"") ->  | P45: 0 | Q45: =H45+L45+P45 -> 0
A46: ='Priority Area 1'!A48:F48 -> 11) | G46: =IF(COUNTIF($AF$64:$AG$100,F46),VLOOKUP(F46,$AF$64:$AG$100,2,FALSE),"") ->  | H46: 0 | K46: =IF(COUNTIF($AF$64:$AG$100,J46),VLOOKUP(J46,$AF$64:$AG$100,2,FALSE),"") ->  | L46: 0 | O46: =IF(COUNTIF($AF$64:$AG$100,N46),VLOOKUP(N46,$AF$64:$AG$100,2,FALSE),"") ->  | P46: 0 | Q46: =H46+L46+P46 -> 0
A47: ='Priority Area 1'!A49:F49 -> 12) | G47: =IF(COUNTIF($AF$64:$AG$100,F47),VLOOKUP(F47,$AF$64:$AG$100,2,FALSE),"") ->  | H47: 0 | K47: =IF(COUNTIF($AF$64:$AG$100,J47),VLOOKUP(J47,$AF$64:$AG$100,2,FALSE),"") ->  | L47: 0 | O47: =IF(COUNTIF($AF$64:$AG$100,N47),VLOOKUP(N47,$AF$64:$AG$100,2,FALSE),"") ->  | P47: 0 | Q47: =H47+L47+P47 -> 0
A48: Parent Involvement Action Steps | C48: Title I Focus School Component | E48: Addresses Reading, Math, or Reading & Math | F48: Budget Category 1 (May select up to two Budget Categories for each action step.) | G48: Budget Code | H48: Amount | I48: Addresses Reading, Math, or Reading & Math | J48: Budget Category 2 (May select up to two Budget Categories for each action step.) | K48: Budget Code | L48: Amount | M48: Addresses Reading, Math, or Reading & Math | N48: Budget Category 3 (May select up to two Budget Categories for each action step.) | O48: Budget Code | P48: Amount | Q48: Total Federal Funding for Action Step
A49: ='Priority Area 1'!A52:F52 -> 13) Provide stakeholders information and opportunities to give input, feedback, and request resources to assist their children at home with reading with translations available upon request (pre-planning meetings, annual meeting, Curriculum Night, Core Content/Literacy Nights, CSIP, compact and policy development, parent/teacher conferences, email, website) | C49: Select from drop down menu. | E49: Select from drop down menu | F49: Select from drop down menu | G49: =IF(COUNTIF($AF$64:$AG$100,F49),VLOOKUP(F49,$AF$64:$AG$100,2,FALSE),"") ->  | H49: 0 | I49: Select from drop down menu | J49: Select from drop down menu | K49: =IF(COUNTIF($AF$64:$AG$100,J49),VLOOKUP(J49,$AF$64:$AG$100,2,FALSE),"") ->  | L49: 0 | M49: Select from drop down menu | N49: Select from drop down menu | O49: =IF(COUNTIF($AF$64:$AG$100,N49),VLOOKUP(N49,$AF$64:$AG$100,2,FALSE),"") ->  | P49: 0 | Q49: =H49+L49+P49 -> 0
A50: ='Priority Area 1'!A53:F53 -> 14) Have parent literacy night(s) once per semester at flexible times for strategies and resources for parents to help their children at home with literacy in core content. | G50: =IF(COUNTIF($AF$64:$AG$100,F50),VLOOKUP(F50,$AF$64:$AG$100,2,FALSE),"") ->  | H50: 0 | K50: =IF(COUNTIF($AF$64:$AG$100,J50),VLOOKUP(J50,$AF$64:$AG$100,2,FALSE),"") ->  | L50: 0 | O50: =IF(COUNTIF($AF$64:$AG$100,N50),VLOOKUP(N50,$AF$64:$AG$100,2,FALSE),"") ->  | P50: 0 | Q50: =H50+L50+P50 -> 0
A51: ='Priority Area 1'!A54:F54 -> 15) During faculty meetings, discuss and provide reading strategies/resources to teachers to engage parents with reading at home with their children. | G51: =IF(COUNTIF($AF$64:$AG$100,F51),VLOOKUP(F51,$AF$64:$AG$100,2,FALSE),"") ->  | H51: 0 | K51: =IF(COUNTIF($AF$64:$AG$100,J51),VLOOKUP(J51,$AF$64:$AG$100,2,FALSE),"") ->  | L51: 0 | O51: =IF(COUNTIF($AF$64:$AG$100,N51),VLOOKUP(N51,$AF$64:$AG$100,2,FALSE),"") ->  | P51: 0 | Q51: =H51+L51+P51 -> 0
P52: Subtotal #2: | Q52: =SUM(Q35:Q51) -> 0
A53: Improvement Strategy #3
A54: ='Priority Area 1'!A56:J56 -> Use Edgenuity to improve literacy skills.
A55: Action Steps to Implement Improvement Strategy | C55: Title I Focus School Component | E55: #1 | I55: #2 | N55: #3
E56: Addresses Reading, Math, or Reading & Math | F56: Budget Category 1 (May select up to two Budget Categories for each action step.) | G56: Budget Code | H56: Amount | I56: Addresses Reading, Math, or Reading & Math | J56: Budget Category 2 (May select up to two Budget Categories for each action step.) | K56: Budget Code | L56: Amount | M56: Addresses Reading, Math, or Reading & Math | N56: Budget Category 3 (May select up to two Budget Categories for each action step.) | O56: Budget Code | P56: Amount | Q56: Total Federal Funding for Action Step
A57: ='Priority Area 1'!A59:F59 -> 1) Identified students will use Edgenuity during the enrichment period 100 minutes/week for remediation, reinforcement, enrichment, and credit recovery in ELA, science, and Social Studies. | C57: Select from drop down menu. | E57: Select from drop down menu | F57: Select from drop down menu | G57: =IF(COUNTIF($AF$64:$AG$99,F57),VLOOKUP(F57,$AF$64:$AG$99,2,FALSE),"") ->  | H57: 0 | I57: Select from drop down menu | J57: Select from drop down menu | K57: =IF(COUNTIF($AF$64:$AG$99,J57),VLOOKUP(J57,$AF$64:$AG$99,2,FALSE),"") ->  | L57: 0 | M57: Select from drop down menu | N57: Select from drop down menu | O57: =IF(COUNTIF($AF$64:$AG$99,N57),VLOOKUP(N57,$AF$64:$AG$99,2,FALSE),"") ->  | P57: 0 | Q57: =H57+L57+P57 -> 0
A58: ='Priority Area 1'!A60:F60 -> 2) Teachers will identify standards individual students have not mastered to differentiate instruction using Edgenuity . | H58: 0 | L58: 0 | P58: 0 | Q58: =H58+L58+P58 -> 0
A59: ='Priority Area 1'!A61:F61 -> 3) Students will work independently using Edgenuity on the computer taking notes, practicing skills/content/concepts, and taking pre/post assessments to master identified standards in ELA, science, and Social Studies. | H59: 0 | L59: 0 | P59: 0 | Q59: 0
A60: ='Priority Area 1'!A62:F62 -> 4) Administrative team will review/analyze data with teachers, conduct classroom visits, and provide feedback with next steps in a timely manner to teachers including conferences and emails. | H60: 0 | L60: 0 | P60: 0 | Q60: 0
A61: ='Priority Area 1'!A63:F63 -> 5) For rising 9th grade students, we do a three day aSummer Bridige Program during the month of July. During the month of September, we do a college fai for our studens; and we have colleges come into our building to meet with students in two ways: Mondays, Wednesdays, and Friday that meet students in the cafeteria; and Tuesdays and Thursdays that meet more intemately in the media center. For new studentas entering during the school year, we have them tour with a counselor and JROTC students introduce them to club and athletic sposors of their interest. | H61: 0 | L61: 0 | P61: 0 | Q61: 0
A62: ='Priority Area 1'!A64:F64 -> 6) CSIP “The validity and reliability have already been determined for MAP and Georgia Milestones assessments.” Both of these should have been discussed on the data analysis tab and/or in the SMART goal for the priority areas. | H62: 0 | L62: 0 | P62: 0 | Q62: 0
A63: ='Priority Area 1'!A65:F65 -> 7) Our plan is avalable on the district P-Drive, to the parents in the parent center, and to the community on our website. When it is necessary, this plan will be translated through the international center for the language needed. | H63: 0 | L63: 0 | P63: 0 | Q63: 0
A64: ='Priority Area 1'!A66:F66 -> 8) | H64: 0 | L64: 0 | P64: 0 | Q64: 0 | AF64: Salary - Lead Teacher/Instructional Coach | AG64: 3-5330-050-135-XXX-571-56 | AH64: =SUMIF($F$13:$F$73,AF64,$H$13:$H$73)+SUMIF($J$13:$J$73,AF64,$L$13:$L$73)+SUMIF($N$13:$N$73,AF64,$P$13:$P$73) -> 0 | AJ64: =SUMIF($F$13:$F$73,AF64,$H$13:$H$73) -> 0 | AK64: =SUMIF($J$13:$J$73,AF64,$L$13:$L$73) -> 0 | AL64: =SUMIF($N$13:$N$73,AF64,$P$13:$P$73) -> 0 | AM64: =SUM(AJ64:AL64) -> 0
A65: ='Priority Area 1'!A67:F67 -> 9) | H65: 0 | L65: 0 | P65: 0 | Q65: 0 | AF65: Salary - Teacher Assistant | AG65: 3-5330-050-142-XXX-571-56 | AH65: =SUMIF($F$13:$F$91,AF65,$H$13:$H$91)+SUMIF($J$13:$J$91,AF65,$L$13:$L$91)+SUMIF($N$13:$N$91,AF65,$P$13:$P$91) -> 0 | AJ65: 0 | AK65: 0 | AL65: 0 | AM65: =SUM(AJ65:AL65) -> 0
A66: Professional Development Action Steps (Beginning and Ending Dates of Activity, Consultants Providing Training, and Description of Services) | E66: Addresses Reading, Math, or Reading & Math | F66: Budget Category 1 (May select up to two Budget Categories for each action step.) | G66: Budget Code | H66: Amount | I66: Addresses Reading, Math, or Reading & Math | J66: Budget Category 2 (May select up to two Budget Categories for each action step.) | K66: Budget Code | L66: Amount | M66: Addresses Reading, Math, or Reading & Math | N66: Budget Category 3 (May select up to two Budget Categories for each action step.) | O66: Budget Code | P66: Amount | Q66: Total Federal Funding for Action Step | AF66: Salary - Tutor (Daytime) | AG66: 3-5330-050-143-XXX-571-56 | AH66: 0 | AJ66: 0 | AK66: 0 | AL66: 0
A67: ='Priority Area 1'!A70:F70 -> 10) Provide Edgenuity professional learning to new teachers at beginning of school year and as needed throughout the year based on needs assessment. | E67: Select from drop down menu | F67: Select from drop down menu | G67: =IF(COUNTIF($AF$64:$AG$99,F67),VLOOKUP(F67,$AF$64:$AG$99,2,FALSE),"") ->  | H67: 0 | I67: Select from drop down menu | J67: Select from drop down menu | K67: =IF(COUNTIF($AF$64:$AG$99,J67),VLOOKUP(J67,$AF$64:$AG$99,2,FALSE),"") ->  | L67: 0 | M67: Select from drop down menu | N67: Select from drop down menu | O67: =IF(COUNTIF($AF$64:$AG$99,N67),VLOOKUP(N67,$AF$64:$AG$99,2,FALSE),"") ->  | P67: 0 | Q67: =H67+L67+P67 -> 0 | AF67: Salary - Substitute Pay (Not PD) | AG67: 3-5330-050-162-XXX-571-56 | AH67: 0 | AJ67: 0 | AK67: 0 | AL67: 0 | AM67: 0
A68: ='Priority Area 1'!A71:F71 -> 11) | G68: =IF(COUNTIF($AF$64:$AG$99,F68),VLOOKUP(F68,$AF$64:$AG$99,2,FALSE),"") ->  | H68: 0 | K68: =IF(COUNTIF($AF$64:$AG$99,J68),VLOOKUP(J68,$AF$64:$AG$99,2,FALSE),"") ->  | L68: 0 | O68: =IF(COUNTIF($AF$64:$AG$99,N68),VLOOKUP(N68,$AF$64:$AG$99,2,FALSE),"") ->  | P68: 0 | Q68: =H68+L68+P68 -> 0 | AF68: Salary - Substitute Pay (Professional Development) | AG68: 3-5330-050-163-XXX-571-56 | AH68: 0 | AJ68: 0 | AK68: 0 | AL68: 0 | AM68: 0
A69: ='Priority Area 1'!A72:F72 -> 12) | G69: =IF(COUNTIF($AF$64:$AG$99,F69),VLOOKUP(F69,$AF$64:$AG$99,2,FALSE),"") ->  | H69: 0 | K69: =IF(COUNTIF($AF$64:$AG$99,J69),VLOOKUP(J69,$AF$64:$AG$99,2,FALSE),"") ->  | L69: 0 | O69: =IF(COUNTIF($AF$64:$AG$99,N69),VLOOKUP(N69,$AF$64:$AG$99,2,FALSE),"") ->  | P69: 0 | Q69: =H69+L69+P69 -> 0 | AF69: Salary - Other Assignment Curriculum Development | AG69: 3-5330-050-191-XXX-571-56 | AH69: 0 | AJ69: 0 | AK69: 0 | AL69: 0 | AM69: 0
A70: Parent Involvement Action Steps | C70: Title I Focus School Component | E70: Addresses Reading, Math, or Reading & Math | F70: Budget Category 1 (May select up to two Budget Categories for each action step.) | G70: Budget Code | H70: Amount | I70: Addresses Reading, Math, or Reading & Math | J70: Budget Category 2 (May select up to two Budget Categories for each action step.) | K70: Budget Code | L70: Amount | M70: Addresses Reading, Math, or Reading & Math | N70: Budget Category 3 (May select up to two Budget Categories for each action step.) | O70: Budget Code | P70: Amount | Q70: Total Federal Funding for Action Step | AF70: Staff Development Participant (Stipend) | AG70: 3-5330-050-196-XXX-571-56 | AH70: 0 | AJ70: 0 | AK70: 0 | AL70: 0
A71: ='Priority Area 1'!A75:F75 -> 13) Provide Edgenuity parent workshops at flexible times for strategies and resources for parents to help their children at home. | C71: Select from drop down menu. | E71: Select from drop down menu | F71: Select from drop down menu | G71: =IF(COUNTIF($AF$64:$AG$99,F71),VLOOKUP(F71,$AF$64:$AG$99,2,FALSE),"") ->  | H71: 0 | I71: Select from drop down menu | J71: Select from drop down menu | K71: =IF(COUNTIF($AF$64:$AG$99,J71),VLOOKUP(J71,$AF$64:$AG$99,2,FALSE),"") ->  | L71: 0 | M71: Select from drop down menu | N71: Select from drop down menu | O71: =IF(COUNTIF($AF$64:$AG$99,N71),VLOOKUP(N71,$AF$64:$AG$99,2,FALSE),"") ->  | P71: 0 | Q71: =H71+L71+P71 -> 0 | AF71: Staff Development Instructor (Stipend) | AG71: 3-5330-050-197-XXX-571-56 | AH71: 0 | AJ71: 0 | AK71: 0 | AL71: 0 | AM71: 0
A72: ='Priority Area 1'!A76:F76 -> 14) During the 2017-2018 school year, provide stakeholders information and opportunities to give input, feedback, and request resources to assist their children at home with reading with translations available upon request (pre-planning meetings, annual meeting, Curriculum Night, Core Content/Literacy Nights, CSIP, compact and policy development, parent/teacher conferences, email, website) | G72: =IF(COUNTIF($AF$64:$AG$99,F72),VLOOKUP(F72,$AF$64:$AG$99,2,FALSE),"") ->  | H72: 0 | K72: =IF(COUNTIF($AF$64:$AG$99,J72),VLOOKUP(J72,$AF$64:$AG$99,2,FALSE),"") ->  | L72: 0 | O72: =IF(COUNTIF($AF$64:$AG$99,N72),VLOOKUP(N72,$AF$64:$AG$99,2,FALSE),"") ->  | P72: 0 | Q72: =H72+L72+P72 -> 0 | AF72: Payroll - Social Security/FICA (5330) | AG72: 3-5330-050-211-XXX-571-56 | AH72: 0 | AJ72: 0 | AK72: 0 | AL72: 0 | AM72: 0
A73: ='Priority Area 1'!A77:F77 -> 15) During faculty meetings, discuss and demonstrate Edgenuity to teachers to engage parents with literacy in core content at home with their children. | G73: =IF(COUNTIF($AF$64:$AG$99,F73),VLOOKUP(F73,$AF$64:$AG$99,2,FALSE),"") ->  | H73: 0 | K73: =IF(COUNTIF($AF$64:$AG$99,J73),VLOOKUP(J73,$AF$64:$AG$99,2,FALSE),"") ->  | L73: 0 | O73: =IF(COUNTIF($AF$64:$AG$99,N73),VLOOKUP(N73,$AF$64:$AG$99,2,FALSE),"") ->  | P73: 0 | Q73: =H73+L73+P73 -> 0 | AF73: Payroll - Retirement (5330) | AG73: 3-5330-050-221-XXX-571-56 | AH73: 0 | AJ73: 0 | AK73: 0 | AL73: 0 | AM73: 0
P74: Subtotal #3: | Q74: =SUM(Q57:Q73) -> 0 | AF74: Unemployment Insurance | AG74: 3-5330-050-231-XXX-571-56 | AH74: 0 | AJ74: 0 | AK74: 0 | AL74: 0 | AM74: 0
AF75: Contracted Services - Supplemental | AG75: 3-5330-050-311-XXX-571-56 | AH75: 0 | AJ75: 0 | AK75: 0 | AL75: 0 | AM75: 0
AF76: Staff Development/Workshop Expense | AG76: 3-5330-050-312-XXX-571-56 | AH76: 0 | AJ76: 0 | AK76: 0 | AL76: 0 | AM76: 0
AF77: Printing & Binding | AG77: 3-5330-050-314-XXX-571-56 | AH77: 0 | AJ77: 0 | AK77: 0 | AL77: 0 | AM77: 0
AF78: Field Trips | AG78: 3-5330-050-333-XXX-571-56 | AH78: 0 | AJ78: 0 | AK78: 0 | AL78: 0 | AM78: 0
AF79: Supplies & Materials | AG79: 3-5330-050-411-XXX-571-56 | AH79: 0 | AJ79: =SUMIF($F$13:$F$73,#REF!,$H$13:$H$73) -> 0 | AK79: =SUMIF($J$13:$J$73,#REF!,$L$13:$L$73) -> 0 | AL79: =SUMIF($N$13:$N$73,#REF!,$P$13:$P$73) -> 0 | AM79: 0
AF80: Library Books | AG80: 3-5330-050-414-XXX-571-56 | AH80: 0 | AJ80: =SUMIF($F$13:$F$73,#REF!,$H$13:$H$73) -> 0 | AK80: =SUMIF($J$13:$J$73,#REF!,$L$13:$L$73) -> 0 | AL80: =SUMIF($N$13:$N$73,#REF!,$P$13:$P$73) -> 0 | AM80: 0
AF81: Computer Software & Supplies | AG81: 3-5330-050-418-XXX-571-56 | AH81: 0 | AJ81: =SUMIF($F$13:$F$73,AF79,$H$13:$H$73) -> 0 | AK81: =SUMIF($J$13:$J$73,AF79,$L$13:$L$73) -> 0 | AL81: =SUMIF($N$13:$N$73,AF79,$P$13:$P$73) -> 0 | AM81: 0
AF82: Furniture & Equipment | AG82: 3-5330-050-461-XXX-571-56 | AH82: 0 | AJ82: =SUMIF($F$13:$F$73,AF80,$H$13:$H$73) -> 0 | AK82: =SUMIF($J$13:$J$73,AF80,$L$13:$L$73) -> 0 | AL82: =SUMIF($N$13:$N$73,AF80,$P$13:$P$73) -> 0 | AM82: 0
AF83: Computer Equipment | AG83: 3-5330-050-462-XXX-571-56 | AH83: 0 | AJ83: =SUMIF($F$13:$F$73,AF81,$H$13:$H$73) -> 0 | AK83: =SUMIF($J$13:$J$73,AF81,$L$13:$L$73) -> 0 | AL83: =SUMIF($N$13:$N$73,AF81,$P$13:$P$73) -> 0 | AM83: 0
AF84: Salary - Extended Year/Day Teacher | AG84: 3-5350-050-121-XXX-571-56 | AH84: 0 | AJ84: =SUMIF($F$13:$F$73,AF82,$H$13:$H$73) -> 0 | AK84: =SUMIF($J$13:$J$73,AF82,$L$13:$L$73) -> 0 | AL84: =SUMIF($N$13:$N$73,AF82,$P$13:$P$73) -> 0 | AM84: 0
AF85: Salary - Additional Responsibilities | AG85: 3-5350-050-192-XXX-571-56 | AH85: 0 | AJ85: =SUMIF($F$13:$F$73,AF83,$H$13:$H$73) -> 0 | AK85: =SUMIF($J$13:$J$73,AF83,$L$13:$L$73) -> 0 | AL85: =SUMIF($N$13:$N$73,AF83,$P$13:$P$73) -> 0 | AM85: 0
AF86: Salary - Tutor Extended Year/Day | AG86: 3-5350-050-198-XXX-571-56 | AH86: 0 | AJ86: =SUMIF($F$13:$F$73,#REF!,$H$13:$H$73) -> 0 | AK86: =SUMIF($J$13:$J$73,#REF!,$L$13:$L$73) -> 0 | AL86: =SUMIF($N$13:$N$73,#REF!,$P$13:$P$73) -> 0 | AM86: 0
AF87: Payroll - Social Security/FICA (5350) | AG87: 3-5350-050-211-XXX-571-56 | AH87: 0 | AJ87: =SUMIF($F$13:$F$73,AF84,$H$13:$H$73) -> 0 | AK87: =SUMIF($J$13:$J$73,AF84,$L$13:$L$73) -> 0 | AL87: =SUMIF($N$13:$N$73,AF84,$P$13:$P$73) -> 0 | AM87: 0
AF88: Payroll - Retirement (5350) | AG88: 3-5350-050-221-XXX-571-56 | AH88: 0 | AJ88: =SUMIF($F$13:$F$73,AF85,$H$13:$H$73) -> 0 | AK88: =SUMIF($J$13:$J$73,AF85,$L$13:$L$73) -> 0 | AL88: =SUMIF($N$13:$N$73,AF85,$P$13:$P$73) -> 0 | AM88: 0
AF89: Extended Year/Day Supplies & Materials | AG89: 3-5350-050-411-XXX-571-56 | AH89: =SUMIF($F$13:$F$91,AF91,$H$13:$H$91)+SUMIF($J$13:$J$91,AF91,$L$13:$L$91)+SUMIF($N$13:$N$91,AF91,$P$13:$P$91) -> 0 | AJ89: =SUMIF($F$13:$F$73,AF86,$H$13:$H$73) -> 0 | AK89: =SUMIF($J$13:$J$73,AF86,$L$13:$L$73) -> 0 | AL89: =SUMIF($N$13:$N$73,AF86,$P$13:$P$73) -> 0 | AM89: 0
AF90: Extended Year/Day Snacks | AG90: 3-5350-050-451-XXX-571-56 | AH90: =SUMIF($F$13:$F$91,AF92,$H$13:$H$91)+SUMIF($J$13:$J$91,AF92,$L$13:$L$91)+SUMIF($N$13:$N$91,AF92,$P$13:$P$91) -> 0 | AJ90: =SUMIF($F$13:$F$73,AF87,$H$13:$H$73) -> 0 | AK90: =SUMIF($J$13:$J$73,AF87,$L$13:$L$73) -> 0 | AL90: =SUMIF($N$13:$N$73,AF87,$P$13:$P$73) -> 0 | AM90: 0
AF91: Parent - Instructor Stipend | AG91: 3-5880-050-197-XXX-571-56 | AH91: =SUMIF($F$13:$F$91,AF92,$H$13:$H$91)+SUMIF($J$13:$J$91,AF92,$L$13:$L$91)+SUMIF($N$13:$N$91,AF92,$P$13:$P$91) -> 0 | AJ91: =SUMIF($F$13:$F$73,AF88,$H$13:$H$73) -> 0 | AK91: =SUMIF($J$13:$J$73,AF88,$L$13:$L$73) -> 0 | AL91: =SUMIF($N$13:$N$73,AF88,$P$13:$P$73) -> 0 | AM91: 0
AF92: Payroll - Social Security/FICA (5880) | AG92: 3-5880-050-211-XXX-571-56 | AH92: =SUMIF($F$13:$F$91,AF93,$H$13:$H$91)+SUMIF($J$13:$J$91,AF93,$L$13:$L$91)+SUMIF($N$13:$N$91,AF93,$P$13:$P$91) -> 0 | AJ92: =SUMIF($F$13:$F$73,AF91,$H$13:$H$73) -> 0 | AK92: =SUMIF($J$13:$J$73,AF91,$L$13:$L$73) -> 0 | AL92: =SUMIF($N$13:$N$73,AF91,$P$13:$P$73) -> 0 | AM92: 0
AF93: Payroll - Retirement (5880) | AG93: 3-5880-050-221-XXX-571-56 | AH93: =SUMIF($F$13:$F$91,AF94,$H$13:$H$91)+SUMIF($J$13:$J$91,AF94,$L$13:$L$91)+SUMIF($N$13:$N$91,AF94,$P$13:$P$91) -> 0 | AJ93: =SUMIF($F$13:$F$73,AF92,$H$13:$H$73) -> 0 | AK93: =SUMIF($J$13:$J$73,AF92,$L$13:$L$73) -> 0 | AL93: =SUMIF($N$13:$N$73,AF92,$P$13:$P$73) -> 0 | AM93: 0
AF94: Parent - Contracted Services | AG94: 3-5880-050-311-XXX-571-56 | AH94: =SUMIF($F$13:$F$91,AF95,$H$13:$H$91)+SUMIF($J$13:$J$91,AF95,$L$13:$L$91)+SUMIF($N$13:$N$91,AF95,$P$13:$P$91) -> 0 | AJ94: =SUMIF($F$13:$F$73,AF93,$H$13:$H$73) -> 0 | AK94: =SUMIF($J$13:$J$73,AF93,$L$13:$L$73) -> 0 | AL94: =SUMIF($N$13:$N$73,AF93,$P$13:$P$73) -> 0 | AM94: 0
AF95: Parent - Professional Development | AG95: 3-5880-050-312-XXX-571-56 | AH95: =SUMIF($F$13:$F$91,AF96,$H$13:$H$91)+SUMIF($J$13:$J$91,AF96,$L$13:$L$91)+SUMIF($N$13:$N$91,AF96,$P$13:$P$91) -> 0 | AJ95: =SUMIF($F$13:$F$73,AF94,$H$13:$H$73) -> 0 | AK95: =SUMIF($J$13:$J$73,AF94,$L$13:$L$73) -> 0 | AL95: =SUMIF($N$13:$N$73,AF94,$P$13:$P$73) -> 0 | AM95: 0
AF96: Parent - Printing & Binding | AG96: 3-5880-050-314-XXX-571-56 | AH96: =SUMIF($F$13:$F$91,AF97,$H$13:$H$91)+SUMIF($J$13:$J$91,AF97,$L$13:$L$91)+SUMIF($N$13:$N$91,AF97,$P$13:$P$91) -> 0 | AJ96: =SUMIF($F$13:$F$73,AF95,$H$13:$H$73) -> 0 | AK96: =SUMIF($J$13:$J$73,AF95,$L$13:$L$73) -> 0 | AL96: =SUMIF($N$13:$N$73,AF95,$P$13:$P$73) -> 0 | AM96: 0
AF97: Parent - Postage | AG97: 3-5880-050-342-XXX-571-56 | AH97: =SUMIF($F$13:$F$91,AF98,$H$13:$H$91)+SUMIF($J$13:$J$91,AF98,$L$13:$L$91)+SUMIF($N$13:$N$91,AF98,$P$13:$P$91) -> 0 | AJ97: =SUMIF($F$13:$F$73,AF97,$H$13:$H$73) -> 0 | AK97: =SUMIF($J$13:$J$73,AF97,$L$13:$L$73) -> 0 | AL97: =SUMIF($N$13:$N$73,AF97,$P$13:$P$73) -> 0 | AM97: 0
AF98: Parent - Supplies & Materials | AG98: 3-5880-050-411-XXX-571-56 | AH98: =SUMIF($F$13:$F$91,AF99,$H$13:$H$91)+SUMIF($J$13:$J$91,AF99,$L$13:$L$91)+SUMIF($N$13:$N$91,AF99,$P$13:$P$91) -> 0 | AJ98: =SUMIF($F$13:$F$73,AF98,$H$13:$H$73) -> 0 | AK98: =SUMIF($J$13:$J$73,AF98,$L$13:$L$73) -> 0 | AL98: =SUMIF($N$13:$N$73,AF98,$P$13:$P$73) -> 0 | AM98: 0
AF99: Parent - Other Food Purchases | AG99: 3-5880-050-459-XXX-571-56 | AH99: =SUMIF($F$13:$F$91,AF100,$H$13:$H$91)+SUMIF($J$13:$J$91,AF100,$L$13:$L$91)+SUMIF($N$13:$N$91,AF100,$P$13:$P$91) -> 0 | AJ99: =SUMIF($F$13:$F$73,AF99,$H$13:$H$73) -> 0 | AK99: =SUMIF($J$13:$J$73,AF99,$L$13:$L$73) -> 0 | AL99: =SUMIF($N$13:$N$73,AF99,$P$13:$P$73) -> 0 | AM99: 0
AF100: Pupil Transportation - Contracted | AG100: 3-6550-050-331-XXX-571-56 | AH100: =SUM(AH64:AH99) -> 0 | AJ100: =SUMIF($F$13:$F$73,AF100,$H$13:$H$73) -> 0 | AK100: =SUMIF($J$13:$J$73,AF100,$L$13:$L$73) -> 0 | AL100: =SUMIF($N$13:$N$73,AF100,$P$13:$P$73) -> 0 | AM100: 0
AF101: Pupil Transportation - Bus Driver | AG101: 3-6650-050-171-XXX-571-56 | AH101: =SUM(AH65:AH100) -> 0 | AJ101: =SUMIF($F$13:$F$73,AF101,$H$13:$H$73) -> 0 | AK101: =SUMIF($J$13:$J$73,AF101,$L$13:$L$73) -> 0 | AL101: =SUMIF($N$13:$N$73,AF101,$P$13:$P$73) -> 0 | AM101: =SUM(AM64:AM99) -> 0
AF102: Payroll - Social Security/FICA (6650) | AG102: 3-6650-050-211-XXX-571-56 | AH102: =SUM(AH66:AH101) -> 0
AF103: Payroll - Retirement (6650) | AG103: 3-6650-050-221-XXX-571-56 | AH103: =SUM(AH67:AH102) -> 0 | AI103: =AH100-T21 -> 0

Sheet Title I Focus Worksheet 1B (hidden)
A1: TITLE I FOCUS WORKSHEET 1B
A2: School Name: | C2: ='Cover Sheet'!B2 -> Tucker High School | H2: School Number: | I2: ='Cover Sheet'!H2 -> 593
A3: Principal: | C3: ='Cover Sheet'!B4 -> Tamra N. Watts
A4: LEA Name/Number: | C4: Dekalb County Schools (644)
A6: Priority Area 1B
A7: ='Data Analysis B'!A48 -> 0
A9: Improvement Strategy #1
A10: ='Priority Area 1B'!A11 -> 0
A11: Action Steps to Implement Improvement Strategy | C11: Title I Focus School Component | L11: #3
E12: Budget Category 1 (May select up to two Budget Categories for each action step.) | F12: Budget Code | G12: Amount | H12: Budget Category 2 (May select up to two Budget Categories for each action step.) | I12: Budget Code | J12: Amount | K12: Addresses Reading, Math, or Reading & Math | L12: Budget Category 3 (May select up to two Budget Categories for each action step.) | M12: Budget Code | N12: Amount | O12: Total Federal Funding for Action Step
A13: ='Priority Area 1B'!A14:F14 -> 1) | C13: Select from drop down menu. | E13: Select from drop down menu | F13: =IF(COUNTIF($AD$64:$AE$100,E13),VLOOKUP(E13,$AD$64:$AE$100,2,FALSE),"") ->  | G13: 0 | H13: Select from drop down menu | I13: =IF(COUNTIF($AD$64:$AE$100,H13),VLOOKUP(H13,$AD$64:$AE$100,2,FALSE),"") ->  | J13: 0 | K13: Select from drop down menu | L13: Select from drop down menu | M13: =IF(COUNTIF($AD$64:$AE$100,L13),VLOOKUP(L13,$AD$64:$AE$100,2,FALSE),"") ->  | N13: 0 | O13: =G13+J13+N13 -> 0
A14: ='Priority Area 1B'!A15:F15 -> 2) | G14: 0 | I14: =IF(COUNTIF($AD$64:$AE$100,H14),VLOOKUP(H14,$AD$64:$AE$100,2,FALSE),"") ->  | J14: 0 | M14: =IF(COUNTIF($AD$64:$AE$100,L14),VLOOKUP(L14,$AD$64:$AE$100,2,FALSE),"") ->  | N14: 0 | O14: 0
A15: ='Priority Area 1B'!A16:F16 -> 3) | G15: 0 | J15: 0 | N15: 0 | O15: 0
A16: ='Priority Area 1B'!A17:F17 -> 4) | G16: 0 | J16: 0 | N16: 0 | O16: 0
A17: ='Priority Area 1B'!A18:F18 -> 5) | G17: =5000-1332.8-3667.2 -> 0 | J17: 0 | N17: 0 | O17: 0
A18: ='Priority Area 1B'!A19:F19 -> 6) | G18: 0 | J18: 0 | N18: 0 | O18: 0
A19: ='Priority Area 1B'!A20:F20 -> 7) | G19: 0 | J19: 0 | N19: 0 | O19: 0
A20: ='Priority Area 1B'!A21:F21 -> 8) | G20: 0 | J20: 0 | N20: 0 | O20: 0
A21: ='Priority Area 1B'!A22:F22 -> 9) | G21: 0 | J21: 0 | N21: 0 | O21: 0 | R21: =O30+O52+O74 -> 0
A22: Professional Development Action Steps (Beginning and Ending Dates of Activity, Consultants Providing Training, and Description of Services) | E22: Budget Category 1 (May select up to two Budget Categories for each action step.) | F22: Budget Code | G22: Amount | H22: Budget Category 2 (May select up to two Budget Categories for each action step.) | I22: Budget Code | J22: Amount | K22: Addresses Reading, Math, or Reading & Math | L22: Budget Category 3 (May select up to two Budget Categories for each action step.) | M22: Budget Code | N22: Amount | O22: Total Federal Funding for Action Step
A23: ='Priority Area 1B'!A25:F25 -> 10) | E23: Select from drop down menu | F23: =IF(COUNTIF($AD$64:$AE$100,E23),VLOOKUP(E23,$AD$64:$AE$100,2,FALSE),"") ->  | G23: 0 | H23: Select from drop down menu | I23: =IF(COUNTIF($AD$64:$AE$100,H23),VLOOKUP(H23,$AD$64:$AE$100,2,FALSE),"") ->  | J23: 0 | K23: Select from drop down menu | L23: Select from drop down menu | N23: 0 | O23: =G23+J23+N23 -> 0
A24: ='Priority Area 1B'!A26:F26 -> 11) | F24: =IF(COUNTIF($AD$64:$AE$100,E24),VLOOKUP(E24,$AD$64:$AE$100,2,FALSE),"") ->  | G24: 0 | I24: =IF(COUNTIF($AD$64:$AE$100,H24),VLOOKUP(H24,$AD$64:$AE$100,2,FALSE),"") ->  | J24: 0 | N24: 0 | O24: =G24+J24+N24 -> 0
A25: ='Priority Area 1B'!A27:F27 -> 12) | F25: =IF(COUNTIF($AD$64:$AE$100,E25),VLOOKUP(E25,$AD$64:$AE$100,2,FALSE),"") ->  | G25: 0 | I25: =IF(COUNTIF($AD$64:$AE$100,H25),VLOOKUP(H25,$AD$64:$AE$100,2,FALSE),"") ->  | J25: 0 | N25: 0 | O25: =G25+J25+N25 -> 0
A26: Parent Involvement Action Steps | C26: Title I Focus School Component | E26: Budget Category 1 (May select up to two Budget Categories for each action step.) | F26: Budget Code | G26: Amount | H26: Budget Category 2 (May select up to two Budget Categories for each action step.) | I26: Budget Code | J26: Amount | K26: Addresses Reading, Math, or Reading & Math | L26: Budget Category 3 (May select up to two Budget Categories for each action step.) | M26: Budget Code | N26: Amount | O26: Total Federal Funding for Action Step
A27: ='Priority Area 1B'!A30:F30 -> 13) | C27: Select from drop down menu. | F27: =IF(COUNTIF($AD$64:$AE$100,E27),VLOOKUP(E27,$AD$64:$AE$100,2,FALSE),"") ->  | G27: 0 | H27: Select from drop down menu | I27: =IF(COUNTIF($AD$64:$AE$100,H27),VLOOKUP(H27,$AD$64:$AE$100,2,FALSE),"") ->  | J27: 0 | K27: Select from drop down menu | L27: Select from drop down menu | M27: =IF(COUNTIF($AD$64:$AE$100,L27),VLOOKUP(L27,$AD$64:$AE$100,2,FALSE),"") ->  | N27: 0 | O27: =G27+J27+N27 -> 0
A28: ='Priority Area 1B'!A31:F31 -> 14) | F28: =IF(COUNTIF($AD$64:$AE$100,E28),VLOOKUP(E28,$AD$64:$AE$100,2,FALSE),"") ->  | G28: 0 | I28: =IF(COUNTIF($AD$64:$AE$100,H28),VLOOKUP(H28,$AD$64:$AE$100,2,FALSE),"") ->  | J28: 0 | M28: =IF(COUNTIF($AD$64:$AE$100,L28),VLOOKUP(L28,$AD$64:$AE$100,2,FALSE),"") ->  | N28: 0 | O28: =G28+J28+N28 -> 0
A29: ='Priority Area 1B'!A32:F32 -> 15) | F29: =IF(COUNTIF($AD$64:$AE$100,E29),VLOOKUP(E29,$AD$64:$AE$100,2,FALSE),"") ->  | G29: 0 | I29: =IF(COUNTIF($AD$64:$AE$100,H29),VLOOKUP(H29,$AD$64:$AE$100,2,FALSE),"") ->  | J29: 0 | M29: =IF(COUNTIF($AD$64:$AE$100,L29),VLOOKUP(L29,$AD$64:$AE$100,2,FALSE),"") ->  | N29: 0 | O29: =G29+J29+N29 -> 0
N30: Subtotal #1: | O30: =SUM(O13:O29) -> 0
A31: Improvement Strategy #2
A32: ='Priority Area 1B'!A34:J34 -> 0
A33: Action Steps to Implement Improvement Strategy | C33: Title I Focus School Component | L33: #3
E34: Budget Category 1 (May select up to two Budget Categories for each action step.) | F34: Budget Code | G34: Amount | H34: Budget Category 2 (May select up to two Budget Categories for each action step.) | I34: Budget Code | J34: Amount | K34: Addresses Reading, Math, or Reading & Math | L34: Budget Category 3 (May select up to two Budget Categories for each action step.) | M34: Budget Code | N34: Amount | O34: Total Federal Funding for Action Step
A35: ='Priority Area 1B'!A37:F37 -> 1) | C35: Select from drop down menu. | E35: Select from drop down menu | F35: =IF(COUNTIF($AD$64:$AE$100,E35),VLOOKUP(E35,$AD$64:$AE$100,2,FALSE),"") ->  | G35: 0 | H35: Select from drop down menu | I35: =IF(COUNTIF($AD$64:$AE$100,H35),VLOOKUP(H35,$AD$64:$AE$100,2,FALSE),"") ->  | J35: 0 | K35: Select from drop down menu | L35: Select from drop down menu | M35: =IF(COUNTIF($AD$64:$AE$100,L35),VLOOKUP(L35,$AD$64:$AE$100,2,FALSE),"") ->  | N35: 0 | O35: =G35+J35+N35 -> 0
A36: ='Priority Area 1B'!A38:F38 -> 2) | G36: 0 | J36: 0 | N36: 0 | O36: 0
A37: ='Priority Area 1B'!A39:F39 -> 3) | G37: 0 | J37: 0 | N37: 0 | O37: 0
A38: ='Priority Area 1B'!A40:F40 -> 4) | G38: 0 | J38: 0 | N38: 0 | O38: 0
A39: ='Priority Area 1B'!A41:F41 -> 5) | G39: 0 | J39: 0 | N39: 0 | O39: 0
A40: ='Priority Area 1B'!A42:F42 -> 6) | G40: 0 | J40: 0 | N40: 0 | O40: 0
A41: ='Priority Area 1B'!A43:F43 -> 7) | G41: 0 | J41: 0 | N41: 0 | O41: 0
A42: ='Priority Area 1B'!A44:F44 -> 8) | G42: 0 | J42: 0 | N42: 0 | O42: 0
A43: ='Priority Area 1B'!A45:F45 -> 9) | G43: 0 | J43: 0 | N43: 0 | O43: 0
A44: Professional Development Action Steps (Beginning and Ending Dates of Activity, Consultants Providing Training, and Description of Services) | E44: Budget Category 1 (May select up to two Budget Categories for each action step.) | F44: Budget Code | G44: Amount | H44: Budget Category 2 (May select up to two Budget Categories for each action step.) | I44: Budget Code | J44: Amount | K44: Addresses Reading, Math, or Reading & Math | L44: Budget Category 3 (May select up to two Budget Categories for each action step.) | M44: Budget Code | N44: Amount | O44: Total Federal Funding for Action Step
A45: ='Priority Area 1B'!A48:F48 -> 10) | E45: Select from drop down menu | F45: =IF(COUNTIF($AD$64:$AE$100,E45),VLOOKUP(E45,$AD$64:$AE$100,2,FALSE),"") ->  | G45: 0 | H45: Select from drop down menu | I45: =IF(COUNTIF($AD$64:$AE$100,H45),VLOOKUP(H45,$AD$64:$AE$100,2,FALSE),"") ->  | J45: 0 | K45: Select from drop down menu | L45: Select from drop down menu | M45: =IF(COUNTIF($AD$64:$AE$100,L45),VLOOKUP(L45,$AD$64:$AE$100,2,FALSE),"") ->  | N45: 0 | O45: =G45+J45+N45 -> 0
A46: ='Priority Area 1B'!A49:F49 -> 11) | F46: =IF(COUNTIF($AD$64:$AE$100,E46),VLOOKUP(E46,$AD$64:$AE$100,2,FALSE),"") ->  | G46: 0 | J46: 0 | N46: 0 | O46: =G46+J46+N46 -> 0
A47: ='Priority Area 1B'!A50:F50 -> 12) | F47: =IF(COUNTIF($AD$64:$AE$100,E47),VLOOKUP(E47,$AD$64:$AE$100,2,FALSE),"") ->  | G47: 0 | J47: 0 | N47: 0 | O47: =G47+J47+N47 -> 0
A48: Parent Involvement Action Steps | C48: Title I Focus School Component | E48: Budget Category 1 (May select up to two Budget Categories for each action step.) | F48: Budget Code | G48: Amount | H48: Budget Category 2 (May select up to two Budget Categories for each action step.) | I48: Budget Code | J48: Amount | K48: Addresses Reading, Math, or Reading & Math | L48: Budget Category 3 (May select up to two Budget Categories for each action step.) | M48: Budget Code | N48: Amount | O48: Total Federal Funding for Action Step
A49: ='Priority Area 1B'!A53:F53 -> 13) | C49: Select from drop down menu. | E49: Select from drop down menu | F49: =IF(COUNTIF($AD$64:$AE$100,E49),VLOOKUP(E49,$AD$64:$AE$100,2,FALSE),"") ->  | G49: 0 | H49: Select from drop down menu | J49: 0 | K49: Select from drop down menu | L49: Select from drop down menu | N49: 0 | O49: =G49+J49+N49 -> 0
A50: ='Priority Area 1B'!A54:F54 -> 14) | F50: =IF(COUNTIF($AD$64:$AE$100,E50),VLOOKUP(E50,$AD$64:$AE$100,2,FALSE),"") ->  | G50: 0 | J50: 0 | N50: 0 | O50: =G50+J50+N50 -> 0
A51: ='Priority Area 1B'!A55:F55 -> 15) | F51: =IF(COUNTIF($AD$64:$AE$100,E51),VLOOKUP(E51,$AD$64:$AE$100,2,FALSE),"") ->  | G51: 0 | J51: 0 | N51: 0 | O51: =G51+J51+N51 -> 0
N52: Subtotal #2: | O52: =SUM(O35:O51) -> 0
A53: Improvement Strategy #3
A54: ='Priority Area 1B'!A57:J57 -> 0
A55: Action Steps to Implement Improvement Strategy | C55: Title I Focus School Component | L55: #3
E56: Budget Category 1 (May select up to two Budget Categories for each action step.) | F56: Budget Code | G56: Amount | H56: Budget Category 2 (May select up to two Budget Categories for each action step.) | I56: Budget Code | J56: Amount | K56: Addresses Reading, Math, or Reading & Math | L56: Budget Category 3 (May select up to two Budget Categories for each action step.) | M56: Budget Code | N56: Amount | O56: Total Federal Funding for Action Step
A57: ='Priority Area 1B'!A60:F60 -> 1) | C57: Select from drop down menu. | E57: Select from drop down menu | F57: =IF(COUNTIF($AD$64:$AE$99,E57),VLOOKUP(E57,$AD$64:$AE$99,2,FALSE),"") ->  | G57: 0 | H57: Select from drop down menu | I57: =IF(COUNTIF($AD$64:$AE$99,H57),VLOOKUP(H57,$AD$64:$AE$99,2,FALSE),"") ->  | J57: 0 | K57: Select from drop down menu | L57: Select from drop down menu | M57: =IF(COUNTIF($AD$64:$AE$99,L57),VLOOKUP(L57,$AD$64:$AE$99,2,FALSE),"") ->  | N57: 0 | O57: =G57+J57+N57 -> 0
A58: ='Priority Area 1B'!A61:F61 -> 2) | G58: 0 | J58: 0 | N58: 0 | O58: 0
A59: ='Priority Area 1B'!A62:F62 -> 3) | G59: 0 | J59: 0 | N59: 0 | O59: 0
A60: ='Priority Area 1B'!A63:F63 -> 4) | G60: 0 | J60: 0 | N60: 0 | O60: 0
A61: ='Priority Area 1B'!A64:F64 -> 5) | G61: 0 | J61: 0 | N61: 0 | O61: 0
A62: ='Priority Area 1B'!A65:F65 -> 6) | G62: 0 | J62: 0 | N62: 0 | O62: 0
A63: ='Priority Area 1B'!A66:F66 -> 7) | G63: 0 | J63: 0 | N63: 0 | O63: 0
A64: ='Priority Area 1B'!A67:F67 -> 8) | G64: 0 | J64: 0 | N64: 0 | O64: 0 | AD64: Salary - Lead Teacher/Instructional Coach | AE64: 3-5330-050-135-XXX-571-56 | AF64: =SUMIF($E$13:$E$73,AD64,$G$13:$G$73)+SUMIF($H$13:$H$73,AD64,$J$13:$J$73)+SUMIF($L$13:$L$73,AD64,$N$13:$N$73) -> 0 | AH64: =SUMIF($E$13:$E$73,AD64,$G$13:$G$73) -> 0 | AI64: =SUMIF($H$13:$H$73,AD64,$J$13:$J$73) -> 0 | AJ64: =SUMIF($L$13:$L$73,AD64,$N$13:$N$73) -> 0 | AK64: =SUM(AH64:AJ64) -> 0
A65: ='Priority Area 1B'!A68:F68 -> 9) | G65: 0 | J65: 0 | N65: 0 | O65: 0 | AD65: Salary - Teacher Assistant | AE65: 3-5330-050-142-XXX-571-56 | AF65: =SUMIF($E$13:$E$91,AD65,$G$13:$G$91)+SUMIF($H$13:$H$91,AD65,$J$13:$J$91)+SUMIF($L$13:$L$91,AD65,$N$13:$N$91) -> 0 | AH65: 0 | AI65: 0 | AJ65: 0 | AK65: =SUM(AH65:AJ65) -> 0
A66: Professional Development Action Steps (Beginning and Ending Dates of Activity, Consultants Providing Training, and Description of Services) | E66: Budget Category 1 (May select up to two Budget Categories for each action step.) | F66: Budget Code | G66: Amount | H66: Budget Category 2 (May select up to two Budget Categories for each action step.) | I66: Budget Code | J66: Amount | K66: Addresses Reading, Math, or Reading & Math | L66: Budget Category 3 (May select up to two Budget Categories for each action step.) | M66: Budget Code | N66: Amount | O66: Total Federal Funding for Action Step | AD66: Salary - Tutor (Daytime) | AE66: 3-5330-050-143-XXX-571-56 | AF66: 0 | AH66: 0 | AI66: 0 | AJ66: 0
A67: ='Priority Area 1B'!A71:F71 -> 10) | E67: Select from drop down menu | F67: =IF(COUNTIF($AD$64:$AE$99,E67),VLOOKUP(E67,$AD$64:$AE$99,2,FALSE),"") ->  | G67: 0 | H67: Select from drop down menu | I67: =IF(COUNTIF($AD$64:$AE$99,H67),VLOOKUP(H67,$AD$64:$AE$99,2,FALSE),"") ->  | J67: 0 | K67: Select from drop down menu | L67: Select from drop down menu | M67: =IF(COUNTIF($AD$64:$AE$99,L67),VLOOKUP(L67,$AD$64:$AE$99,2,FALSE),"") ->  | N67: 0 | O67: =G67+J67+N67 -> 0 | AD67: Salary - Substitute Pay (Not PD) | AE67: 3-5330-050-162-XXX-571-56 | AF67: 0 | AH67: 0 | AI67: 0 | AJ67: 0 | AK67: 0
A68: ='Priority Area 1B'!A72:F72 -> 11) | F68: =IF(COUNTIF($AD$64:$AE$99,E68),VLOOKUP(E68,$AD$64:$AE$99,2,FALSE),"") ->  | G68: 0 | I68: =IF(COUNTIF($AD$64:$AE$99,H68),VLOOKUP(H68,$AD$64:$AE$99,2,FALSE),"") ->  | J68: 0 | M68: =IF(COUNTIF($AD$64:$AE$99,L68),VLOOKUP(L68,$AD$64:$AE$99,2,FALSE),"") ->  | N68: 0 | O68: =G68+J68+N68 -> 0 | AD68: Salary - Substitute Pay (Professional Development) | AE68: 3-5330-050-163-XXX-571-56 | AF68: 0 | AH68: 0 | AI68: 0 | AJ68: 0 | AK68: 0
A69: ='Priority Area 1B'!A73:F73 -> 12) | F69: =IF(COUNTIF($AD$64:$AE$99,E69),VLOOKUP(E69,$AD$64:$AE$99,2,FALSE),"") ->  | G69: 0 | I69: =IF(COUNTIF($AD$64:$AE$99,H69),VLOOKUP(H69,$AD$64:$AE$99,2,FALSE),"") ->  | J69: 0 | M69: =IF(COUNTIF($AD$64:$AE$99,L69),VLOOKUP(L69,$AD$64:$AE$99,2,FALSE),"") ->  | N69: 0 | O69: =G69+J69+N69 -> 0 | AD69: Salary - Other Assignment Curriculum Development | AE69: 3-5330-050-191-XXX-571-56 | AF69: 0 | AH69: 0 | AI69: 0 | AJ69: 0 | AK69: 0
A70: Parent Involvement Action Steps | C70: Title I Focus School Component | E70: Budget Category 1 (May select up to two Budget Categories for each action step.) | F70: Budget Code | G70: Amount | H70: Budget Category 2 (May select up to two Budget Categories for each action step.) | I70: Budget Code | J70: Amount | K70: Addresses Reading, Math, or Reading & Math | L70: Budget Category 3 (May select up to two Budget Categories for each action step.) | M70: Budget Code | N70: Amount | O70: Total Federal Funding for Action Step | AD70: Staff Development Participant (Stipend) | AE70: 3-5330-050-196-XXX-571-56 | AF70: 0 | AH70: 0 | AI70: 0 | AJ70: 0
A71: ='Priority Area 1B'!A76:F76 -> 13) | C71: Select from drop down menu. | E71: Select from drop down menu | F71: =IF(COUNTIF($AD$64:$AE$99,E71),VLOOKUP(E71,$AD$64:$AE$99,2,FALSE),"") ->  | G71: 0 | H71: Select from drop down menu | I71: =IF(COUNTIF($AD$64:$AE$99,H71),VLOOKUP(H71,$AD$64:$AE$99,2,FALSE),"") ->  | J71: 0 | K71: Select from drop down menu | L71: Select from drop down menu | M71: =IF(COUNTIF($AD$64:$AE$99,L71),VLOOKUP(L71,$AD$64:$AE$99,2,FALSE),"") ->  | N71: 0 | O71: =G71+J71+N71 -> 0 | AD71: Staff Development Instructor (Stipend) | AE71: 3-5330-050-197-XXX-571-56 | AF71: 0 | AH71: 0 | AI71: 0 | AJ71: 0 | AK71: 0
A72: ='Priority Area 1B'!A77:F77 -> 14) | F72: =IF(COUNTIF($AD$64:$AE$99,E72),VLOOKUP(E72,$AD$64:$AE$99,2,FALSE),"") ->  | G72: 0 | I72: =IF(COUNTIF($AD$64:$AE$99,H72),VLOOKUP(H72,$AD$64:$AE$99,2,FALSE),"") ->  | J72: 0 | M72: =IF(COUNTIF($AD$64:$AE$99,L72),VLOOKUP(L72,$AD$64:$AE$99,2,FALSE),"") ->  | N72: 0 | O72: =G72+J72+N72 -> 0 | AD72: Payroll - Social Security/FICA (5330) | AE72: 3-5330-050-211-XXX-571-56 | AF72: 0 | AH72: 0 | AI72: 0 | AJ72: 0 | AK72: 0
A73: ='Priority Area 1B'!A78:F78 -> 15) | F73: =IF(COUNTIF($AD$64:$AE$99,E73),VLOOKUP(E73,$AD$64:$AE$99,2,FALSE),"") ->  | G73: 0 | I73: =IF(COUNTIF($AD$64:$AE$99,H73),VLOOKUP(H73,$AD$64:$AE$99,2,FALSE),"") ->  | J73: 0 | M73: =IF(COUNTIF($AD$64:$AE$99,L73),VLOOKUP(L73,$AD$64:$AE$99,2,FALSE),"") ->  | N73: 0 | O73: =G73+J73+N73 -> 0 | AD73: Payroll - Retirement (5330) | AE73: 3-5330-050-221-XXX-571-56 | AF73: 0 | AH73: 0 | AI73: 0 | AJ73: 0 | AK73: 0
N74: Subtotal #3: | O74: =SUM(O57:O73) -> 0 | AD74: Unemployment Insurance | AE74: 3-5330-050-231-XXX-571-56 | AF74: 0 | AH74: 0 | AI74: 0 | AJ74: 0 | AK74: 0
AD75: Contracted Services - Supplemental | AE75: 3-5330-050-311-XXX-571-56 | AF75: 0 | AH75: 0 | AI75: 0 | AJ75: 0 | AK75: 0
AD76: Staff Development/Workshop Expense | AE76: 3-5330-050-312-XXX-571-56 | AF76: 0 | AH76: 0 | AI76: 0 | AJ76: 0 | AK76: 0
AD77: Printing & Binding | AE77: 3-5330-050-314-XXX-571-56 | AF77: 0 | AH77: 0 | AI77: 0 | AJ77: 0 | AK77: 0
AD78: Field Trips | AE78: 3-5330-050-333-XXX-571-56 | AF78: 0 | AH78: 0 | AI78: 0 | AJ78: 0 | AK78: 0
AD79: Supplies & Materials | AE79: 3-5330-050-411-XXX-571-56 | AF79: 0 | AH79: 0 | AI79: 0 | AJ79: 0 | AK79: 0
AD80: Library Books | AE80: 3-5330-050-414-XXX-571-56 | AF80: 0 | AH80: 0 | AI80: 0 | AJ80: 0 | AK80: 0
AD81: Computer Software & Supplies | AE81: 3-5330-050-418-XXX-571-56 | AF81: 0 | AH81: 0 | AI81: 0 | AJ81: 0 | AK81: 0
AD82: Furniture & Equipment | AE82: 3-5330-050-461-XXX-571-56 | AF82: 0 | AH82: 0 | AI82: 0 | AJ82: 0 | AK82: 0
AD83: Computer Equipment | AE83: 3-5330-050-462-XXX-571-56 | AF83: 0 | AH83: 0 | AI83: 0 | AJ83: 0 | AK83: 0
AD84: Salary - Extended Year/Day Teacher | AE84: 3-5350-050-121-XXX-571-56 | AF84: 0 | AH84: 0 | AI84: 0 | AJ84: 0 | AK84: 0
AD85: Salary - Additional Responsibilities | AE85: 3-5350-050-192-XXX-571-56 | AF85: 0 | AH85: 0 | AI85: 0 | AJ85: 0 | AK85: 0
AD86: Salary - Tutor Extended Year/Day | AE86: 3-5350-050-198-XXX-571-56 | AF86: 0 | AH86: 0 | AI86: 0 | AJ86: 0 | AK86: 0
AD87: Payroll - Social Security/FICA (5350) | AE87: 3-5350-050-211-XXX-571-56 | AF87: 0 | AH87: 0 | AI87: 0 | AJ87: 0 | AK87: 0
AD88: Payroll - Retirement (5350) | AE88: 3-5350-050-221-XXX-571-56 | AF88: 0 | AH88: 0 | AI88: 0 | AJ88: 0 | AK88: 0
AD89: Extended Year/Day Supplies & Materials | AE89: 3-5350-050-411-XXX-571-56 | AF89: =SUMIF($E$13:$E$91,AD91,$G$13:$G$91)+SUMIF($H$13:$H$91,AD91,$J$13:$J$91)+SUMIF($L$13:$L$91,AD91,$N$13:$N$91) -> 0 | AH89: 0 | AI89: 0 | AJ89: 0 | AK89: 0
AD90: Extended Year/Day Snacks | AE90: 3-5350-050-451-XXX-571-56 | AF90: =SUMIF($E$13:$E$91,AD92,$G$13:$G$91)+SUMIF($H$13:$H$91,AD92,$J$13:$J$91)+SUMIF($L$13:$L$91,AD92,$N$13:$N$91) -> 0 | AH90: 0 | AI90: 0 | AJ90: 0 | AK90: 0
AD91: Parent - Instructor Stipend | AE91: 3-5880-050-197-XXX-571-56 | AF91: =SUMIF($E$13:$E$91,AD92,$G$13:$G$91)+SUMIF($H$13:$H$91,AD92,$J$13:$J$91)+SUMIF($L$13:$L$91,AD92,$N$13:$N$91) -> 0 | AH91: 0 | AI91: 0 | AJ91: 0 | AK91: 0
AD92: Payroll - Social Security/FICA (5880) | AE92: 3-5880-050-211-XXX-571-56 | AF92: 0 | AH92: 0 | AI92: 0 | AJ92: 0 | AK92: 0
AD93: Payroll - Retirement (5880) | AE93: 3-5880-050-221-XXX-571-56 | AF93: 0 | AH93: 0 | AI93: 0 | AJ93: 0 | AK93: 0
AD94: Parent - Contracted Services | AE94: 3-5880-050-311-XXX-571-56 | AF94: 0 | AH94: 0 | AI94: 0 | AJ94: 0 | AK94: 0
AD95: Parent - Professional Development | AE95: 3-5880-050-312-XXX-571-56 | AF95: 0 | AH95: 0 | AI95: 0 | AJ95: 0 | AK95: 0
AD96: Parent - Printing & Binding | AE96: 3-5880-050-314-XXX-571-56 | AF96: 0 | AH96: 0 | AI96: 0 | AJ96: 0 | AK96: 0
AD97: Parent - Postage | AE97: 3-5880-050-342-XXX-571-56 | AF97: 0 | AH97: 0 | AI97: 0 | AJ97: 0 | AK97: 0
AD98: Parent - Supplies & Materials | AE98: 3-5880-050-411-XXX-571-56 | AF98: 0 | AH98: 0 | AI98: 0 | AJ98: 0 | AK98: 0
AD99: Parent - Other Food Purchases | AE99: 3-5880-050-459-XXX-571-56 | AF99: 0 | AH99: 0 | AI99: 0 | AJ99: 0 | AK99: 0
AD100: Pupil Transportation - Contracted | AE100: 3-6550-050-331-XXX-571-56 | AF100: =SUM(AF64:AF99) -> 0 | AH100: 0 | AI100: 0 | AJ100: 0 | AK100: 0
AD101: Pupil Transportation - Bus Driver | AE101: 3-6650-050-171-XXX-571-56 | AF101: =SUM(AF65:AF100) -> 0 | AK101: =SUM(AK64:AK99) -> 0
AD102: Payroll - Social Security/FICA (6650) | AE102: 3-6650-050-211-XXX-571-56 | AF102: =SUM(AF66:AF101) -> 0 | AG102: =AF101-R21 -> 0
AD103: Payroll - Retirement (6650) | AE103: 3-6650-050-221-XXX-571-56 | AF103: =SUM(AF67:AF102) -> 0

Sheet FinRef (hidden)
A1: SchoolYears | B1: 2017-2018
A2: FICA_RATE | B2: =0.0765 -> 0.0765
A3: RET_RATE | B3: =0.1681+0.01 -> 0.1781
A4: Supplemental | B4: 0.00144
A5: Medicare | B5: =0.0145 -> 0.0145
A6: FICA | B6: =0.062 -> 0.062
A7: TRS | B7: =0.1681+0.01 -> 0.1781
A8: GrpLife | B8: 0.01056
A9: CERT INS RATE/YR | B9: 11340
A10: CLASS INS RATE/YR | B10: 10747.2
A11: CERT INS RATE/Mo | B11: =B9/10 -> 1134
A12: CLASS INS RATE/Mo | B12: =B10/10 -> 1074.72
A13: HEALTH INS | B13: 5547
A14: Pos. Adj. Factor | B14: 0.02
A15: Alt Benefits Total | B15: =SUM(B4,B5,B8) -> 0.0265
A17: Certified | B17: 35 | C17: per/hr
A18: Non-Certified | B18: 17 | C18: per/hr
A20: Yes
A21: No
A23: TUTOR_RATES
B24: 14.7
B25: 35

Sheet SalaryYR (hidden)
A1: Yrs | B1: Yrs | C1: Bachelors E04 | D1: Masters E05 | E1: Specialist E06 | F1: Doctors E07 | G1: SP2-T05 | H1: SP2-T19 | I1: SP2-T21 | J1: PA2-T05 | K1: PA2-T19 | L1: PA2-T21 | M1: PSL-T05 | N1: PSL-T19 | O1: PSL-T21 | P1: SEC-T15 | Q1: SEC-T19 | R1: SEC-T26
A2: 0 | B2: 0 | C2: 45546.82 | D2: 48342.96 | E2: 52986.21 | F2: 58044.63 | G2: N/A | H2: N/A | I2: N/A | J2: N/A | K2: N/A | L2: N/A | M2: N/A | N2: N/A | O2: N/A | P2: N/A | Q2: N/A | R2: N/A
A3: 1 | B3: 1 | C3: 45546.82 | D3: 48342.96 | E3: 52986.21 | F3: 58044.63 | G3: 47842.32 | H3: 51208.12 | I3: 59141.77 | J3: 21684.33 | K3: 24832.06 | L3: 28679.28 | M3: 21469.58 | N3: 24586.13 | O3: 28395.25 | P3: 27185.5 | Q3: 29098.05 | R3: 33606.2
A4: 2 | B4: 2 | C4: 45546.82 | D4: 48342.96 | E4: 52986.21 | F4: 58044.63 | G4: 48504.45 | H4: 51916.82 | I4: 59960.27 | J4: 22214.99 | K4: 25439.75 | L4: 29381.12 | M4: 21995.04 | N4: 25187.87 | O4: 29090.22 | P4: 27739.07 | Q4: 29690.56 | R4: 34290.51
A5: 3 | B5: 3 | C5: 46650.66 | D5: 49446.8 | E5: 54090.05 | F5: 59148.48 | G5: 49404.62 | H5: 52880.32 | I5: 61073.05 | J5: 22747.75 | K5: 26049.85 | L5: 30085.74 | M5: 22522.53 | N5: 25791.93 | O5: 29787.86 | P5: 28290.5 | Q5: 30280.79 | R5: 34972.18
A6: 4 | B6: 4 | C6: 46650.66 | D6: 49446.8 | E6: 54090.05 | F6: 59148.48 | G6: 50304.8 | H6: 53843.83 | I6: 62185.83 | J6: 23278.47 | K6: 26657.6 | L6: 30787.65 | M6: 23047.99 | N6: 26393.67 | O6: 30482.83 | P6: 28844.09 | Q6: 30873.32 | R6: 35656.51
A7: 5 | B7: 5 | C7: 46650.66 | D7: 49446.8 | E7: 54090.05 | F7: 59148.48 | G7: 51460.95 | H7: 55081.32 | I7: 63615.05 | J7: 23811.22 | K7: 27267.69 | L7: 31492.26 | M7: 23575.48 | N7: 26997.72 | O7: 31180.47 | P7: 29395.5 | Q7: 31463.53 | R7: 36338.16
A8: 6 | B8: 6 | C8: 46705.86 | D8: 49557.18 | E8: 54485.82 | F8: 60157.9 | G8: 52105.14 | H8: 55770.83 | I8: 64411.38 | J8: 24585 | K8: 28153.79 | L8: 32515.64 | M8: 24102.95 | N8: 27601.77 | O8: 31878.1 | P8: 29946.92 | Q8: 32053.74 | R8: 37019.81
A9: 7 | B9: 7 | C9: 47215.06 | D9: 50387.68 | E9: 56937.84 | F9: 60391.47 | G9: 53005.32 | H9: 56734.34 | I9: 65524.17 | J9: 25120.99 | K9: 28767.58 | L9: 33224.53 | M9: 24628.43 | N9: 28203.52 | O9: 32573.08 | P9: 30500.5 | Q9: 32646.27 | R9: 37704.14
A10: 8 | B10: 8 | C10: 47475.89 | D10: 54151.47 | E10: 60761.49 | F10: 67039.5 | G10: 53905.5 | H10: 57697.85 | I10: 66636.95 | J10: 25659.01 | K10: 29383.71 | L10: 33936.11 | M10: 25155.9 | N10: 28807.56 | O10: 33270.7 | P10: 31051.93 | Q10: 33236.49 | R10: 38385.8
A11: 9 | B11: 9 | C11: 47934.54 | D11: 54798.48 | E11: 61824.99 | F11: 68582.1 | G11: 54805.68 | H11: 58661.35 | I11: 67749.73 | J11: 26197.03 | K11: 29999.83 | L11: 34647.69 | M11: 25683.37 | N11: 29411.6 | O11: 33968.33 | P11: 31605.49 | Q11: 33828.99 | R11: 39070.1
A12: 10 | B12: 10 | C12: 49372.57 | D12: 56378.49 | E12: 63488.63 | F12: 70055.15 | G12: 55984.36 | H12: 59922.96 | I12: 69206.8 | J12: 26733.02 | K12: 30613.62 | L12: 35356.57 | M12: 26208.84 | N12: 30013.35 | O12: 34663.3 | P12: 32156.93 | Q12: 34419.22 | R12: 39751.78
A13: 11 | B13: 11 | C13: 49975.87 | D13: 56799.39 | E13: 63918.56 | F13: 70530.06 | G13: 56606.03 | H13: 60588.36 | I13: 69975.29 | J13: 27271.04 | K13: 31229.74 | L13: 36068.15 | M13: 26736.27 | N13: 30617.34 | O13: 35360.87 | P13: 32708.34 | Q13: 35009.43 | R13: 40433.43
A14: 12 | B14: 12 | C14: 51737.44 | D14: 58667.7 | E14: 65938.81 | F14: 72938 | G14: 57793.76 | H14: 61859.65 | I14: 71443.54 | J14: 27807.02 | K14: 31843.52 | L14: 36777.02 | M14: 27261.79 | N14: 31219.14 | O14: 36055.91 | P14: 33261.91 | Q14: 35601.95 | R14: 41117.74
A15: 13 | B15: 13 | C15: 52301.85 | D15: 59304.2 | E15: 66297.72 | F15: 73337.88 | G15: 58404.23 | H15: 62513.08 | I15: 72198.2 | J15: 28345.05 | K15: 32459.65 | L15: 37488.61 | M15: 27789.27 | N15: 31823.2 | O15: 36753.55 | P15: 33813.34 | Q15: 36192.16 | R15: 41799.4
A16: 14 | B16: 14 | C16: 53748.44 | D16: 60943.26 | E16: 68147.54 | F16: 75380.83 | G16: 59304.41 | H16: 63476.58 | I16: 73310.98 | J16: 28883.08 | K16: 33075.78 | L16: 38200.2 | M16: 28316.75 | N16: 32427.24 | O16: 37451.18 | P16: 34366.92 | Q16: 36784.69 | R16: 42483.73
A17: 15 | B17: 15 | C17: 54520.05 | D17: 61816.59 | E17: 69018.76 | F17: 76060.82 | G17: 60505.69 | H17: 64762.37 | I17: 74795.98 | J17: 29419.05 | K17: 33689.56 | L17: 38909.07 | M17: 28842.22 | N17: 33028.99 | O17: 38146.16 | P17: 34918.34 | Q17: 37374.91 | R17: 43165.39
A18: 16 | B18: 16 | C18: 55711.1 | D18: 63158.08 | E18: 70505.06 | F18: 77718.79 | G18: 61104.75 | H18: 65403.58 | I18: 75536.53 | J18: 29957.08 | K18: 34305.68 | L18: 39620.65 | M18: 29369.69 | N18: 33633.04 | O18: 38843.79 | P18: 35469.76 | Q18: 37965.12 | R18: 43847.04
A19: 17 | B19: 17 | C19: 56512.55 | D19: 64066.5 | E19: 71521.9 | F19: 78617.75 | G19: 62004.93 | H19: 66367.09 | I19: 76649.31 | J19: 30493.05 | K19: 34919.46 | L19: 40329.52 | M19: 29895.16 | N19: 34234.78 | O19: 39538.76 | P19: 36023.34 | Q19: 38557.64 | R19: 44531.36
A20: 18 | B20: 18 | C20: 57829.26 | D20: 65546.28 | E20: 73160.32 | F20: 80407.27 | G20: 62905.11 | H20: 67330.6 | I20: 77762.1 | J20: 31031.08 | K20: 35535.6 | L20: 41041.11 | M20: 30422.64 | N20: 34838.83 | O20: 40236.39 | P20: 36574.75 | Q20: 39147.85 | R20: 45213.01
A21: 19 | B21: 19 | C21: 57951.77 | D21: 65546.28 | E21: 73160.32 | F21: 80407.27 | G21: 63805.29 | H21: 68294.1 | I21: 78874.88 | J21: 31569.11 | K21: 36151.72 | L21: 41752.69 | M21: 30950.12 | N21: 35442.88 | O21: 40934.03 | P21: 37126.18 | Q21: 39738.08 | R21: 45894.68
A22: 20 | B22: 20 | C22: 59740.01 | D22: 65576.34 | E22: 73160.32 | F22: 80407.27 | G22: 64705.46 | H22: 69257.6 | I22: 79987.65 | J22: 32105.08 | K22: 36765.5 | L22: 42461.56 | M22: 31475.58 | N22: 36044.61 | O22: 41628.99 | P22: 37679.75 | Q22: 40330.59 | R22: 46578.99
A23: 21 | B23: 21 | C23: 61548.68 | D23: 67319.38 | E23: 73818.22 | F23: 80839.58 | G23: 64705.46 | H23: 69257.6 | I23: 79987.65 | J23: 32105.08 | K23: 36765.5 | L23: 42461.56 | M23: 31475.58 | N23: 36044.61 | O23: 41628.99 | P23: 37679.75 | Q23: 40330.59 | R23: 46578.99
A24: 22 | B24: 22 | C24: 63395.13 | D24: 69338.95 | E24: 75823.91 | F24: 82929.13 | G24: 64705.46 | H24: 69257.6 | I24: 79987.65 | J24: 32105.08 | K24: 36765.5 | L24: 42461.56 | M24: 31475.58 | N24: 36044.61 | O24: 41628.99 | P24: 37679.75 | Q24: 40330.59 | R24: 46578.99
A25: 23 | B25: 23 | C25: 64652.76 | D25: 71464.16 | E25: 78152.68 | F25: 85360.99 | G25: 64705.46 | H25: 69257.6 | I25: 79987.65 | J25: 32105.08 | K25: 36765.5 | L25: 42461.56 | M25: 31475.58 | N25: 36044.61 | O25: 41628.99 | P25: 37679.75 | Q25: 40330.59 | R25: 46578.99
A26: 24 | B26: 24 | C26: 64652.76 | D26: 73608.08 | E26: 80497.26 | F26: 87655.95 | G26: 64705.46 | H26: 69257.6 | I26: 79987.65 | J26: 32105.08 | K26: 36765.5 | L26: 42461.56 | M26: 31475.58 | N26: 36044.61 | O26: 41628.99 | P26: 37679.75 | Q26: 40330.59 | R26: 46578.99
A27: 25 | B27: 25 | C27: 64652.76 | D27: 75079.6 | E27: 82105.67 | F27: 89414.08 | G27: 64705.46 | H27: 69257.6 | I27: 79987.65 | J27: 32105.08 | K27: 36765.5 | L27: 42461.56 | M27: 31475.58 | N27: 36044.61 | O27: 41628.99 | P27: 37679.75 | Q27: 40330.59 | R27: 46578.99
A28: 26 | B28: 26 | C28: 65908.25 | D28: 75079.6 | E28: 82105.67 | F28: 89414.08 | G28: 64705.46 | H28: 69257.6 | I28: 79987.65 | J28: 32105.08 | K28: 36765.5 | L28: 42461.56 | M28: 31475.58 | N28: 36044.61 | O28: 41628.99 | P28: 37679.75 | Q28: 40330.59 | R28: 46578.99
A29: 27 | B29: 27 | C29: 65908.25 | D29: 75079.6 | E29: 82105.67 | F29: 89414.08 | G29: 64705.46 | H29: 69257.6 | I29: 79987.65 | J29: 32105.08 | K29: 36765.5 | L29: 42461.56 | M29: 31475.58 | N29: 36044.61 | O29: 41628.99 | P29: 37679.75 | Q29: 40330.59 | R29: 46578.99
A30: 28 | B30: 28 | C30: 65908.25 | D30: 76553.25 | E30: 83711.94 | F30: 91155.09 | G30: 64705.46 | H30: 69257.6 | I30: 79987.65 | J30: 32105.08 | K30: 36765.5 | L30: 42461.56 | M30: 31475.58 | N30: 36044.61 | O30: 41628.99 | P30: 37679.75 | Q30: 40330.59 | R30: 46578.99
A31: 29 | B31: 29 | C31: 67191.56 | D31: 76553.25 | E31: 83711.94 | F31: 91155.09 | G31: 64705.46 | H31: 69257.6 | I31: 79987.65 | J31: 32105.08 | K31: 36765.5 | L31: 42461.56 | M31: 31475.58 | N31: 36044.61 | O31: 41628.99 | P31: 37679.75 | Q31: 40330.59 | R31: 46578.99
A32: 30 | B32: 30 | C32: 67191.56 | D32: 76553.25 | E32: 83711.94 | F32: 91155.09 | G32: 64705.46 | H32: 69257.6 | I32: 79987.65 | J32: 32105.08 | K32: 36765.5 | L32: 42461.56 | M32: 31475.58 | N32: 36044.61 | O32: 41628.99 | P32: 37679.75 | Q32: 40330.59 | R32: 46578.99
A33: 31 | B33: 31 | C33: 67191.56 | D33: 78011.93 | E33: 85320.33 | F33: 92911.08 | G33: 64705.46 | H33: 69257.6 | I33: 79987.65 | J33: 32105.08 | K33: 36765.5 | L33: 42461.56 | M33: 31475.58 | N33: 36044.61 | O33: 41628.99 | P33: 37679.75 | Q33: 40330.59 | R33: 46578.99

Sheet SalaryMo (hidden)
A1: Yrs | B1: Bachelors E04 | C1: Masters E05 | D1: Specialist E06 | E1: Doctors E07 | F1: SP2-T05 | G1: SP2-T19 | H1: SP2-T21 | I1: PA2-T05 | J1: PA2-T19 | K1: PA2-T21 | L1: PSL-T05 | M1: PSL-T19 | N1: PSL-T21 | O1: SEC-T15 | P1: SEC-T19 | Q1: SEC-T26
A2: 0 | B2: 3796 | C2: 4029 | D2: 4416 | E2: 4838 | F2: N/A | G2: N/A | H2: N/A | I2: N/A | J2: N/A | K2: N/A | L2: N/A | M2: N/A | N2: N/A | O2: N/A | P2: N/A | Q2: N/A
A3: 1 | B3: 3796 | C3: 4029 | D3: 4416 | E3: 4838 | F3: 3987 | G3: 4268 | H3: 4929 | I3: 1808 | J3: 2070 | K3: 2390 | L3: 1790 | M3: 2049 | N3: 2367 | O3: 2266 | P3: 2425 | Q3: 2801
A4: 2 | B4: 3796 | C4: 4029 | D4: 4416 | E4: 4838 | F4: 4043 | G4: 4327 | H4: 4997 | I4: 1852 | J4: 2120 | K4: 2449 | L4: 1833 | M4: 2099 | N4: 2425 | O4: 2312 | P4: 2475 | Q4: 2858
A5: 3 | B5: 3888 | C5: 4121 | D5: 4508 | E5: 4930 | F5: 4118 | G5: 4407 | H5: 5090 | I5: 1896 | J5: 2171 | K5: 2508 | L5: 1877 | M5: 2150 | N5: 2483 | O5: 2358 | P5: 2524 | Q5: 2915
A6: 4 | B6: 3888 | C6: 4121 | D6: 4508 | E6: 4930 | F6: 4193 | G6: 4487 | H6: 5183 | I6: 1940 | J6: 2222 | K6: 2566 | L6: 1921 | M6: 2200 | N6: 2541 | O6: 2404 | P6: 2573 | Q6: 2972
A7: 5 | B7: 3888 | C7: 4121 | D7: 4508 | E7: 4930 | F7: 4289 | G7: 4591 | H7: 5302 | I7: 1985 | J7: 2273 | K7: 2625 | L7: 1965 | M7: 2250 | N7: 2599 | O7: 2450 | P7: 2622 | Q7: 3029
A8: 6 | B8: 3893 | C8: 4130 | D8: 4541 | E8: 5014 | F8: 4343 | G8: 4648 | H8: 5368 | I8: 2049 | J8: 2347 | K8: 2710 | L8: 2009 | M8: 2301 | N8: 2657 | O8: 2496 | P8: 2672 | Q8: 3085
A9: 7 | B9: 3935 | C9: 4199 | D9: 4745 | E9: 5033 | F9: 4418 | G9: 4728 | H9: 5461 | I9: 2094 | J9: 2398 | K9: 2769 | L9: 2053 | M9: 2351 | N9: 2715 | O9: 2542 | P9: 2721 | Q9: 3143
A10: 8 | B10: 3957 | C10: 4513 | D10: 5064 | E10: 5587 | F10: 4493 | G10: 4809 | H10: 5554 | I10: 2139 | J10: 2449 | K10: 2829 | L10: 2097 | M10: 2401 | N10: 2773 | O10: 2588 | P10: 2770 | Q10: 3199
A11: 9 | B11: 3995 | C11: 4567 | D11: 5153 | E11: 5716 | F11: 4568 | G11: 4889 | H11: 5646 | I11: 2184 | J11: 2500 | K11: 2888 | L11: 2141 | M11: 2451 | N11: 2831 | O11: 2634 | P11: 2820 | Q11: 3256
A12: 10 | B12: 4115 | C12: 4699 | D12: 5291 | E12: 5838 | F12: 4666 | G12: 4994 | H12: 5768 | I12: 2228 | J12: 2552 | K12: 2947 | L12: 2185 | M12: 2502 | N12: 2889 | O12: 2680 | P12: 2869 | Q12: 3313
A13: 11 | B13: 4165 | C13: 4734 | D13: 5327 | E13: 5878 | F13: 4718 | G13: 5050 | H13: 5832 | I13: 2273 | J13: 2603 | K13: 3006 | L13: 2229 | M13: 2552 | N13: 2947 | O13: 2726 | P13: 2918 | Q13: 3370
A14: 12 | B14: 4312 | C14: 4889 | D14: 5495 | E14: 6079 | F14: 4817 | G14: 5155 | H14: 5954 | I14: 2318 | J14: 2654 | K14: 3065 | L14: 2272 | M14: 2602 | N14: 3005 | O14: 2772 | P14: 2967 | Q14: 3427
A15: 13 | B15: 4359 | C15: 4943 | D15: 5525 | E15: 6112 | F15: 4868 | G15: 5210 | H15: 6017 | I15: 2363 | J15: 2705 | K15: 3125 | L15: 2316 | M15: 2652 | N15: 3063 | O15: 2818 | P15: 3017 | Q15: 3484
A16: 14 | B16: 4480 | C16: 5079 | D16: 5679 | E16: 6282 | F16: 4943 | G16: 5290 | H16: 6110 | I16: 2407 | J16: 2757 | K16: 3184 | L16: 2360 | M16: 2703 | N16: 3121 | O16: 2864 | P16: 3066 | Q16: 3541
A17: 15 | B17: 4544 | C17: 5152 | D17: 5752 | E17: 6339 | F17: 5043 | G17: 5397 | H17: 6233 | I17: 2452 | J17: 2808 | K17: 3243 | L17: 2404 | M17: 2753 | N17: 3179 | O17: 2910 | P17: 3115 | Q17: 3598
A18: 16 | B18: 4643 | C18: 5264 | D18: 5876 | E18: 6477 | F18: 5093 | G18: 5451 | H18: 6295 | I18: 2497 | J18: 2859 | K18: 3302 | L18: 2448 | M18: 2803 | N18: 3237 | O18: 2956 | P18: 3164 | Q18: 3654
A19: 17 | B19: 4710 | C19: 5339 | D19: 5961 | E19: 6552 | F19: 5168 | G19: 5531 | H19: 6388 | I19: 2542 | J19: 2910 | K19: 3361 | L19: 2492 | M19: 2853 | N19: 3295 | O19: 3002 | P19: 3214 | Q19: 3711
A20: 18 | B20: 4820 | C20: 5463 | D20: 6097 | E20: 6701 | F20: 5243 | G20: 5611 | H20: 6481 | I20: 2586 | J20: 2962 | K20: 3421 | L20: 2536 | M20: 2904 | N20: 3354 | O20: 3048 | P20: 3263 | Q20: 3768
A21: 19 | B21: 4830 | C21: 5463 | D21: 6097 | E21: 6701 | F21: 5318 | G21: 5692 | H21: 6573 | I21: 2631 | J21: 3013 | K21: 3480 | L21: 2580 | M21: 2954 | N21: 3412 | O21: 3094 | P21: 3312 | Q21: 3825
A22: 20 | B22: 4979 | C22: 5465 | D22: 6097 | E22: 6701 | F22: 5393 | G22: 5772 | H22: 6666 | I22: 2676 | J22: 3064 | K22: 3539 | L22: 2623 | M22: 3004 | N22: 3470 | O22: 3140 | P22: 3361 | Q22: 3882
A23: 21 | B23: 5130 | C23: 5610 | D23: 6152 | E23: 6737 | F23: 5393 | G23: 5772 | H23: 6666 | I23: 2676 | J23: 3064 | K23: 3539 | L23: 2623 | M23: 3004 | N23: 3470 | O23: 3140 | P23: 3361 | Q23: 3882
A24: 22 | B24: 5283 | C24: 5779 | D24: 6319 | E24: 6911 | F24: 5393 | G24: 5772 | H24: 6666 | I24: 2676 | J24: 3064 | K24: 3539 | L24: 2623 | M24: 3004 | N24: 3470 | O24: 3140 | P24: 3361 | Q24: 3882
A25: 23 | B25: 5388 | C25: 5956 | D25: 6513 | E25: 7114 | F25: 5393 | G25: 5772 | H25: 6666 | I25: 2676 | J25: 3064 | K25: 3539 | L25: 2623 | M25: 3004 | N25: 3470 | O25: 3140 | P25: 3361 | Q25: 3882
A26: 24 | B26: 5388 | C26: 6135 | D26: 6709 | E26: 7305 | F26: 5393 | G26: 5772 | H26: 6666 | I26: 2676 | J26: 3064 | K26: 3539 | L26: 2623 | M26: 3004 | N26: 3470 | O26: 3140 | P26: 3361 | Q26: 3882
A27: 25 | B27: 5388 | C27: 6257 | D27: 6843 | E27: 7452 | F27: 5393 | G27: 5772 | H27: 6666 | I27: 2676 | J27: 3064 | K27: 3539 | L27: 2623 | M27: 3004 | N27: 3470 | O27: 3140 | P27: 3361 | Q27: 3882
A28: 26 | B28: 5493 | C28: 6257 | D28: 6843 | E28: 7452 | F28: 5393 | G28: 5772 | H28: 6666 | I28: 2676 | J28: 3064 | K28: 3539 | L28: 2623 | M28: 3004 | N28: 3470 | O28: 3140 | P28: 3361 | Q28: 3882
A29: 27 | B29: 5493 | C29: 6257 | D29: 6843 | E29: 7452 | F29: 5393 | G29: 5772 | H29: 6666 | I29: 2676 | J29: 3064 | K29: 3539 | L29: 2623 | M29: 3004 | N29: 3470 | O29: 3140 | P29: 3361 | Q29: 3882
A30: 28 | B30: 5493 | C30: 6380 | D30: 6976 | E30: 7597 | F30: 5393 | G30: 5772 | H30: 6666 | I30: 2676 | J30: 3064 | K30: 3539 | L30: 2623 | M30: 3004 | N30: 3470 | O30: 3140 | P30: 3361 | Q30: 3882
A31: 29 | B31: 5600 | C31: 6380 | D31: 6976 | E31: 7597 | F31: 5393 | G31: 5772 | H31: 6666 | I31: 2676 | J31: 3064 | K31: 3539 | L31: 2623 | M31: 3004 | N31: 3470 | O31: 3140 | P31: 3361 | Q31: 3882
A32: 30 | B32: 5600 | C32: 6380 | D32: 6976 | E32: 7597 | F32: 5393 | G32: 5772 | H32: 6666 | I32: 2676 | J32: 3064 | K32: 3539 | L32: 2623 | M32: 3004 | N32: 3470 | O32: 3140 | P32: 3361 | Q32: 3882
A33: 31 | B33: 5600 | C33: 6501 | D33: 7111 | E33: 7743 | F33: 5393 | G33: 5772 | H33: 6666 | I33: 2676 | J33: 3064 | K33: 3539 | L33: 2623 | M33: 3004 | N33: 3470 | O33: 3140 | P33: 3361 | Q33: 3882

Sheet TitleIExpns (hidden)
A1: =BudgetCat!A1 -> Code Description | B1: =BudgetCat!B1 -> BudgetCode | C1: Cat1Costs1 | D1: Cat1Costs2 | E1: Cat1Costs3 | F1: Cat1Tot | G1: Cat2Cost1 | H1: Cat2Costs2 | I1: Cat2Costs3 | J1: Cat2Tot | K1: Cat3Costs1 | L1: Cat3Costs2 | M1: Cat3Costs3 | N1: Cat3Tot | O1: Cat4Costs1 | P1: Cat4Costs2 | Q1: Cat4Costs3 | R1: Cat4Tot | S1: Totals
A2: =BudgetCat!A2 -> Teacher Salary | B2: =BudgetCat!B2 -> 203-38-05-00-400203-593-1750 | C2: =SUMIF(e1Cat1,A2,e1Costs1) -> 0 | D2: =SUMIF(e1Cat2,A2,e1Costs2) -> 0 | E2: =SUMIF(e1Cat3,A2,e1Costs3) -> 0 | F2: =SUM(C2:E2) -> 0 | G2: =SUMIF(e2Cat1,A2,e2Costs1) -> 0 | H2: =SUMIF(e2Cat2,A2,e2Costs2) -> 0 | I2: =SUMIF(e2Cat3,A2,e2Costs3) -> 0 | J2: =SUM(G2:I2) -> 0 | K2: =SUMIF(e3Cat1,A2,e3Costs1) -> 0 | L2: =SUMIF(e3Cat2,A2,e3Costs2) -> 0 | M2: =SUMIF(e3Cat3,A2,e3Costs3) -> 0 | N2: =SUM(K2:M2) -> 0 | O2: =SUMIF(e4Cat1,A2,e4Costs1) -> 0 | P2: =SUMIF(e4Cat2,A2,e4Costs2) -> 0 | Q2: =SUMIF(e4Cat3,A2,e4Costs3) -> 0 | R2: =SUM(O2:Q2) -> 0 | S2: =SUM(F2,J2,N2,R2) -> 0
A3: =BudgetCat!A3 -> Teacher and Paraprofessional Group Health | B3: =BudgetCat!B3 -> 203-38-87-00-400203-593-1750 | C3: =SUMIF(e1Cat1,A3,e1Costs1) -> 0 | D3: 0 | E3: 0 | F3: =SUM(C3:E3) -> 0 | G3: 0 | H3: 0 | I3: 0 | J3: =SUM(G3:I3) -> 0 | K3: 0 | L3: 0 | M3: 0 | N3: =SUM(K3:M3) -> 0 | O3: 0 | P3: 0 | Q3: 0 | R3: =SUM(O3:Q3) -> 0 | S3: =SUM(F3,J3,N3,R3) -> 0
A4: =BudgetCat!A4 -> Teacher and Paraprofessional Retirement | B4: =BudgetCat!B4 -> 203-38-74-00-400203-593-1750 | C4: 0 | D4: 0 | E4: 0 | F4: 0 | G4: 0 | H4: 0 | I4: 0 | J4: 0 | K4: 0 | L4: 0 | M4: 0 | N4: 0 | O4: 0 | P4: 0 | Q4: 0 | R4: 0 | S4: 0
A5: =BudgetCat!A5 -> Paraprofessional Salary | B5: =BudgetCat!B5 -> 203-38-07-00-400203-593-1750 | C5: 0 | D5: 0 | E5: 0 | F5: 0 | G5: 0 | H5: 0 | I5: 0 | J5: 0 | K5: 0 | L5: 0 | M5: 0 | N5: 0 | O5: 0 | P5: 0 | Q5: 0 | R5: 0 | S5: 0
A6: =BudgetCat!A6 -> Substitutes for Certified Teacher Salaries | B6: =BudgetCat!B6 -> 203-38-16-00-400203-593-1750 | C6: 0 | D6: 0 | E6: 0 | F6: 0 | G6: 0 | H6: 0 | I6: 0 | J6: 0 | K6: 0 | L6: 0 | M6: 0 | N6: 0 | O6: 0 | P6: 0 | Q6: 0 | R6: 0 | S6: 0
A7: =BudgetCat!A7 -> Afterschool/Daytime Tutorial | B7: =BudgetCat!B7 -> 203-38-17-00-400203-593-1750 | C7: 0 | D7: 0 | E7: 0 | F7: 0 | G7: 0 | H7: 0 | I7: 0 | J7: 0 | K7: 0 | L7: 0 | M7: 0 | N7: 0 | O7: 0 | P7: 0 | Q7: 0 | R7: 0 | S7: 0
A8: =BudgetCat!#REF! ->  | B8: =BudgetCat!#REF! ->  | C8: =SUMIF(e1Cat1,A8,e1Costs1) -> 0 | D8: =SUMIF(e1Cat2,A8,e1Costs2) -> 0 | E8: =SUMIF(e1Cat3,A8,e1Costs3) -> 0 | F8: =SUM(C8:E8) -> 0 | G8: =SUMIF(e2Cat1,A8,e2Costs1) -> 0 | H8: =SUMIF(e2Cat2,A8,e2Costs2) -> 0 | I8: =SUMIF(e2Cat3,A8,e2Costs3) -> 0 | J8: =SUM(G8:I8) -> 0 | K8: =SUMIF(e3Cat1,A8,e3Costs1) -> 0 | L8: =SUMIF(e3Cat2,A8,e3Costs2) -> 0 | M8: =SUMIF(e3Cat3,A8,e3Costs3) -> 0 | N8: =SUM(K8:M8) -> 0 | O8: =SUMIF(e4Cat1,A8,e4Costs1) -> 0 | P8: =SUMIF(e4Cat2,A8,e4Costs2) -> 0 | Q8: =SUMIF(e4Cat3,A8,e4Costs3) -> 0 | R8: =SUM(O8:Q8) -> 0 | S8: =SUM(F8,J8,N8,R8) -> 0
A9: =BudgetCat!A8 -> Instructional Alternative Benefits (Teacher,Para,Subs,Tutor) | B9: =BudgetCat!B8 -> 203-38-89-00-400203-593-1750 | C9: 0 | D9: 0 | E9: 0 | F9: 0 | G9: 0 | H9: 0 | I9: 0 | J9: 0 | K9: 0 | L9: 0 | M9: 0 | N9: 0 | O9: 0 | P9: 0 | Q9: 0 | R9: 0 | S9: 0
A10: =BudgetCat!A9 -> Instructional Contracted Services | B10: =BudgetCat!B9 -> 203-38-95-00-400203-593-1750 | C10: 0 | D10: 0 | E10: 0 | F10: 0 | G10: 0 | H10: 0 | I10: 0 | J10: 0 | K10: 0 | L10: 0 | M10: 0 | N10: 0 | O10: 0 | P10: 0 | Q10: 0 | R10: 0 | S10: 0
A11: =BudgetCat!A10 -> Instructional Contracted Services Teacher Salary (Charter Schools Only) | B11: =BudgetCat!B10 -> 203-38-95-10-400203-593-1750 | C11: 0 | D11: 0 | E11: 0 | F11: 0 | G11: 0 | H11: 0 | I11: 0 | J11: 0 | K11: 0 | L11: 0 | M11: 0 | N11: 0 | O11: 0 | P11: 0 | Q11: 0 | R11: 0 | S11: 0
A12: =BudgetCat!A11 -> Instructional Supplies | B12: =BudgetCat!B11 -> 203-38-53-00-400203-593-1750 | C12: 0 | D12: 0 | E12: 0 | F12: 0 | G12: 0 | H12: 0 | I12: 0 | J12: 0 | K12: 0 | L12: 0 | M12: 0 | N12: 0 | O12: 0 | P12: 0 | Q12: 0 | R12: 0 | S12: 0
A13: =BudgetCat!A12 -> Instructional Technology Supplies | B13: =BudgetCat!B12 -> 203-38-53-10-400203-593-1750 | C13: 0 | D13: 0 | E13: 0 | F13: 0 | G13: 0 | H13: 0 | I13: 0 | J13: 0 | K13: 0 | L13: 0 | M13: 0 | N13: 0 | O13: 0 | P13: 0 | Q13: 0 | R13: 0 | S13: 0
A14: =BudgetCat!A13 -> Instructional Computer Software | B14: =BudgetCat!B13 -> 203-38-53-05-400203-593-1750 | C14: 30000 | D14: 0 | E14: 0 | F14: 30000 | G14: 3000 | H14: 0 | I14: 0 | J14: 3000 | K14: 18000 | L14: 0 | M14: 0 | N14: 18000 | O14: 0 | P14: 0 | Q14: 0 | R14: 0 | S14: 51000
A15: =BudgetCat!A14 -> Instructional Equipment | B15: =BudgetCat!B14 -> 203-61-92-00-400203-593-1750 | C15: 0 | D15: 0 | E15: 0 | F15: 0 | G15: 0 | H15: 0 | I15: 0 | J15: 0 | K15: 0 | L15: 0 | M15: 0 | N15: 0 | O15: 0 | P15: 0 | Q15: 0 | R15: 0 | S15: 0
A16: =BudgetCat!A15 -> Instructional Computers | B16: =BudgetCat!B15 -> 203-61-92-05-400203-593-1750 | C16: 0 | D16: 0 | E16: 0 | F16: 0 | G16: 0 | H16: 0 | I16: 0 | J16: 0 | K16: 0 | L16: 0 | M16: 0 | N16: 0 | O16: 0 | P16: 0 | Q16: 0 | R16: 0 | S16: 0
A17: =BudgetCat!A16 -> Instructional Books and Periodicals | B17: =BudgetCat!B16 -> 203-38-62-00-400203-593-1750 | C17: 1154 | D17: 0 | E17: 0 | F17: 1154 | G17: 0 | H17: 0 | I17: 0 | J17: 0 | K17: 0 | L17: 0 | M17: 0 | N17: 0 | O17: 0 | P17: 0 | Q17: 0 | R17: 0 | S17: 1154
A18: =BudgetCat!A17 -> PFE Facilitator Extra Activity | B18: =BudgetCat!B17 -> 203-42-17-00-301203-593-1750 | C18: 0 | D18: 0 | E18: 0 | F18: 0 | G18: 0 | H18: 0 | I18: 0 | J18: 0 | K18: 0 | L18: 0 | M18: 0 | N18: 0 | O18: 0 | P18: 0 | Q18: 0 | R18: 0 | S18: 0
A19: =BudgetCat!A18 -> PFE Facilitator & Liasion Alternative Benefits | B19: =BudgetCat!B18 -> 203-42-89-00-301203-593-1750 | C19: 0 | D19: 0 | E19: 0 | F19: 0 | G19: 0 | H19: 0 | I19: 0 | J19: 0 | K19: 0 | L19: 0 | M19: 0 | N19: 0 | O19: 0 | P19: 0 | Q19: 0 | R19: 0 | S19: 0
A20: =BudgetCat!A19 -> Parent Liaison Salary | B20: =BudgetCat!B19 -> 203-42-07-00-301203-593-1750 | C20: 0 | D20: 0 | E20: 0 | F20: 0 | G20: 0 | H20: 0 | I20: 0 | J20: 0 | K20: 0 | L20: 0 | M20: 0 | N20: 0 | O20: 0 | P20: 0 | Q20: 0 | R20: 0 | S20: 0
A21: =BudgetCat!A20 -> Parent Liaisons Group Health | B21: =BudgetCat!B20 -> 203-42-87-00-301203-593-1750 | C21: 0 | D21: 0 | E21: 0 | F21: 0 | G21: 0 | H21: 0 | I21: 0 | J21: 0 | K21: 0 | L21: 0 | M21: 0 | N21: 0 | O21: 0 | P21: 0 | Q21: 0 | R21: 0 | S21: 0
A22: =BudgetCat!A21 -> Parent Liaisons Teacher Retirement | B22: =BudgetCat!B21 -> 203-42-74-00-301203-593-1750 | C22: 0 | D22: 0 | E22: 0 | F22: 0 | G22: 0 | H22: 0 | I22: 0 | J22: 0 | K22: 0 | L22: 0 | M22: 0 | N22: 0 | O22: 0 | P22: 0 | Q22: 0 | R22: 0 | S22: 0
A23: =BudgetCat!A22 -> Parent Liaisons Alternative Benefits | B23: =BudgetCat!B22 -> 203-42-89-00-400203-593-1750 | C23: 0 | D23: 0 | E23: 0 | F23: 0 | G23: 0 | H23: 0 | I23: 0 | J23: 0 | K23: 0 | L23: 0 | M23: 0 | N23: 0 | O23: 0 | P23: 0 | Q23: 0 | R23: 0 | S23: 0
A24: =BudgetCat!A23 -> PFE Contracted Services (Charter Schools use for Parent Liasion) | B24: =BudgetCat!B23 -> 203-42-95-00-301203-593-1750 | C24: 0 | D24: 0 | E24: 0 | F24: 0 | G24: 0 | H24: 0 | I24: 0 | J24: 0 | K24: 0 | L24: 0 | M24: 0 | N24: 0 | O24: 0 | P24: 0 | Q24: 0 | R24: 0 | S24: 0
A25: =BudgetCat!A24 -> PFE Communications | B25: =BudgetCat!B24 -> 203-42-97-00-301203-593-1750 | C25: 3528 | D25: 0 | E25: 0 | F25: 3528 | G25: 0 | H25: 0 | I25: 0 | J25: 0 | K25: 0 | L25: 0 | M25: 0 | N25: 0 | O25: 0 | P25: 0 | Q25: 0 | R25: 0 | S25: 3528
A26: =BudgetCat!A25 -> PFE Travel of Employees | B26: =BudgetCat!B25 -> 203-42-33-00-301203-593-1750 | C26: 0 | D26: 0 | E26: 0 | F26: 0 | G26: 0 | H26: 0 | I26: 0 | J26: 0 | K26: 0 | L26: 0 | M26: 0 | N26: 0 | O26: 0 | P26: 0 | Q26: 0 | R26: 0 | S26: 0
A27: =BudgetCat!A26 -> PFE Registration Fees | B27: =BudgetCat!B26 -> 203-42-36-00-301203-593-1750 | C27: 0 | D27: 0 | E27: 0 | F27: 0 | G27: 0 | H27: 0 | I27: 0 | J27: 0 | K27: 0 | L27: 0 | M27: 0 | N27: 0 | O27: 0 | P27: 0 | Q27: 0 | R27: 0 | S27: 0
A28: =BudgetCat!A27 -> PFE Other Purchased Services | B28: =BudgetCat!B27 -> 203-42-95-05-301203-593-1750 | C28: 0 | D28: 0 | E28: 0 | F28: 0 | G28: 0 | H28: 0 | I28: 0 | J28: 0 | K28: 0 | L28: 0 | M28: 0 | N28: 0 | O28: 0 | P28: 0 | Q28: 0 | R28: 0 | S28: 0
A29: =BudgetCat!A28 -> PFE Supplies | B29: =BudgetCat!B28 -> 203-42-53-00-301203-593-1750 | C29: 2219.14 | D29: 0 | E29: 0 | F29: 2219.14 | G29: 0 | H29: 0 | I29: 0 | J29: 0 | K29: 0 | L29: 0 | M29: 0 | N29: 0 | O29: 0 | P29: 0 | Q29: 0 | R29: 0 | S29: 2219.14
A30: =BudgetCat!A29 -> PFE Computer Software | B30: =BudgetCat!B29 -> 203-42-53-05-301203-593-1750 | C30: 0 | D30: 0 | E30: 0 | F30: 0 | G30: 0 | H30: 0 | I30: 0 | J30: 0 | K30: 0 | L30: 0 | M30: 0 | N30: 0 | O30: 0 | P30: 0 | Q30: 0 | R30: 0 | S30: 0
A31: =BudgetCat!A30 -> PFE Technology Supplies | B31: =BudgetCat!B30 -> 203-42-53-10-301203-593-1750 | C31: 0 | D31: 0 | E31: 0 | F31: 0 | G31: 0 | H31: 0 | I31: 0 | J31: 0 | K31: 0 | L31: 0 | M31: 0 | N31: 0 | O31: 0 | P31: 0 | Q31: 0 | R31: 0 | S31: 0
A32: =BudgetCat!A31 -> PFE Expendible Equipment | B32: =BudgetCat!B31 -> 203-61-92-00-301203-593-1750 | C32: 0 | D32: 0 | E32: 0 | F32: 0 | G32: 0 | H32: 0 | I32: 0 | J32: 0 | K32: 0 | L32: 0 | M32: 0 | N32: 0 | O32: 0 | P32: 0 | Q32: 0 | R32: 0 | S32: 0
A33: =BudgetCat!A32 -> PFE Expendible Computer Equipment | B33: =BudgetCat!B32 -> 203-61-92-05-301203-593-1750 | C33: 0 | D33: 0 | E33: 0 | F33: 0 | G33: 0 | H33: 0 | I33: 0 | J33: 0 | K33: 0 | L33: 0 | M33: 0 | N33: 0 | O33: 0 | P33: 0 | Q33: 0 | R33: 0 | S33: 0
A34: =BudgetCat!A33 -> PFE Books and Periodicals | B34: =BudgetCat!B33 -> 203-42-62-00-301203-593-1750 | C34: 500 | D34: 0 | E34: 0 | F34: 500 | G34: 0 | H34: 0 | I34: 0 | J34: 0 | K34: 0 | L34: 0 | M34: 0 | N34: 0 | O34: 0 | P34: 0 | Q34: 0 | R34: 0 | S34: 500
A35: =BudgetCat!A34 -> PL Substitutes for Certified Teacher | B35: =BudgetCat!B34 -> 203-46-16-00-400203-593-1750 | C35: =SUMIF(e1Cat1,A35,e1Costs1) -> 0 | D35: =SUMIF(e1Cat2,A35,e1Costs2) -> 0 | E35: =SUMIF(e1Cat3,A35,e1Costs3) -> 0 | F35: 0 | G35: =SUMIF(e2Cat1,A35,e2Costs1) -> 0 | H35: =SUMIF(e2Cat2,A35,e2Costs2) -> 0 | I35: =SUMIF(e2Cat3,A35,e2Costs3) -> 0 | J35: 0 | K35: =SUMIF(e3Cat1,A35,e3Costs1) -> 0 | L35: =SUMIF(e3Cat2,A35,e3Costs2) -> 0 | M35: =SUMIF(e3Cat3,A35,e3Costs3) -> 0 | N35: 0 | O35: =SUMIF(e4Cat1,A35,e4Costs1) -> 0 | P35: =SUMIF(e4Cat2,A35,e4Costs2) -> 0 | Q35: =SUMIF(e4Cat3,A35,e4Costs3) -> 0 | R35: 0 | S35: 0
A36: =BudgetCat!A35 -> PL Alternative Benefits (Subs, Stips, Academic Coach, Data Clerk) | B36: =BudgetCat!B35 -> 203-46-89-00-400203-593-1750 | C36: 0 | D36: 0 | E36: 0 | F36: 0 | G36: 0 | H36: 0 | I36: 0 | J36: 0 | K36: 0 | L36: 0 | M36: 0 | N36: 0 | O36: 0 | P36: 0 | Q36: 0 | R36: 0 | S36: 0
A37: =BudgetCat!A36 -> PL Stipends | B37: =BudgetCat!B36 -> 203-46-12-00-400203-593-1750 | C37: 0 | D37: 0 | E37: 0 | F37: 0 | G37: 0 | H37: 0 | I37: 0 | J37: 0 | K37: 0 | L37: 0 | M37: 0 | N37: 0 | O37: 0 | P37: 0 | Q37: 0 | R37: 0 | S37: 0
A38: =BudgetCat!A37 -> Academic Coach Salaries | B38: =BudgetCat!B37 -> 203-46-19-10-400203-593-1750 | C38: 0 | D38: 0 | E38: 0 | F38: 0 | G38: 0 | H38: 0 | I38: 0 | J38: 0 | K38: 0 | L38: 0 | M38: 0 | N38: 0 | O38: 0 | P38: 0 | Q38: 0 | R38: 0 | S38: 0
A39: =BudgetCat!A38 -> Academic Coach & Data Clerk Group Health | B39: =BudgetCat!B38 -> 203-46-87-00-400203-593-1750 | C39: 0 | D39: 0 | E39: 0 | F39: 0 | G39: 0 | H39: 0 | I39: 0 | J39: 0 | K39: 0 | L39: 0 | M39: 0 | N39: 0 | O39: 0 | P39: 0 | Q39: 0 | R39: 0 | S39: 0
A40: =BudgetCat!A39 -> Academic Coach & Data Clerk Teacher Retirement | B40: =BudgetCat!B39 -> 203-46-74-00-400203-593-1750 | C40: 0 | D40: 0 | E40: 0 | F40: 0 | G40: 0 | H40: 0 | I40: 0 | J40: 0 | K40: 0 | L40: 0 | M40: 0 | N40: 0 | O40: 0 | P40: 0 | Q40: 0 | R40: 0 | S40: 0
A41: =BudgetCat!A40 -> Data Clerk Salary | B41: =BudgetCat!B40 -> 203-46-03-00-400203-593-1750 | C41: 0 | D41: 0 | E41: 0 | F41: 0 | G41: 0 | H41: 0 | I41: 0 | J41: 0 | K41: 0 | L41: 0 | M41: 0 | N41: 0 | O41: 0 | P41: 0 | Q41: 0 | R41: 0 | S41: 0
A42: =BudgetCat!A41 -> PL Contracted Services (Charter Schools use for Academic Coach) | B42: =BudgetCat!B41 -> 203-46-95-00-400203-593-1750 | C42: 0 | D42: 0 | E42: 0 | F42: 0 | G42: 0 | H42: 0 | I42: 0 | J42: 0 | K42: 0 | L42: 0 | M42: 0 | N42: 0 | O42: 0 | P42: 0 | Q42: 0 | R42: 0 | S42: 0
A43: =BudgetCat!A42 -> PL Travel of Employees | B43: =BudgetCat!B42 -> 203-46-33-00-400203-593-1750 | C43: 0 | D43: 0 | E43: 0 | F43: 0 | G43: 12459.38 | H43: 0 | I43: 0 | J43: 12459.38 | K43: 12459.38 | L43: 0 | M43: 0 | N43: 12459.38 | O43: 0 | P43: 0 | Q43: 0 | R43: 0 | S43: 24918.76
A44: =BudgetCat!A43 -> PL Registration Fees | B44: =BudgetCat!B43 -> 203-46-36-00-400203-593-1750 | C44: 0 | D44: 0 | E44: 0 | F44: 0 | G44: 0 | H44: 9000 | I44: 0 | J44: 9000 | K44: 0 | L44: 9000 | M44: 0 | N44: 9000 | O44: 0 | P44: 0 | Q44: 0 | R44: 0 | S44: 18000
A45: =BudgetCat!A44 -> PL Supplies | B45: =BudgetCat!B44 -> 203-46-53-00-400203-593-1750 | C45: 0 | D45: 0 | E45: 0 | F45: 0 | G45: 0 | H45: 0 | I45: 0 | J45: 0 | K45: 0 | L45: 0 | M45: 0 | N45: 0 | O45: 0 | P45: 0 | Q45: 0 | R45: 0 | S45: 0
A46: =BudgetCat!A45 -> PL Computer Software | B46: =BudgetCat!B45 -> 203-46-53-05-400203-593-1750 | C46: 0 | D46: 0 | E46: 0 | F46: 0 | G46: 0 | H46: 0 | I46: 0 | J46: 0 | K46: 0 | L46: 0 | M46: 0 | N46: 0 | O46: 0 | P46: 0 | Q46: 0 | R46: 0 | S46: 0
A47: =BudgetCat!A46 -> PL Books and Periodicals | B47: =BudgetCat!B46 -> 203-46-62-00-400203-593-1750 | C47: 0 | D47: 0 | E47: 0 | F47: 0 | G47: 0 | H47: 0 | I47: 0 | J47: 0 | K47: 0 | L47: 0 | M47: 0 | N47: 0 | O47: 0 | P47: 0 | Q47: 0 | R47: 0 | S47: 0
A48: =BudgetCat!A47 -> Educational Media Books and Periodicals | B48: =BudgetCat!B47 -> 203-46-62-05-400203-593-1750 | C48: 0 | D48: 0 | E48: 0 | F48: 0 | G48: 0 | H48: 0 | I48: 0 | J48: 0 | K48: 0 | L48: 0 | M48: 0 | N48: 0 | O48: 0 | P48: 0 | Q48: 0 | R48: 0 | S48: 0
A49: =BudgetCat!A48 -> Custodian Extra Activity | B49: =BudgetCat!B48 -> 203-57-17-00-400203-593-1750 | C49: 0 | D49: 0 | E49: 0 | F49: 0 | G49: 0 | H49: 0 | I49: 0 | J49: 0 | K49: 0 | L49: 0 | M49: 0 | N49: 0 | O49: 0 | P49: 0 | Q49: 0 | R49: 0 | S49: 0
A50: =BudgetCat!A49 -> Custodian Alternative Benefits | B50: =BudgetCat!B49 -> 203-57-89-00-400203-593-1750 | C50: 0 | D50: 0 | E50: 0 | F50: 0 | G50: 0 | H50: 0 | I50: 0 | J50: 0 | K50: 0 | L50: 0 | M50: 0 | N50: 0 | O50: 0 | P50: 0 | Q50: 0 | R50: 0 | S50: 0
A51: =BudgetCat!A50 -> Transportation Bus Driver Extra Activity | B51: =BudgetCat!B50 -> 203-56-17-00-400203-593-1750 | C51: 0 | D51: 0 | E51: 0 | F51: 0 | G51: 0 | H51: 0 | I51: 0 | J51: 0 | K51: 0 | L51: 0 | M51: 0 | N51: 0 | O51: 0 | P51: 0 | Q51: 0 | R51: 0 | S51: 0
A52: =BudgetCat!A51 -> Transporation Bus Driver Alternative Benefits | B52: =BudgetCat!B51 -> 203-56-89-00-400203-593-1750 | C52: 0 | D52: 0 | E52: 0 | F52: 0 | G52: 0 | H52: 0 | I52: 0 | J52: 0 | K52: 0 | L52: 0 | M52: 0 | N52: 0 | O52: 0 | P52: 0 | Q52: 0 | R52: 0 | S52: 0
A53: =BudgetCat!A52 -> Transportation Gas or Diesel Fuel | B53: =BudgetCat!B52 -> 203-56-95-00-400203-593-1750 | C53: 0 | D53: 0 | E53: 0 | F53: 0 | G53: 0 | H53: 0 | I53: 0 | J53: 0 | K53: 0 | L53: 0 | M53: 0 | N53: 0 | O53: 0 | P53: 0 | Q53: 0 | R53: 0 | S53: 0
A54: =BudgetCat!A53 -> Transportation for Parents | B54: =BudgetCat!B53 -> 203-56-95-10-400203-593-1750 | C54: 0 | D54: 0 | E54: 0 | F54: 0 | G54: 0 | H54: 0 | I54: 0 | J54: 0 | K54: 0 | L54: 0 | M54: 0 | N54: 0 | O54: 0 | P54: 0 | Q54: 0 | R54: 0 | S54: 0
B55: Totals | C55: =SUM(C2:C54) -> 37401.14 | D55: =SUM(D2:D54) -> 0 | E55: 0 | F55: =SUM(F2:F54) -> 37401.14 | G55: =SUM(G2:G54) -> 15459.38 | H55: =SUM(H2:H54) -> 9000 | I55: 0 | J55: 24459.38 | K55: 30459.38 | L55: 9000 | M55: 0 | N55: 39459.38 | O55: 0 | P55: 0 | Q55: 0 | R55: 0 | S55: 101319.9

Sheet PosSalary (hidden)
B1: Yrs | C1: Bachelors E04 | D1: Masters E05 | E1: Specialist E06 | F1: Doctors E07 | G1: Parent Support Liais. - 199 days -T05 | H1: Parent Support Liais. - 213 days - SP2-T19 | I1: Parent Support Liais. - 246 days - SP2-T21 | J1: Para - 186 Days-PA2-T05 | K1: Para - 213 days-PA2-T19 | L1: Para - 246 days- PA2-T21 | M1: Parent Liais. - 186 days-PSL-T05 | N1: Parent Liais. - 213 days-PSL-T19 | O1: Parent Liais. - 246 days-PSL-T21 | P1: Data Clerk - 199 days-SEC-T15 | Q1: Data Clerk - 213 days-SEC-T19 | R1: Data Clerk - 246 days-SEC-T26
A2: Bachelors E04 | B2: 0 | C2: 3796 | D2: 4029 | E2: 4416 | F2: 4838 | G2: N/A | H2: N/A | I2: N/A | J2: N/A | K2: N/A | L2: N/A | M2: N/A | N2: N/A | O2: N/A | P2: N/A | Q2: N/A | R2: N/A
A3: Masters E05 | B3: 1 | C3: 3796 | D3: 4029 | E3: 4416 | F3: 4838 | G3: 3987 | H3: 4268 | I3: 4929 | J3: 1808 | K3: 2070 | L3: 2390 | M3: 1790 | N3: 2049 | O3: 2367 | P3: 2266 | Q3: 2425 | R3: 2801
A4: Specialist E06 | B4: 2 | C4: 3796 | D4: 4029 | E4: 4416 | F4: 4838 | G4: 4043 | H4: 4327 | I4: 4997 | J4: 1852 | K4: 2120 | L4: 2449 | M4: 1833 | N4: 2099 | O4: 2425 | P4: 2312 | Q4: 2475 | R4: 2858
A5: Doctors E07 | B5: 3 | C5: 3888 | D5: 4121 | E5: 4508 | F5: 4930 | G5: 4118 | H5: 4407 | I5: 5090 | J5: 1896 | K5: 2171 | L5: 2508 | M5: 1877 | N5: 2150 | O5: 2483 | P5: 2358 | Q5: 2524 | R5: 2915
A6: Para - 186 Days-PA2-T05 | B6: 4 | C6: 3888 | D6: 4121 | E6: 4508 | F6: 4930 | G6: 4193 | H6: 4487 | I6: 5183 | J6: 1940 | K6: 2222 | L6: 2566 | M6: 1921 | N6: 2200 | O6: 2541 | P6: 2404 | Q6: 2573 | R6: 2972
A7: Para - 213 days-PA2-T19 | B7: 5 | C7: 3888 | D7: 4121 | E7: 4508 | F7: 4930 | G7: 4289 | H7: 4591 | I7: 5302 | J7: 1985 | K7: 2273 | L7: 2625 | M7: 1965 | N7: 2250 | O7: 2599 | P7: 2450 | Q7: 2622 | R7: 3029
A8: Para - 246 days- PA2-T21 | B8: 6 | C8: 3893 | D8: 4130 | E8: 4541 | F8: 5014 | G8: 4343 | H8: 4648 | I8: 5368 | J8: 2049 | K8: 2347 | L8: 2710 | M8: 2009 | N8: 2301 | O8: 2657 | P8: 2496 | Q8: 2672 | R8: 3085
A9: Parent Liais. - 186 days-PSL-T05 | B9: 7 | C9: 3935 | D9: 4199 | E9: 4745 | F9: 5033 | G9: 4418 | H9: 4728 | I9: 5461 | J9: 2094 | K9: 2398 | L9: 2769 | M9: 2053 | N9: 2351 | O9: 2715 | P9: 2542 | Q9: 2721 | R9: 3143
A10: Parent Liais. - 213 days-PSL-T19 | B10: 8 | C10: 3957 | D10: 4513 | E10: 5064 | F10: 5587 | G10: 4493 | H10: 4809 | I10: 5554 | J10: 2139 | K10: 2449 | L10: 2829 | M10: 2097 | N10: 2401 | O10: 2773 | P10: 2588 | Q10: 2770 | R10: 3199
A11: Parent Liais. - 246 days-PSL-T21 | B11: 9 | C11: 3995 | D11: 4567 | E11: 5153 | F11: 5716 | G11: 4568 | H11: 4889 | I11: 5646 | J11: 2184 | K11: 2500 | L11: 2888 | M11: 2141 | N11: 2451 | O11: 2831 | P11: 2634 | Q11: 2820 | R11: 3256
A12: Data Clerk - 199 days-SEC-T15 | B12: 10 | C12: 4115 | D12: 4699 | E12: 5291 | F12: 5838 | G12: 4666 | H12: 4994 | I12: 5768 | J12: 2228 | K12: 2552 | L12: 2947 | M12: 2185 | N12: 2502 | O12: 2889 | P12: 2680 | Q12: 2869 | R12: 3313
A13: Data Clerk - 213 days-SEC-T19 | B13: 11 | C13: 4165 | D13: 4734 | E13: 5327 | F13: 5878 | G13: 4718 | H13: 5050 | I13: 5832 | J13: 2273 | K13: 2603 | L13: 3006 | M13: 2229 | N13: 2552 | O13: 2947 | P13: 2726 | Q13: 2918 | R13: 3370
A14: Data Clerk - 246 days-SEC-T26 | B14: 12 | C14: 4312 | D14: 4889 | E14: 5495 | F14: 6079 | G14: 4817 | H14: 5155 | I14: 5954 | J14: 2318 | K14: 2654 | L14: 3065 | M14: 2272 | N14: 2602 | O14: 3005 | P14: 2772 | Q14: 2967 | R14: 3427
A15: Parent Support Liais. - 199 days -T05 | B15: 13 | C15: 4359 | D15: 4943 | E15: 5525 | F15: 6112 | G15: 4868 | H15: 5210 | I15: 6017 | J15: 2363 | K15: 2705 | L15: 3125 | M15: 2316 | N15: 2652 | O15: 3063 | P15: 2818 | Q15: 3017 | R15: 3484
A16: Parent Support Liais. - 213 days - SP2-T19 | B16: 14 | C16: 4480 | D16: 5079 | E16: 5679 | F16: 6282 | G16: 4943 | H16: 5290 | I16: 6110 | J16: 2407 | K16: 2757 | L16: 3184 | M16: 2360 | N16: 2703 | O16: 3121 | P16: 2864 | Q16: 3066 | R16: 3541
A17: Parent Support Liais. - 246 days - SP2-T21 | B17: 15 | C17: 4544 | D17: 5152 | E17: 5752 | F17: 6339 | G17: 5043 | H17: 5397 | I17: 6233 | J17: 2452 | K17: 2808 | L17: 3243 | M17: 2404 | N17: 2753 | O17: 3179 | P17: 2910 | Q17: 3115 | R17: 3598
B18: 16 | C18: 4643 | D18: 5264 | E18: 5876 | F18: 6477 | G18: 5093 | H18: 5451 | I18: 6295 | J18: 2497 | K18: 2859 | L18: 3302 | M18: 2448 | N18: 2803 | O18: 3237 | P18: 2956 | Q18: 3164 | R18: 3654
B19: 17 | C19: 4710 | D19: 5339 | E19: 5961 | F19: 6552 | G19: 5168 | H19: 5531 | I19: 6388 | J19: 2542 | K19: 2910 | L19: 3361 | M19: 2492 | N19: 2853 | O19: 3295 | P19: 3002 | Q19: 3214 | R19: 3711
B20: 18 | C20: 4820 | D20: 5463 | E20: 6097 | F20: 6701 | G20: 5243 | H20: 5611 | I20: 6481 | J20: 2586 | K20: 2962 | L20: 3421 | M20: 2536 | N20: 2904 | O20: 3354 | P20: 3048 | Q20: 3263 | R20: 3768
B21: 19 | C21: 4830 | D21: 5463 | E21: 6097 | F21: 6701 | G21: 5318 | H21: 5692 | I21: 6573 | J21: 2631 | K21: 3013 | L21: 3480 | M21: 2580 | N21: 2954 | O21: 3412 | P21: 3094 | Q21: 3312 | R21: 3825
B22: 20 | C22: 4979 | D22: 5465 | E22: 6097 | F22: 6701 | G22: 5393 | H22: 5772 | I22: 6666 | J22: 2676 | K22: 3064 | L22: 3539 | M22: 2623 | N22: 3004 | O22: 3470 | P22: 3140 | Q22: 3361 | R22: 3882
B23: 21 | C23: 5130 | D23: 5610 | E23: 6152 | F23: 6737 | G23: 5393 | H23: 5772 | I23: 6666 | J23: 2676 | K23: 3064 | L23: 3539 | M23: 2623 | N23: 3004 | O23: 3470 | P23: 3140 | Q23: 3361 | R23: 3882
B24: 22 | C24: 5283 | D24: 5779 | E24: 6319 | F24: 6911 | G24: 5393 | H24: 5772 | I24: 6666 | J24: 2676 | K24: 3064 | L24: 3539 | M24: 2623 | N24: 3004 | O24: 3470 | P24: 3140 | Q24: 3361 | R24: 3882
B25: 23 | C25: 5388 | D25: 5956 | E25: 6513 | F25: 7114 | G25: 5393 | H25: 5772 | I25: 6666 | J25: 2676 | K25: 3064 | L25: 3539 | M25: 2623 | N25: 3004 | O25: 3470 | P25: 3140 | Q25: 3361 | R25: 3882
B26: 24 | C26: 5388 | D26: 6135 | E26: 6709 | F26: 7305 | G26: 5393 | H26: 5772 | I26: 6666 | J26: 2676 | K26: 3064 | L26: 3539 | M26: 2623 | N26: 3004 | O26: 3470 | P26: 3140 | Q26: 3361 | R26: 3882
B27: 25 | C27: 5388 | D27: 6257 | E27: 6843 | F27: 7452 | G27: 5393 | H27: 5772 | I27: 6666 | J27: 2676 | K27: 3064 | L27: 3539 | M27: 2623 | N27: 3004 | O27: 3470 | P27: 3140 | Q27: 3361 | R27: 3882
B28: 26 | C28: 5493 | D28: 6257 | E28: 6843 | F28: 7452 | G28: 5393 | H28: 5772 | I28: 6666 | J28: 2676 | K28: 3064 | L28: 3539 | M28: 2623 | N28: 3004 | O28: 3470 | P28: 3140 | Q28: 3361 | R28: 3882
B29: 27 | C29: 5493 | D29: 6257 | E29: 6843 | F29: 7452 | G29: 5393 | H29: 5772 | I29: 6666 | J29: 2676 | K29: 3064 | L29: 3539 | M29: 2623 | N29: 3004 | O29: 3470 | P29: 3140 | Q29: 3361 | R29: 3882
B30: 28 | C30: 5493 | D30: 6380 | E30: 6976 | F30: 7597 | G30: 5393 | H30: 5772 | I30: 6666 | J30: 2676 | K30: 3064 | L30: 3539 | M30: 2623 | N30: 3004 | O30: 3470 | P30: 3140 | Q30: 3361 | R30: 3882
B31: 29 | C31: 5600 | D31: 6380 | E31: 6976 | F31: 7597 | G31: 5393 | H31: 5772 | I31: 6666 | J31: 2676 | K31: 3064 | L31: 3539 | M31: 2623 | N31: 3004 | O31: 3470 | P31: 3140 | Q31: 3361 | R31: 3882
B32: 30 | C32: 5600 | D32: 6380 | E32: 6976 | F32: 7597 | G32: 5393 | H32: 5772 | I32: 6666 | J32: 2676 | K32: 3064 | L32: 3539 | M32: 2623 | N32: 3004 | O32: 3470 | P32: 3140 | Q32: 3361 | R32: 3882
B33: 31 | C33: 5600 | D33: 6501 | E33: 7111 | F33: 7743 | G33: 5393 | H33: 5772 | I33: 6666 | J33: 2676 | K33: 3064 | L33: 3539 | M33: 2623 | N33: 3004 | O33: 3470 | P33: 3140 | Q33: 3361 | R33: 3882

Sheet PosCosts (hidden)
A1: Position | B1: BudgetCode | C1: BaseSalary | D1: Adjustment | E1: AdjustAnnSal | F1: SupplAmt | G1: TotAnnSal | H1: Altbene | I1: RET | J1: HealthIns | K1: TotBene | L1: TotCost
A2: =BudgetPos!A3 -> Teacher, Title I | B2: =BudgetPos!B3 -> 203-38-05-00-400203-593-1750 | C2: =SUMIF(ePosTitle,A2,eposBase) -> 0 | D2: =SUMIF(ePosTitle,A2,eposSalAdj) -> 0 | E2: =C2+D2 -> 0 | F2: 0 | G2: =E2+F2 -> 0 | H2: =SUMIF(ePosTitle,A2,eposFica) -> 0 | I2: =SUMIF(ePosTitle,A2,eposRet) -> 0 | J2: =SUMIF(ePosTitle,A2,eposHealth) -> 0 | K2: =SUMIF(ePosTitle,A2,eposBene) -> 0 | L2: =SUMIF(ePosTitle,A2,eposTot) -> 0
A3: =BudgetPos!A4 -> Para, Title I | B3: =BudgetPos!B4 -> 203-38-07-00-400203-593-1750 | C3: 0 | D3: 0 | E3: 0 | F3: 0 | G3: 0 | H3: 0 | I3: 0 | J3: 0 | K3: 0 | L3: 0
A4: =BudgetPos!A5 -> Parent Liasion, Title I | B4: =BudgetPos!B5 -> 203-42-07-00-400203-593-1750 | C4: 22973.04 | D4: 459.4608 | E4: 23432.5008 | F4: 0 | G4: 23432.5008 | H4: 620.9612712 | I4: 3939.003384 | J4: 4298.88 | K4: 8858.844656 | L4: 32291.34546
A5: =BudgetPos!A6 -> Data Clerk, Title I | B5: =BudgetPos!B6 -> 203-46-03-00-400203-593-1750 | C5: 0 | D5: 0 | E5: 0 | F5: 0 | G5: 0 | H5: 0 | I5: 0 | J5: 0 | K5: 0 | L5: 0
A6: =BudgetPos!A7 -> Academic Coach | B6: =BudgetPos!B7 -> 203-46-19-10-400203-593-1750 | C6: 113029.44 | D6: 2260.5888 | E6: 115290.0288 | F6: 0 | G6: 115290.0288 | H6: 3055.185763 | I6: 19380.25384 | J6: 15876 | K6: 38311.4396 | L6: 153601.4684

Sheet TitleIAllocations (hidden)
A1: School | B1: School Name | C1: Total Allocation | D1: Parental Involvement Allocation | E1: Allocation
A2: 108 | B2: Allgood Elementary School | C2: 257379.3868 | D2: 2901.386844 | E2: 254478
A3: 503 | B3: Arabia Mountain High School - Academy of Engineering Medicine and Environmental Studies | C3: 308902.9503 | D3: 4054.950288 | E3: 304848
A4: 120 | B4: Avondale Elementary School | C4: 230504.4308 | D4: 2598.430788 | E4: 227906
A5: 160 | B5: Barack H. Obama Elementary Magnet School of Technology | C5: 377283.0369 | D5: 4253.03694 | E5: 373030
A6: 259 | B6: Bob Mathis Elementary School | C6: 168485.3014 | D6: 1899.301428 | E6: 166586
A7: 133 | B7: Briar Vista Elementary School | C7: 95866.43285 | D7: 1258.432848 | E7: 94608
A8: 136 | B8: Brockett Elementary School | C8: 170035.7797 | D8: 1916.779662 | E8: 168119
A9: 138 | B9: Browns Mill Elementary School | C9: 238256.822 | D9: 2685.821958 | E9: 235571
A10: 145 | B10: Canby Lane Elementary School | C10: 297691.8209 | D10: 3355.820928 | E10: 294336
A11: 325 | B11: Cary Reynolds Elementary School | C11: 426381.5144 | D11: 4806.51435 | E11: 421575
A12: 148 | B12: Cedar Grove Elementary School | C12: 221718.3875 | D12: 2499.387462 | E12: 219219
A13: 519 | B13: Cedar Grove High School | C13: 345740.5148 | D13: 4538.514762 | E13: 341202
A14: 518 | B14: Cedar Grove Middle School | C14: 319915.3423 | D14: 3606.342282 | E14: 316309
A15: 522 | B15: Chamblee Charter High School | C15: 181078.2554 | D15: 3542.255424 | E15: 177536
A16: 147 | B16: Chapel Hill Elementary School | C16: 315263.9076 | D16: 3553.90758 | E16: 311710
A17: 523 | B17: Chapel Hill Middle School | C17: 314747.0815 | D17: 3548.081502 | E17: 311199
A18: 525 | B18: Clarkston High School | C18: 698748.8575 | D18: 7876.857456 | E18: 690872
A19: 156 | B19: Columbia Elementary School | C19: 287872.1254 | D19: 3245.125446 | E19: 284627
A20: 527 | B20: Columbia High School | C20: 542667.3819 | D20: 6117.3819 | E20: 536550
A21: 526 | B21: Columbia Middle School | C21: 459975.2094 | D21: 5185.20942 | E21: 454790
A22: 529 | B22: Cross Keys High School | C22: 606236.9895 | D22: 6833.989494 | E22: 599403
A23: 638 | B23: DeKalb Academy of Technology and the Environment Charter School | C23: 172204.5183 | D23: 2260.518264 | E23: 169944
A24: 546 | B24: DeKalb Alternative School | C24: 73389.30308 | D24: 827.303076 | E24: 72562
A25: 506 | B25: DeKalb Early College Academy | C25: 81220.17227 | D25: 1066.172274 | E25: 80154
A26: 102 | B26: DeKalb Elementary School of the Arts | C26: 150900.8665 | D26: 1980.86652 | E26: 148920
A27: 636 | B27: DeKalb PATH Academy Charter School | C27: 181922.7795 | D27: 2050.779456 | E27: 179872
A28: 641 | B28: DeKalb Preparatory Academy Charter | C28: 143799.6493 | D28: 1887.649272 | E28: 141912
A29: 596 | B29: Destiny Achievers Academy of Excellence | C29: 100781.0852 | D29: 1136.08521 | E29: 99645
A30: 176 | B30: Dresden Elementary School | C30: 478580.9482 | D30: 5394.948228 | E30: 473186
A31: 533 | B31: Druid Hills High School | C31: 226080.2125 | D31: 3175.21251 | E31: 222905
A32: 573 | B32: Druid Hills Middle School | C32: 227682.778 | D32: 2988.778014 | E32: 224694
A33: 178 | B33: Dunaire Elementary School | C33: 282187.0386 | D33: 3181.038588 | E33: 279006
A34: 342 | B34: Edward L. Bouie Sr. Elementary School | C34: 221913.039 | D34: 2913.039 | E34: 219000
A35: 257 | B35: Eldridge L. Miller Elementary School | C35: 306994.6903 | D35: 3460.690332 | E35: 303534
A36: 625 | B36: Elizabeth Andrews High School | C36: 107849.737 | D36: 1415.736954 | E36: 106434
A37: 185 | B37: Evansdale Elementary School | C37: 150013.2144 | D37: 1969.214364 | E37: 148044
A38: 187 | B38: Fairington Elementary School | C38: 283737.5168 | D38: 3198.516822 | E38: 280539
A39: 190 | B39: Fernbank Elementary School | C39: 94113.04065 | D39: 1841.040648 | E39: 92272
A40: 186 | B40: Flat Rock Elementary School | C40: 515792.4258 | D40: 5814.425844 | E40: 509978
A41: 195 | B41: Flat Shoals Elementary School | C41: 260480.3433 | D41: 2936.343312 | E41: 257544
A42: 524 | B42: Freedom Middle School | C42: 578845.2074 | D42: 6525.20736 | E42: 572320
A43: 212 | B43: Hambrick Elementary School | C43: 307511.5164 | D43: 3466.51641 | E43: 304045
A44: 213 | B44: Hawthorne Elementary School | C44: 106518.2587 | D44: 1398.25872 | E44: 105120
A45: 549 | B45: Henderson Middle School | C45: 357279.9928 | D45: 4689.99279 | E45: 352590
A46: 215 | B46: Henderson Mill Elementary School | C46: 176198.953 | D46: 2312.952966 | E46: 173886
A47: 218 | B47: Hightower Elementary School | C47: 359194.1242 | D47: 4049.12421 | E47: 355145
A48: 220 | B48: Huntley Hills Elementary School | C48: 145574.9536 | D48: 1910.953584 | E48: 143664
A49: 225 | B49: Idlewood Elementary School | C49: 449638.6879 | D49: 5068.68786 | E49: 444570
A50: 230 | B50: Indian Creek Elementary School | C50: 574193.7727 | D50: 6472.772658 | E50: 567721
A51: 635 | B51: International Community School | C51: 124715.1279 | D51: 1637.127918 | E51: 123078
A52: 716 | B52: International Student Center | C52: 127139.2152 | D52: 1433.215188 | E52: 125706
A53: 140 | B53: John Robert Lewis Elementary School | C53: 177788.1708 | D53: 2004.170832 | E53: 175784
A54: 232 | B54: Jolly Elementary School | C54: 395888.7757 | D54: 4462.775748 | E54: 391426
A55: 235 | B55: Kelley Lake Elementary School | C55: 191742.4749 | D55: 2161.474938 | E55: 189581
A56: 236 | B56: Kingsley Elementary School | C56: 116282.4324 | D56: 1526.432436 | E56: 114756
A57: 555 | B57: Lakeside High School | C57: 256726.0792 | D57: 5022.079236 | E57: 251704
A58: 626 | B58: Laurel Heights | C58: 21189.8692 | D58: 238.869198 | E58: 20951
A59: 639 | B59: Leadership Preparatory Academy | C59: 84209.69383 | D59: 1182.693834 | E59: 83027
A60: 559 | B60: Lithonia High School | C60: 524578.4692 | D60: 5913.46917 | E60: 518665
A61: 558 | B61: Lithonia Middle School | C61: 466693.9484 | D61: 5260.948434 | E61: 461433
A62: 256 | B62: Livsey Elementary School | C62: 65542.52032 | D62: 920.520324 | E62: 64622
A63: 261 | B63: Marbut Elementary School | C63: 319915.3423 | D63: 3606.342282 | E63: 316309
A64: 15 | B64: Margaret Harris Comprehensive School | C64: 16421.56489 | D64: 215.564886 | E64: 16206
A65: 574 | B65: Martin Luther King Jr. High School | C65: 465573.5558 | D65: 6111.555822 | E65: 459462
A66: 584 | B66: Mary McLeod Bethune Middle School | C66: 453256.4704 | D66: 5109.470406 | E66: 448147
A67: 260 | B67: McLendon Elementary School | C67: 186574.2142 | D67: 2103.214158 | E67: 184471
A68: 595 | B68: McNair High School | C68: 404157.993 | D68: 4555.992996 | E68: 399602
A69: 544 | B69: McNair Middle School | C69: 369530.6458 | D69: 4165.64577 | E69: 365365
A70: 270 | B70: Midvale Elementary School | C70: 109625.0413 | D70: 1439.041266 | E70: 108186
A71: 564 | B71: Miller Grove High School | C71: 445601.3823 | D71: 5849.382312 | E71: 439752
A72: 568 | B72: Miller Grove Middle School | C72: 394338.2975 | D72: 4445.297514 | E72: 389893
A73: 278 | B73: Montclair Elementary School | C73: 386069.0803 | D73: 4352.080266 | E73: 381717
A74: 146 | B74: Murphy Candler Elementary School | C74: 222752.0396 | D74: 2511.039618 | E74: 220241
A75: 194 | B75: Narvie Harris Elementary School | C75: 225019.8215 | D75: 2953.821546 | E75: 222066
A76: 300 | B76: Oakcliff Elementary School | C76: 348340.7766 | D76: 3926.776572 | E76: 344414
A77: 306 | B77: Oakview Elementary | C77: 410359.9059 | D77: 4625.905932 | E77: 405734
A78: 309 | B78: Panola Way Elementary School | C78: 410876.732 | D78: 4631.73201 | E78: 406245
A79: 311 | B79: Peachcrest Elementary School | C79: 508556.8608 | D79: 5732.860752 | E79: 502824
A80: 565 | B80: Peachtree Middle School | C80: 168569.5601 | D80: 3297.560148 | E80: 165272
A81: 312 | B81: Pine Ridge Elementary School | C81: 265131.778 | D81: 2988.778014 | E81: 262143
A82: 315 | B82: Pleasantdale Elementary School | C82: 346273.4723 | D82: 3903.47226 | E82: 342370
A83: 345 | B83: Princeton Elementary School | C83: 323016.2988 | D83: 3641.29875 | E83: 319375
A84: 332 | B84: Rainbow Elementary School | C84: 200011.6922 | D84: 2254.692186 | E84: 197757
A85: 320 | B85: Redan Elementary School | C85: 244975.561 | D85: 2761.560972 | E85: 242214
A86: 567 | B86: Redan High School | C86: 338195.4714 | D86: 4439.471436 | E86: 333756
A87: 566 | B87: Redan Middle School | C87: 313196.6033 | D87: 3530.603268 | E87: 309666
A88: 370 | B88: Robert Shaw Theme School | C88: 207247.2573 | D88: 2336.257278 | E88: 204911
A89: 340 | B89: Rock Chapel Elementary School | C89: 219134.2571 | D89: 2470.257072 | E89: 216664
A90: 344 | B90: Rockbridge Elementary School | C90: 148329.0844 | D90: 1672.084386 | E90: 146657
A91: 262 | B91: Ronald E McNair Discover Learning Academy Elementary School | C91: 399506.5583 | D91: 4503.558294 | E91: 395003
A92: 348 | B92: Rowland Elementary School | C92: 282703.8647 | D92: 3186.864666 | E92: 279517
A93: 569 | B93: Salem Middle School | C93: 388653.2107 | D93: 4381.210656 | E93: 384272
A94: 570 | B94: Sequoyah Middle School | C94: 802114.0731 | D94: 9042.073056 | E94: 793072
A95: 362 | B95: Shadow Rock Elementary School | C95: 281153.3864 | D95: 3169.386432 | E95: 277984
A96: 398 | B96: Smoke Rise Elementary School | C96: 150396.3887 | D96: 1695.388698 | E96: 148701
A97: 400 | B97: Snapfinger Elementary School | C97: 386069.0803 | D97: 4352.080266 | E97: 381717
A98: 576 | B98: Southwest DeKalb High School | C98: 342189.9061 | D98: 4491.906138 | E98: 337698
A99: 578 | B99: Stephenson High School | C99: 431842.7739 | D99: 5668.773894 | E99: 426174
A100: 579 | B100: Stephenson Middle School | C100: 406225.2973 | D100: 4579.297308 | E100: 401646
A101: 415 | B101: Stone Mill Elementary School | C101: 295107.6905 | D101: 3326.690538 | E101: 291781
A102: 420 | B102: Stone Mountain Elementary School | C102: 245492.387 | D102: 2767.38705 | E102: 242725
A103: 580 | B103: Stone Mountain High School | C103: 410359.9059 | D103: 4625.905932 | E103: 405734
A104: 581 | B104: Stone Mountain Middle School | C104: 409843.0799 | D104: 4620.079854 | E104: 405223
A105: 425 | B105: Stoneview Elementary School | C105: 409326.2538 | D105: 4614.253776 | E105: 404712
A106: 582 | B106: The Champion Middle Theme School | C106: 201940.8655 | D106: 2650.86549 | E106: 199290
A107: 465 | B107: Toney Elementary School | C107: 182956.4316 | D107: 2062.431612 | E107: 180894
A108: 585 | B108: Towers High School | C108: 464626.6441 | D108: 5237.644122 | E108: 459389
A109: 593 | B109: Tucker High School | C109: 444713.7302 | D109: 5837.730156 | E109: 438876
A110: 592 | B110: Tucker Middle School | C110: 405657.0353 | D110: 5325.035292 | E110: 400332
A111: 139 | B111: Wadsworth Magnet School for High Achievers | C111: 42163.47741 | D111: 553.47741 | E111: 41610
A112: 492 | B112: Woodridge Elementary School | C112: 229987.6047 | D112: 2592.60471 | E112: 227395
A113: 496 | B113: Woodward Elementary School | C113: 478064.1222 | D113: 5389.12215 | E113: 472675
A114: 498 | B114: Wynbrooke Elementary School | C114: 194395.8222 | D114: 2551.822164 | E114: 191844

Sheet Priority Area 2
A1: PRIORITY AREA 2, IMPROVEMENT STRATEGIES, AND MONITORING CYCLE (Review - Reflect - Refine)
A2: PLAN: Continuous School Improvement Plans are developed based on data analyses and/or comprehensive needs assessments (PLAN), to implement solutions (DO), to understand the results or impact (CHECK) and to make adjustments based upon the outcomes of the strategy implementation (ACT).
A3: Priority Area 2 | C3: ='Data Analysis'!A66 -> Improve math proficiency
A5: *SMART Goal with Performance Measures | C5: By the end of the school year, we will improve student mastery of academically rigorous learning standards as measured by: (1) increase by 4% the number of students achieving proficient or higher on Coordinate Algebra and Analytic Geometry Georgia Milestones EOC; (2) Meeting or exceeding mean expected growth on MAP
A6: * Student-Focused, Monitored, Aligned/Actionable, Results-Oriented, Time bound
A7: DCSD Strategic Plan Goal | C7: DCSD Goal Area I: Student Success with Equity and Access | AU7: Click here and select the area of the DCSD Strategic Plan from the drop down menu | AV7: DCSD Goal Area I: Student Success with Equity and Access | AW7: DCSD Goal Area II: Stakeholder Engagement | AX7: DCSD Goal Area III: Staff Efficacy and Excellence | AY7: DCSD Goal Area IV: Internal and External Communications | AZ7: DCSD Goal Area V: Organizational Effectiveness and Efficiency
A8: DO: School Improvement Plans are developed based on data analyses and/or comprehensive needs assessments (PLAN), to implement solutions (DO), to understand the results or impact (CHECK) and to make adjustments based upon the outcomes of the strategy implementation (ACT).
A9: IMPROVEMENT STRATEGY #1
A10: Number/Math Talks | G10: FOR TITLE I FOCUS AND PRIORITY SCHOOLS ONLY - Select Georgia Performance Standard
A11: Action Steps/Tasks to Implement Improvement Strategy | G11: Position Responsible for the Action Step, and alignment to district and state efforts/requirements, if needed. | I11: Supplemental Title I Funding Budgeted to Support Action Step
G12: Person/Position Responsible | H12: Other (Optional, for school use) | I12: Title I | J12: Title I State Focus | K12: THESE CELLS ARE LOCKED BECAUSE FUNDING AMOUNTS WILL AUTO POPULATE TO THIS SECTION FROM FUNDING WORKSHEETS.
A13: 1) Students will actively engage in number/math talks by discusing reasoning for solving math problems and comparing their strategies to alternative strategies for solving the problem at least three times a week. | G13: Teachers | I13: ='Title I Program Worksheet 2'!N13 -> 0 | J13: ='Title I Focus Worksheet 2'!Q13 -> 0 | AU13: Click here and hold the CTRL tab down to select one or more options from the drop down menu. | AV13: Title I - Improving the Academic Achievement of the Disadvantaged | AW13: Title I - State Priority School | AX13: Title I - State Focus School | AY13: Magnet | AZ13: Not Applicable
A14: 2) Academic coach/professional learning facilitators will facilitate professional learning to math teachers on how to effectively implement number/math talks. | G14: Academic Coach; Teachers; Professional Learning Facilitators | I14: ='Title I Program Worksheet 2'!N14 -> 0 | J14: ='Title I Focus Worksheet 2'!Q14 -> 0
A15: 3) Academic coach/professional learning facilitators will collaboratively work with teachers weekly or bimonthly to select problems that may be used for a number/math talk. | G15: Academic Coach; Teachers; Professional Learning Facilitators | I15: ='Title I Program Worksheet 2'!N15 -> 0 | J15: ='Title I Focus Worksheet 2'!Q15 -> 0
A16: 4) Administrative team will review/analyze data with teachers to determine trends and the effectiveness of number/math talks on students' understanding of mathematical concepts, conduct classroom visits to observe number/math talks, and provide feedback with next steps in a timely manner to teachers including conferences and emails. | G16: Principal; Assistant Principals, ISS, Academic Coaches | I16: ='Title I Program Worksheet 2'!N16 -> 0 | J16: ='Title I Focus Worksheet 2'!Q16 -> 0
A17: 5) Administrative team will develop and implement a monitoring tool for collecting and analyzing classroom visit data on the implementation of number/math talks. | G17: Principal; Assistant Principals, ISS, Academic Coaches | I17: ='Title I Program Worksheet 2'!N17 -> 0 | J17: ='Title I Focus Worksheet 2'!Q17 -> 0
A18: 6) Teacher is actilvely listening to student's reasoning and eliciting other strategies and different reasonings from multiple students in the classroom. | G18: Teachers | I18: ='Title I Program Worksheet 2'!N18 -> 0 | J18: ='Title I Focus Worksheet 2'!Q18 -> 0
A19: 7) Students will be provided with extended day learning opportunities 100 minutes per week (enrichment period) during the day and Credit recovery during the summer for remediation and reinforcement of math standards and number/math talks. | G19: Teachers | I19: ='Title I Program Worksheet 2'!N19 -> 0 | J19: ='Title I Focus Worksheet 2'!Q19 -> 0
A20: 8) Identified students based on math assessment data will be scheduled for a foundations course for double dosing of number/math talks and remediation/reinforcement of mathematical concepts. | G20: API; Counselors | I20: ='Title I Program Worksheet 2'!N20 -> 0 | J20: ='Title I Focus Worksheet 2'!Q20 -> 0
A21: 9) Pu | I21: ='Title I Program Worksheet 2'!N21 -> 0 | J21: ='Title I Focus Worksheet 2'!Q21 -> 0
A22: Action Steps/Tasks to Implement Associated with Professional Development/Professional Learning High-quality and ongoing professional development for teachers, principals, and paraprofessionals (TA & SWP) | G22: Position Responsible for the Action Step, and alignment to district and state efforts/requirements, if needed. | I22: Supplemental Title I Funding Budgeted to Support Action Step
A23: Identify associated professional development courses/activities, participants, providers, and the dates activities will begin and end. | G23: Person/Position Responsible | H23: Other (Optional, for school use) | I23: Title I | J23: Title I State Focus
A24: 10) Academic coach/professional learning facilitators will provide professional learning on how to incorporate number/math talks in the classroom (how to effectively implement number/math talks). | G24: Academic Coach; Professional Learning Facilitators | I24: ='Title I Program Worksheet 2'!N23 -> 0 | J24: ='Title I Focus Worksheet 2'!Q23 -> 0 | K24: SEE NOTE ABOVE
A25: 11) Academic coach/professional learning facilitators will provide professional learning on how to select problems that may be used for a number/math talk. | G25: Academic Coach; Professional Learning Facilitators | I25: ='Title I Program Worksheet 2'!N24 -> 0 | J25: ='Title I Focus Worksheet 2'!Q24 -> 0
A26: 12) Teachers will attend NCTM to explore effective intervention methods, refine assessment techniques, discover the lastest technologies and acquire research based strategies to address the needs of each and every student. | I26: ='Title I Program Worksheet 2'!N25 -> 21459.38 | J26: ='Title I Focus Worksheet 2'!Q25 -> 0
A27: Action Steps/Tasks to Implement Associated with Parent/Family Engagement | G27: Position Responsible for the Action Step, and alignment to district and state efforts/requirements, if needed. | I27: Supplemental Title I Funding Budgeted to Support Action Step
A28: Identify parental engagement activities, providers, and the dates activities will begin and end. | G28: Person/Position Responsible | H28: Other (Optional, for school use) | I28: Title I | J28: Title I State Focus
A29: 13) Provide parent workshops at flexible times on math content (strategies and resources for parents to help their children at home with clarifying their thinking and making decisions about choosing effective strategies for a math problem). | G29: Parent Liaison, API, Teachers | I29: ='Title I Program Worksheet 2'!N27 -> 0 | J29: ='Title I Focus Worksheet 2'!Q27 -> 0 | K29: SEE NOTE ABOVE
A30: 14) Provide stakeholders information and opportunities to give input, feedback, and request resources to assist their children at home with reading with translations available upon request (pre-planning meetings, annual meeting, Curriculum Night, Core Content/Math Nights, CSIP, compact and policy development, parent/teacher conferences, email, website) | G30: Parent Liaison, API, Teachers | I30: ='Title I Program Worksheet 2'!N28 -> 0 | J30: ='Title I Focus Worksheet 2'!Q28 -> 0
A31: 15) | I31: ='Title I Program Worksheet 2'!N29 -> 0 | J31: ='Title I Focus Worksheet 2'!Q29 -> 0
A32: IMPROVEMENT STRATEGY #2
A33: Use Edgenuity to improve math proficiency. | G33: FOR TITLE I FOCUS AND PRIORITY SCHOOLS ONLY - Select Georgia Performance Standard
A34: Action Steps/Tasks to Implement Improvement Strategy | G34: Position Responsible for the Action Step, and alignment to district and state efforts/requirements, if needed. | I34: Supplemental Title I Funding Budgeted to Support Action Step
G35: Person/Position Responsible | H35: Other (Optional, for school use) | I35: Title I | J35: Title I State Focus
A36: 1) Identified students will use Edgenuity during the enrichment period 100 minutes/week for remediation, reinforcement, enrichment, and credit recovery in mathematics. | G36: Teachers | I36: ='Title I Program Worksheet 2'!N35 -> 0 | J36: ='Title I Focus Worksheet 2'!Q35 -> 0 | K36: THESE CELLS ARE LOCKED BECAUSE FUNDING AMOUNTS WILL AUTO POPULATE TO THIS SECTION FROM FUNDING WORKSHEETS.
A37: 2) Teachers will identify standards individual students have not mastered to differentiate instruction using Edgenuity . | G37: Teachers | I37: ='Title I Program Worksheet 2'!N36 -> 0 | J37: ='Title I Focus Worksheet 2'!Q36 -> 0
A38: 3) Students will work independently using Edgenuity on the computer taking notes, practicing skills/content/concepts, and taking pre/post assessments to master identified standards in mathematics. | G38: Teachers | I38: ='Title I Program Worksheet 2'!N37 -> 0 | J38: ='Title I Focus Worksheet 2'!Q37 -> 0
A39: 4) Administrative team will review/analyze data with teachers, conduct classroom visits, and provide feedback with next steps in a timely manner to teachers including conferences and emails. | G39: Principal; Assistant Principals, ISS, Academic Coaches | I39: ='Title I Program Worksheet 2'!N38 -> 0 | J39: ='Title I Focus Worksheet 2'!Q38 -> 0
A40: 5) | I40: ='Title I Program Worksheet 2'!N39 -> 0 | J40: ='Title I Focus Worksheet 2'!Q39 -> 0
A41: 6) | I41: ='Title I Program Worksheet 2'!N40 -> 0 | J41: ='Title I Focus Worksheet 2'!Q40 -> 0
A42: 7) | I42: ='Title I Program Worksheet 2'!N41 -> 0 | J42: ='Title I Focus Worksheet 2'!Q41 -> 0
A43: 8) | I43: ='Title I Program Worksheet 2'!N42 -> 0 | J43: ='Title I Focus Worksheet 2'!Q42 -> 0
A44: 9) | I44: ='Title I Program Worksheet 2'!N43 -> 0 | J44: ='Title I Focus Worksheet 2'!Q43 -> 0
A45: Action Steps/Tasks to Implement Associated with Professional Development/Professional Learning High-quality and ongoing professional development for teachers, principals, and paraprofessionals (TA & SWP) | G45: Position Responsible for the Action Step, and alignment to district and state efforts/requirements, if needed. | I45: Supplemental Title I Funding Budgeted to Support Action Step
A46: Identify associated professional development courses/activities, participants, providers, and the dates activities will begin and end. | G46: Person/Position Responsible | H46: Other (Optional, for school use) | I46: Title I | J46: Title I State Focus
A47: 10) Provide Edgenuity professional learning to new teachers at beginning of school year and as needed throughout the year based on needs assessment. | G47: API | I47: ='Title I Program Worksheet 2'!N45 -> 0 | J47: ='Title I Focus Worksheet 2'!Q45 -> 0 | K47: SEE NOTE ABOVE
A48: 11) | I48: ='Title I Program Worksheet 2'!N46 -> 0 | J48: ='Title I Focus Worksheet 2'!Q46 -> 0
A49: 12) | I49: ='Title I Program Worksheet 2'!N47 -> 0 | J49: ='Title I Focus Worksheet 2'!Q47 -> 0
A50: Action Steps/Tasks to Implement Associated with Parent/Family Engagement | G50: Position Responsible for the Action Step, and alignment to district and state efforts/requirements, if needed. | I50: Supplemental Title I Funding Allocated to Support Action Step
A51: Identify parent/family engagement activities, providers, and the dates activities will begin and end. | G51: Person/Position Responsible | H51: Other (Optional, for school use) | I51: Title I | J51: Title I State Focus
A52: 13) Provide Edgenuity parent workshops at flexible times for strategies and resources for parents to help their children at home. | G52: API/Parent Liaison | I52: ='Title I Program Worksheet 2'!N49 -> 0 | J52: ='Title I Focus Worksheet 2'!Q49 -> 0 | K52: SEE NOTE ABOVE
A53: 14) Provide stakeholders information and opportunities to give input, feedback, and request resources to assist their children at home with math with translations available upon request (pre-planning meetings, annual meeting, Curriculum Night, Core Content/Literacy Nights, CSIP, compact and policy development, parent/teacher conferences, email, website) | G53: API/Parent Liaison | I53: ='Title I Program Worksheet 2'!N50 -> 0 | J53: ='Title I Focus Worksheet 2'!Q50 -> 0
A54: 15) During faculty meetings, discuss and demonstrate Edgenuity to teachers to engage parents with math strategies at home with their children. | G54: API/Parent Liaison | I54: ='Title I Program Worksheet 2'!N51 -> 0 | J54: ='Title I Focus Worksheet 2'!Q51 -> 0
A55: IMPROVEMENT STRATEGY #3
A56: Type Improvement Strategy Here | G56: FOR TITLE I FOCUS AND PRIORITY SCHOOLS ONLY - Select Georgia Performance Standard
A57: Action Steps/Tasks to Implement Improvement Strategy | G57: Position Responsible for the Action Step, and alignment to district and state efforts/requirements, if needed. | I57: Supplemental Title I Funding Allocated to Support Action Step
G58: Person/Position Responsible | H58: Other (Optional, for school use) | I58: Title I | J58: Title I State Focus
A59: 1) Purchase of KUTA Software as math suppliment. | I59: ='Title I Program Worksheet 2'!N57 -> 3000 | J59: ='Title I Focus Worksheet 2'!Q57 -> 0 | K59: THESE CELLS ARE LOCKED BECAUSE FUNDING AMOUNTS WILL AUTO POPULATE TO THIS SECTION FROM FUNDING WORKSHEETS.
A60: 2) | I60: ='Title I Program Worksheet 2'!N58 -> 0 | J60: ='Title I Focus Worksheet 2'!Q58 -> 0
A61: 3) | I61: ='Title I Program Worksheet 2'!N59 -> 0 | J61: ='Title I Focus Worksheet 2'!Q59 -> 0
A62: 4) | I62: ='Title I Program Worksheet 2'!N60 -> 0 | J62: ='Title I Focus Worksheet 2'!Q60 -> 0
A63: 5) | I63: ='Title I Program Worksheet 2'!N61 -> 0 | J63: ='Title I Focus Worksheet 2'!Q61 -> 0
A64: 6) | I64: ='Title I Program Worksheet 2'!N62 -> 0 | J64: ='Title I Focus Worksheet 2'!Q62 -> 0
A65: 7) | I65: ='Title I Program Worksheet 2'!N63 -> 0 | J65: ='Title I Focus Worksheet 2'!Q63 -> 0
A66: 8) | I66: ='Title I Program Worksheet 2'!N64 -> 0 | J66: ='Title I Focus Worksheet 2'!Q64 -> 0
A67: 9) | I67: ='Title I Program Worksheet 2'!N65 -> 0 | J67: ='Title I Focus Worksheet 2'!Q65 -> 0
A68: Action Steps/Tasks to Implement Associated with Professional Development/Professional Learning High-quality and ongoing professional development for teachers, principals, and paraprofessionals (TA & SWP) | G68: Position Responsible for the Action Step, and alignment to district and state efforts/requirements, if needed. | I68: Supplemental Title I Funding Allocated to Support Action Step
A69: Identify associated professional development courses/activities, participants, providers, and the dates activities will begin and end. | G69: Person/Position Responsible | H69: Other (Optional, for school use) | I69: Title I | J69: Title I State Focus
A70: 10) | I70: ='Title I Program Worksheet 2'!N67 -> 0 | J70: ='Title I Focus Worksheet 2'!Q67 -> 0 | K70: SEE NOTE ABOVE
A71: 11) | I71: ='Title I Program Worksheet 2'!N68 -> 0 | J71: ='Title I Focus Worksheet 2'!Q68 -> 0
A72: 12) | I72: ='Title I Program Worksheet 2'!N69 -> 0 | J72: ='Title I Focus Worksheet 2'!Q69 -> 0
A73: Action Steps/Tasks to Implement Associated with Parent/Family Engagement | G73: Position Responsible for the Action Step, and alignment to district and state efforts/requirements, if needed. | I73: Supplemental Title I Funding Allocated to Support Action Step
A74: Identify parent/family engagement activities, providers, and the dates activities will begin and end. | G74: Person/Position Responsible | H74: Other (Optional, for school use) | I74: Title I | J74: Title I State Focus
A75: 13) | I75: ='Title I Program Worksheet 2'!N71 -> 0 | J75: ='Title I Focus Worksheet 2'!Q71 -> 0 | K75: SEE NOTE ABOVE
A76: 14) | I76: ='Title I Program Worksheet 2'!N72 -> 0 | J76: ='Title I Focus Worksheet 2'!Q72 -> 0
A77: 15) | I77: ='Title I Program Worksheet 2'!N73 -> 0 | J77: ='Title I Focus Worksheet 2'!Q73 -> 0
A78: Review and Reflect: Continuous School Improvement Plans are developed based on data analyses and/or comprehensive needs assessments (PLAN), to implement solutions (DO), to understand the results or impact (CHECK) and to make based upon the outcomes of the strategy implementation (ACT).
A79: How will you determine whether the strategies led to reaching the SMART Goal? (Include formative, benchmark, and summative data as appropriate.)
A81: What data will be used to determine whether the improvement strategies were deployed with fidelity?
A83: What does the data/evidence show regarding the results of the implemented strategies?
A84: Review, Reflect, and Refine 1 - Based on results evidenced August through November, should strategies be changed? If so, how?
A86: Review, Reflect, and Refine 2 - Based on results evidenced December through February, should strategies be changed? If so, how?
A88: Review, Reflect, and Refine 3 - Based on results evidenced through the end-of-year, should strategies be changed? If so, how?

Sheet Priority Area 2B (hidden)
A1: PRIORITY AREA 2B AND ASSOCIATED STRATEGIES
A2: PLAN: School Improvement Plans are developed based on data analyses and/or comprehensive needs assessments (PLAN), to implement solutions (DO), to understand the results or impact (CHECK) and to make adjustments based upon the outcomes of the strategy implementation (ACT).
A3: Priority Area 1B | C3: ='Data Analysis B'!A52 -> 0
A5: *SMART Goal
A6: *Specific, Measurable, Attainable, Results-Oriented, Timebound
A7: Target Goal for 2016-17 (What goal must be reached to be on target to meet SMART goal?)
A8: MCS Growing to Greatness 2.0 | C8: Key Indicators of Success - Learning Pathway | AU8: Key Indicators of Success - Learning Pathway | AV8: Key Indicators of Success - Community | AW8: Key Indicators of Success - Culture Pathway | AX8: Key Indicators of Success - Leadership Pathway | AY8: Click here and select the area of the MCS Strategic Plan 2016 from the drop down menu.
A9: DO: School Improvement Plans are developed based on data analyses and/or comprehensive needs assessments (PLAN), to implement solutions (DO), to understand the results or impact (CHECK) and to make adjustments based upon the outcomes of the strategy implementation (ACT).
A10: IMPROVEMENT STRATEGY #1
A12: Action Steps to Implement Improvement Strategy | G12: Additional Improvement Plan(s) that this Action Step Supports (select all that apply from drop down or specify in "Other") | I12: Supplemental Title I Funding Budgeted to Support Action Step
G13: Improvement Plans (drop down menu) | H13: Other (Specify) | I13: Title I | J13: Title I State Focus | K13: THESE CELLS ARE LOCKED BECAUSE FUNDING AMOUNTS WILL AUTO POPULATE TO THIS SECTION FROM FUNDING WORKSHEETS.
A14: 1) | I14: ='Title I Schoolwide Worksheet 2B'!Q13 -> 0 | J14: ='Title I Focus Worksheet 2B'!Q13 -> 0 | AU14: Click here and hold the CTRL tab down to select one or more options from the drop down menu. | AV14: Title I - Improving the Academic Achievement of the Disadvantaged | AW14: Title I - State Priority School | AX14: Title I - State Focus School | AY14: Magnet | AZ14: Not Applicable
A15: 2) | I15: ='Title I Schoolwide Worksheet 2B'!Q14 -> 0 | J15: ='Title I Focus Worksheet 2B'!Q14 -> 0
A16: 3) | I16: ='Title I Schoolwide Worksheet 2B'!Q15 -> 0 | J16: ='Title I Focus Worksheet 2B'!Q15 -> 0
A17: 4) | I17: ='Title I Schoolwide Worksheet 2B'!Q16 -> 0 | J17: ='Title I Focus Worksheet 2B'!Q16 -> 0
A18: 5) | I18: ='Title I Schoolwide Worksheet 2B'!Q17 -> 0 | J18: ='Title I Focus Worksheet 2B'!Q17 -> 0
A19: 6) | I19: ='Title I Schoolwide Worksheet 2B'!Q18 -> 0 | J19: ='Title I Focus Worksheet 2B'!Q18 -> 0
A20: 7) | I20: ='Title I Schoolwide Worksheet 2B'!Q19 -> 0 | J20: ='Title I Focus Worksheet 2B'!Q19 -> 0
A21: 8) | I21: ='Title I Schoolwide Worksheet 2B'!Q20 -> 0 | J21: ='Title I Focus Worksheet 2B'!Q20 -> 0
A22: 9) | I22: ='Title I Schoolwide Worksheet 2B'!Q21 -> 0 | J22: ='Title I Focus Worksheet 2B'!Q21 -> 0
A23: Action Steps to Implement Associated Professional Development | G23: Additional Improvement Plan(s) that this Action Step Supports (select all that apply from drop down or specify in "Other") | I23: Supplemental Title I Funding Budgeted to Support Action Step
A24: Identify associated professional development courses/activities, participants, providers, and the dates activities will begin and end. | G24: Improvement Plans (drop down menu) | H24: Other (Specify) | I24: Title I | J24: Title I State Focus
A25: 10) | I25: ='Title I Schoolwide Worksheet 2B'!Q23 -> 0 | J25: ='Title I Focus Worksheet 2B'!Q23 -> 0 | K25: SEE NOTE ABOVE
A26: 11) | I26: ='Title I Schoolwide Worksheet 2B'!Q24 -> 0 | J26: ='Title I Focus Worksheet 2B'!Q24 -> 0
A27: 12) | I27: ='Title I Schoolwide Worksheet 2B'!Q25 -> 0 | J27: ='Title I Focus Worksheet 2B'!Q25 -> 0
A28: Action Steps to Implement Associated Parental Involvement | G28: Additional Improvement Plan(s) that this Action Step Supports (select all that apply from drop down or specify in "Other") | I28: Supplemental Title I Funding Budgeted to Support Action Step
A29: Identify parental involvement activities, providers, and the dates activities will begin and end. | G29: Improvement Plans (drop down menu) | H29: Other (Specify) | I29: Title I | J29: Title I State Focus
A30: 13) | I30: ='Title I Schoolwide Worksheet 2B'!Q27 -> 0 | J30: ='Title I Focus Worksheet 2B'!Q27 -> 0 | K30: SEE NOTE ABOVE
A31: 14) | I31: ='Title I Schoolwide Worksheet 2B'!Q28 -> 0 | J31: ='Title I Focus Worksheet 2B'!Q28 -> 0
A32: 15) | I32: ='Title I Schoolwide Worksheet 2B'!Q29 -> 0 | J32: ='Title I Focus Worksheet 2B'!Q29 -> 0
A33: IMPROVEMENT STRATEGY #2
A35: Action Steps to Implement Improvement Strategy | G35: Additional Improvement Plan(s) that this Action Step Supports (select all that apply from drop down or specify in "Other") | I35: Supplemental Title I Funding Budgeted to Support Action Step
G36: Improvement Plans (drop down menu) | H36: Other (Specify) | I36: Title I | J36: Title I State Focus
A37: 1) | I37: ='Title I Schoolwide Worksheet 2B'!Q35 -> 0 | J37: ='Title I Focus Worksheet 2B'!Q35 -> 0 | K37: THESE CELLS ARE LOCKED BECAUSE FUNDING AMOUNTS WILL AUTO POPULATE TO THIS SECTION FROM FUNDING WORKSHEETS.
A38: 2) | I38: ='Title I Schoolwide Worksheet 2B'!Q36 -> 0 | J38: ='Title I Focus Worksheet 2B'!Q36 -> 0
A39: 3) | I39: ='Title I Schoolwide Worksheet 2B'!Q37 -> 0 | J39: ='Title I Focus Worksheet 2B'!Q37 -> 0
A40: 4) | I40: ='Title I Schoolwide Worksheet 2B'!Q38 -> 0 | J40: ='Title I Focus Worksheet 2B'!Q38 -> 0
A41: 5) | I41: ='Title I Schoolwide Worksheet 2B'!Q39 -> 0 | J41: ='Title I Focus Worksheet 2B'!Q39 -> 0
A42: 6) | I42: ='Title I Schoolwide Worksheet 2B'!Q40 -> 0 | J42: ='Title I Focus Worksheet 2B'!Q40 -> 0
A43: 7) | I43: ='Title I Schoolwide Worksheet 2B'!Q41 -> 0 | J43: ='Title I Focus Worksheet 2B'!Q41 -> 0
A44: 8) | I44: ='Title I Schoolwide Worksheet 2B'!Q42 -> 0 | J44: ='Title I Focus Worksheet 2B'!Q42 -> 0 | AL44: Area I: Personalized Learning | AM44: Area II: Character, Service and Safety | AN44: Area III: Parent, Family and Community | AO44: Area IV: Educator and Organizational Excellence | AP44: Select Area of the GCS Strategic Plan 2016 from drop down menu
A45: 9) | I45: ='Title I Schoolwide Worksheet 2B'!Q43 -> 0 | J45: ='Title I Focus Worksheet 2B'!Q43 -> 0
A46: Action Steps to Implement Associated Professional Development | G46: Additional Improvement Plan(s) that this Action Step Supports (select all that apply from drop down or specify in "Other") | I46: Supplemental Title I Funding Budgeted to Support Action Step
A47: Identify associated professional development courses/activities, participants, providers, and the dates activities will begin and end. | G47: Improvement Plans (drop down menu) | H47: Other (Specify) | I47: Title I | J47: Title I State Focus
A48: 10) | I48: ='Title I Schoolwide Worksheet 2B'!Q35 -> 0 | J48: ='Title I Focus Worksheet 2B'!Q45 -> 0 | K48: SEE NOTE ABOVE | AL48: Click here and select from drop down menu. | AM48: GCS Priority Plan | AN48: Title I | AO48: Magnet | AP48: GCS Prioriy School | AQ48: African-American Male Achievement | AR48: Not Applicable
A49: 11) | I49: ='Title I Schoolwide Worksheet 2B'!Q36 -> 0 | J49: ='Title I Focus Worksheet 2B'!Q46 -> 0
A50: 12) | I50: ='Title I Schoolwide Worksheet 2B'!Q37 -> 0 | J50: ='Title I Focus Worksheet 2B'!Q47 -> 0
A51: Action Steps to Implement Associated Parental Involvement | G51: Additional Improvement Plan(s) that this Action Step Supports (select all that apply from drop down or specify in "Other") | I51: Supplemental Title I Funding Allocated to Support Action Step
A52: Identify parental involvement activities, providers, and the dates activities will begin and end. | G52: Improvement Plans (drop down menu) | H52: Other (Specify) | I52: Title I | J52: Title I State Focus
A53: 13) | I53: ='Title I Schoolwide Worksheet 2B'!Q49 -> 0 | J53: ='Title I Focus Worksheet 2B'!Q49 -> 0 | K53: SEE NOTE ABOVE
A54: 14) | I54: ='Title I Schoolwide Worksheet 2B'!Q50 -> 0 | J54: ='Title I Focus Worksheet 2B'!Q50 -> 0
A55: 15) | I55: ='Title I Schoolwide Worksheet 2B'!Q51 -> 0 | J55: ='Title I Focus Worksheet 2B'!Q51 -> 0
A56: IMPROVEMENT STRATEGY #3
A58: Action Steps to Implement Improvement Strategy | G58: Additional Improvement Plan(s) that this Action Step Supports (select all that apply from drop down or specify in "Other") | I58: Supplemental Title I Funding Allocated to Support Action Step
G59: Improvement Plans (drop down menu) | H59: Other (Specify) | I59: Title I | J59: Title I State Focus
A60: 1) | I60: ='Title I Schoolwide Worksheet 2B'!Q57 -> 0 | J60: ='Title I Focus Worksheet 2B'!Q57 -> 0 | K60: THESE CELLS ARE LOCKED BECAUSE FUNDING AMOUNTS WILL AUTO POPULATE TO THIS SECTION FROM FUNDING WORKSHEETS.
